Workbook

Sheet INGRESO DE DATOS
A13: 1. LLENE LA INFORMACIÓN DEL ASEGURADO PROPUESTO:
B15: Nombre del Asegurado Titular | D15: NOMBRE DEL CLIENTE
B17: Número de adultos en la póliza | D17: 1 | F17: Número de niños en la póliza | H17: 0
B19: Edad del Asegurado Titular | D19: 28 | F19: Edad del/la cónyuge | H19: 46
G21: Variante con coaseguro fuera del país de residencia | H21: TRUE
A23: 2. SELECCIONE EL PRODUCTO PARA VER LA COTIZACIÓN CORRESPONDIENTE:
B44: 1 | D44: 1

Sheet Bupa Global Ultimate
A20: Bupa Global Ultimate Health Plan | D20: Nombre del Asegurado Titular | F20: =+'INGRESO DE DATOS'!$D$15 -> NOMBRE DEL CLIENTE
D22: Número de adultos en la póliza | F22: =+'INGRESO DE DATOS'!$D$17 -> 1 | H22: Edad del Asegurado Titular | I22: =+'INGRESO DE DATOS'!$D$19 -> 28
D24: Número de niños en la póliza | F24: =+'INGRESO DE DATOS'!$H$17 -> 0 | H24: Edad del/la conyuge | I24: =+'INGRESO DE DATOS'!$H$19 -> 46
D26: Número de niños menores de 16 años | F26: =+'INGRESO DE DATOS'!$B$44 -> 1 | G26: Fecha de la cotización : | H26: =NOW() -> 2021-11-01T13:36:43.400
H27: FALSE
E28: Deducibles | G28: PLAN 1 | H28: PLAN 2 | I28: PLAN 3
E29: En el país de residencia | G29: 0 | H29: 1000 | I29: 2000
E30: Fuera del país de residencia | G30: 0 | H30: 1000 | I30: 2000
E32: Tarifas anuales
E33: Prima para Asegurado Titular | G33: =VLOOKUP($I$22,Tablas!$A$905:$G$971,3,TRUE) -> 16517 | H33: =VLOOKUP($I$22,Tablas!$A$905:$G$971,4,TRUE) -> 10658 | I33: =VLOOKUP($I$22,Tablas!$A$905:$G$971,5,TRUE) -> 8850
E34: Prima para conyuge | G34: =IF($F$22=1,0,(VLOOKUP($I$24,Tablas!$A$905:$G$971,3,TRUE))) -> 0 | H34: =IF($F$22=1,0,(VLOOKUP($I$24,Tablas!$A$905:$G$971,4,TRUE))) -> 0 | I34: =IF($F$22=1,0,(VLOOKUP($I$24,Tablas!$A$905:$G$971,5,TRUE))) -> 0
E35: Prima para hijo (s) | G35: =IF($F$22=1, (IF($F$24=0, 0, (IF($F$26>$F$24, (VLOOKUP($F$24,Tablas!$A$972:$G$974,3,TRUE)), (IF($F$24>4,(IF($F$26=0, (VLOOKUP(3,Tablas!$A$972:$G$974,3,TRUE)), (IF($F$26=1, (VLOOKUP(3,Tablas!$A$972:$G$974,3,TRUE)), (IF($F$26=2, (VLOOKUP(3,Tablas!$A$972:$G$974,3,TRUE)), (VLOOKUP(3,Tablas!$A$972:$G$974,3,TRUE)))))))), (IF($F$24=4,(IF(4-$F$26=0,(VLOOKUP(2,Tablas!$A$972:$G$974,3,TRUE)), (IF(4-$F$26=1,(VLOOKUP(2,Tablas!$A$972:$G$974,3,TRUE)), (IF(4-$F$26=2, (VLOOKUP(2,Tablas!$A$972:$G$974,3,TRUE)), (VLOOKUP(3,Tablas!$A$972:$G$974,3,TRUE)))))))), (IF($F$24=3,(IF(3-$F$26=0,(VLOOKUP(1,Tablas!$A$972:$G$974,3,TRUE)), (IF(3-$F$26=1,(VLOOKUP(1,Tablas!$A$972:$G$974,3,TRUE)), (IF(3-$F$26=2, (VLOOKUP(2,Tablas!$A$972:$G$974,3,TRUE)), (VLOOKUP(3,Tablas!$A$972:$G$974,3,TRUE)))))))), (IF($F$24=2,(IF(2-$F$26=0, 0, (IF(2-$F$26=1,(VLOOKUP(1,Tablas!$A$972:$G$974,3,TRUE)), (IF(2-$F$26=2, (VLOOKUP(2,Tablas!$A$972:$G$974,3,TRUE)), 0)))))), (IF($F$24=1,(IF(1-$F$26=0, 0, (IF(1-$F$26=1,(VLOOKUP(1,Tablas!$A$972:$G$974,3,TRUE)),0)))),0)))))))))))))), (IF($F$24=0, 0, (IF($F$26>$F$24, (VLOOKUP($F$24,Tablas!$A$972:$G$974,3,TRUE)), (IF($F$24=4,(IF(4-$F$26=0, 0, (IF(4-$F$26=1, (VLOOKUP(1,Tablas!$A$972:$G$974,3,TRUE)), (IF(4-$F$26=2, (VLOOKUP(2,Tablas!$A$972:$G$974,3,TRUE)), (IF(4-$F$26=3, (VLOOKUP(3,Tablas!$A$972:$G$974,3,TRUE)), (IF(4-$F$26=4, (VLOOKUP(3,Tablas!$A$972:$G$974,3,TRUE)), 0)))))))))), (IF($F$24=5,(IF(5-$F$26=0, (VLOOKUP(1,Tablas!$A$972:$G$974,3,TRUE)), (IF(5-$F$26=1, (VLOOKUP(1,Tablas!$A$972:$G$974,3,TRUE)), (IF(5-$F$26=2, (VLOOKUP(2,Tablas!$A$972:$G$974,3,TRUE)), (IF(5-$F$26=3, (VLOOKUP(3,Tablas!$A$972:$G$974,3,TRUE)), (IF(5-$F$26=4, (VLOOKUP(3,Tablas!$A$972:$G$974,3,TRUE)), (VLOOKUP(3,Tablas!$A$972:$G$974,3,TRUE)))))))))))), (IF($F$24=6,(IF(6-$F$26=0, (VLOOKUP(2,Tablas!$A$972:$G$974,3,TRUE)), (IF(6-$F$26=1, (VLOOKUP(2,Tablas!$A$972:$G$974,3,TRUE)), (IF(6-$F$26=2, (VLOOKUP(2,Tablas!$A$972:$G$974,3,TRUE)), (IF(6-$F$26=3, (VLOOKUP(3,Tablas!$A$972:$G$974,3,TRUE)), (IF(6-$F$26=4, (VLOOKUP(3,Tablas!$A$972:$G$974,3,TRUE)), (VLOOKUP(3,Tablas!$A$972:$G$974,3,TRUE)))))))))))), (IF($F$24>6,(IF(7-$F$26=0, (VLOOKUP(3,Tablas!$A$972:$G$974,3,TRUE)), (IF(7-$F$26=1, (VLOOKUP(3,Tablas!$A$972:$G$974,3,TRUE)), (IF(7-$F$26=2, (VLOOKUP(3,Tablas!$A$972:$G$974,3,TRUE)), (IF(7-$F$26=3, (VLOOKUP(3,Tablas!$A$972:$G$974,3,TRUE)), (IF(7-$F$26=4, (VLOOKUP(3,Tablas!$A$972:$G$974,3,TRUE)), (VLOOKUP(3,Tablas!$A$972:$G$974,3,TRUE)))))))))))), (IF($F$24=3,(IF(3-$F$26=0,0, (IF(3-$F$26=1,(VLOOKUP(1,Tablas!$A$972:$G$974,3,TRUE)), (IF(3-$F$26=2, (VLOOKUP(2,Tablas!$A$972:$G$974,3,TRUE)), (VLOOKUP(3,Tablas!$A$972:$G$974,3,TRUE)))))))), (IF($F$24=2,(IF(2-$F$26=0, 0, (IF(2-$F$26=1,(VLOOKUP(1,Tablas!$A$972:$G$974,3,TRUE)), (IF(2-$F$26=2, (VLOOKUP(2,Tablas!$A$972:$G$974,3,TRUE)), 0)))))), (IF($F$24=1,(IF(1-$F$26=0, 0, (IF(1-$F$26=1,(VLOOKUP(1,Tablas!$A$972:$G$974,3,TRUE)),0)))),0))))))))))))))))))) -> 0 | H35: =IF($F$22=1, (IF($F$24=0, 0, (IF($F$26>$F$24, (VLOOKUP($F$24,Tablas!$A$972:$G$974,4,TRUE)), (IF($F$24>4,(IF($F$26=0, (VLOOKUP(3,Tablas!$A$972:$G$974,4,TRUE)), (IF($F$26=1, (VLOOKUP(3,Tablas!$A$972:$G$974,4,TRUE)), (IF($F$26=2, (VLOOKUP(3,Tablas!$A$972:$G$974,4,TRUE)), (VLOOKUP(3,Tablas!$A$972:$G$974,4,TRUE)))))))), (IF($F$24=4,(IF(4-$F$26=0,(VLOOKUP(2,Tablas!$A$972:$G$974,4,TRUE)), (IF(4-$F$26=1,(VLOOKUP(2,Tablas!$A$972:$G$974,4,TRUE)), (IF(4-$F$26=2, (VLOOKUP(2,Tablas!$A$972:$G$974,4,TRUE)), (VLOOKUP(3,Tablas!$A$972:$G$974,4,TRUE)))))))), (IF($F$24=3,(IF(3-$F$26=0,(VLOOKUP(1,Tablas!$A$972:$G$974,4,TRUE)), (IF(3-$F$26=1,(VLOOKUP(1,Tablas!$A$972:$G$974,4,TRUE)), (IF(3-$F$26=2, (VLOOKUP(2,Tablas!$A$972:$G$974,4,TRUE)), (VLOOKUP(3,Tablas!$A$972:$G$974,4,TRUE)))))))), (IF($F$24=2,(IF(2-$F$26=0, 0, (IF(2-$F$26=1,(VLOOKUP(1,Tablas!$A$972:$G$974,4,TRUE)), (IF(2-$F$26=2, (VLOOKUP(2,Tablas!$A$972:$G$974,4,TRUE)), 0)))))), (IF($F$24=1,(IF(1-$F$26=0, 0, (IF(1-$F$26=1,(VLOOKUP(1,Tablas!$A$972:$G$974,4,TRUE)),0)))),0)))))))))))))), (IF($F$24=0, 0, (IF($F$26>$F$24, (VLOOKUP($F$24,Tablas!$A$972:$G$974,4,TRUE)), (IF($F$24=4,(IF(4-$F$26=0, 0, (IF(4-$F$26=1, (VLOOKUP(1,Tablas!$A$972:$G$974,4,TRUE)), (IF(4-$F$26=2, (VLOOKUP(2,Tablas!$A$972:$G$974,4,TRUE)), (IF(4-$F$26=3, (VLOOKUP(3,Tablas!$A$972:$G$974,4,TRUE)), (IF(4-$F$26=4, (VLOOKUP(3,Tablas!$A$972:$G$974,4,TRUE)), 0)))))))))), (IF($F$24=5,(IF(5-$F$26=0, (VLOOKUP(1,Tablas!$A$972:$G$974,4,TRUE)), (IF(5-$F$26=1, (VLOOKUP(1,Tablas!$A$972:$G$974,4,TRUE)), (IF(5-$F$26=2, (VLOOKUP(2,Tablas!$A$972:$G$974,4,TRUE)), (IF(5-$F$26=3, (VLOOKUP(3,Tablas!$A$972:$G$974,4,TRUE)), (IF(5-$F$26=4, (VLOOKUP(3,Tablas!$A$972:$G$974,4,TRUE)), (VLOOKUP(3,Tablas!$A$972:$G$974,4,TRUE)))))))))))), (IF($F$24=6,(IF(6-$F$26=0, (VLOOKUP(2,Tablas!$A$972:$G$974,4,TRUE)), (IF(6-$F$26=1, (VLOOKUP(2,Tablas!$A$972:$G$974,4,TRUE)), (IF(6-$F$26=2, (VLOOKUP(2,Tablas!$A$972:$G$974,4,TRUE)), (IF(6-$F$26=3, (VLOOKUP(3,Tablas!$A$972:$G$974,4,TRUE)), (IF(6-$F$26=4, (VLOOKUP(3,Tablas!$A$972:$G$974,4,TRUE)), (VLOOKUP(3,Tablas!$A$972:$G$974,4,TRUE)))))))))))), (IF($F$24>6,(IF(7-$F$26=0, (VLOOKUP(3,Tablas!$A$972:$G$974,4,TRUE)), (IF(7-$F$26=1, (VLOOKUP(3,Tablas!$A$972:$G$974,4,TRUE)), (IF(7-$F$26=2, (VLOOKUP(3,Tablas!$A$972:$G$974,4,TRUE)), (IF(7-$F$26=3, (VLOOKUP(3,Tablas!$A$972:$G$974,4,TRUE)), (IF(7-$F$26=4, (VLOOKUP(3,Tablas!$A$972:$G$974,4,TRUE)), (VLOOKUP(3,Tablas!$A$972:$G$974,4,TRUE)))))))))))), (IF($F$24=3,(IF(3-$F$26=0,0, (IF(3-$F$26=1,(VLOOKUP(1,Tablas!$A$972:$G$974,4,TRUE)), (IF(3-$F$26=2, (VLOOKUP(2,Tablas!$A$972:$G$974,4,TRUE)), (VLOOKUP(3,Tablas!$A$972:$G$974,4,TRUE)))))))), (IF($F$24=2,(IF(2-$F$26=0, 0, (IF(2-$F$26=1,(VLOOKUP(1,Tablas!$A$972:$G$974,4,TRUE)), (IF(2-$F$26=2, (VLOOKUP(2,Tablas!$A$972:$G$974,4,TRUE)), 0)))))), (IF($F$24=1,(IF(1-$F$26=0, 0, (IF(1-$F$26=1,(VLOOKUP(1,Tablas!$A$972:$G$974,4,TRUE)),0)))),0))))))))))))))))))) -> 0 | I35: =IF($F$22=1, (IF($F$24=0, 0, (IF($F$26>$F$24, (VLOOKUP($F$24,Tablas!$A$972:$G$974,5,TRUE)), (IF($F$24>4,(IF($F$26=0, (VLOOKUP(3,Tablas!$A$972:$G$974,5,TRUE)), (IF($F$26=1, (VLOOKUP(3,Tablas!$A$972:$G$974,5,TRUE)), (IF($F$26=2, (VLOOKUP(3,Tablas!$A$972:$G$974,5,TRUE)), (VLOOKUP(3,Tablas!$A$972:$G$974,5,TRUE)))))))), (IF($F$24=4,(IF(4-$F$26=0,(VLOOKUP(2,Tablas!$A$972:$G$974,5,TRUE)), (IF(4-$F$26=1,(VLOOKUP(2,Tablas!$A$972:$G$974,5,TRUE)), (IF(4-$F$26=2, (VLOOKUP(2,Tablas!$A$972:$G$974,5,TRUE)), (VLOOKUP(3,Tablas!$A$972:$G$974,5,TRUE)))))))), (IF($F$24=3,(IF(3-$F$26=0,(VLOOKUP(1,Tablas!$A$972:$G$974,5,TRUE)), (IF(3-$F$26=1,(VLOOKUP(1,Tablas!$A$972:$G$974,5,TRUE)), (IF(3-$F$26=2, (VLOOKUP(2,Tablas!$A$972:$G$974,5,TRUE)), (VLOOKUP(3,Tablas!$A$972:$G$974,5,TRUE)))))))), (IF($F$24=2,(IF(2-$F$26=0, 0, (IF(2-$F$26=1,(VLOOKUP(1,Tablas!$A$972:$G$974,5,TRUE)), (IF(2-$F$26=2, (VLOOKUP(2,Tablas!$A$972:$G$974,5,TRUE)), 0)))))), (IF($F$24=1,(IF(1-$F$26=0, 0, (IF(1-$F$26=1,(VLOOKUP(1,Tablas!$A$972:$G$974,5,TRUE)),0)))),0)))))))))))))), (IF($F$24=0, 0, (IF($F$26>$F$24, (VLOOKUP($F$24,Tablas!$A$972:$G$974,5,TRUE)), (IF($F$24=4,(IF(4-$F$26=0, 0, (IF(4-$F$26=1, (VLOOKUP(1,Tablas!$A$972:$G$974,5,TRUE)), (IF(4-$F$26=2, (VLOOKUP(2,Tablas!$A$972:$G$974,5,TRUE)), (IF(4-$F$26=3, (VLOOKUP(3,Tablas!$A$972:$G$974,5,TRUE)), (IF(4-$F$26=4, (VLOOKUP(3,Tablas!$A$972:$G$974,5,TRUE)), 0)))))))))), (IF($F$24=5,(IF(5-$F$26=0, (VLOOKUP(1,Tablas!$A$972:$G$974,5,TRUE)), (IF(5-$F$26=1, (VLOOKUP(1,Tablas!$A$972:$G$974,5,TRUE)), (IF(5-$F$26=2, (VLOOKUP(2,Tablas!$A$972:$G$974,5,TRUE)), (IF(5-$F$26=3, (VLOOKUP(3,Tablas!$A$972:$G$974,5,TRUE)), (IF(5-$F$26=4, (VLOOKUP(3,Tablas!$A$972:$G$974,5,TRUE)), (VLOOKUP(3,Tablas!$A$972:$G$974,5,TRUE)))))))))))), (IF($F$24=6,(IF(6-$F$26=0, (VLOOKUP(2,Tablas!$A$972:$G$974,5,TRUE)), (IF(6-$F$26=1, (VLOOKUP(2,Tablas!$A$972:$G$974,5,TRUE)), (IF(6-$F$26=2, (VLOOKUP(2,Tablas!$A$972:$G$974,5,TRUE)), (IF(6-$F$26=3, (VLOOKUP(3,Tablas!$A$972:$G$974,5,TRUE)), (IF(6-$F$26=4, (VLOOKUP(3,Tablas!$A$972:$G$974,5,TRUE)), (VLOOKUP(3,Tablas!$A$972:$G$974,5,TRUE)))))))))))), (IF($F$24>6,(IF(7-$F$26=0, (VLOOKUP(3,Tablas!$A$972:$G$974,5,TRUE)), (IF(7-$F$26=1, (VLOOKUP(3,Tablas!$A$972:$G$974,5,TRUE)), (IF(7-$F$26=2, (VLOOKUP(3,Tablas!$A$972:$G$974,5,TRUE)), (IF(7-$F$26=3, (VLOOKUP(3,Tablas!$A$972:$G$974,5,TRUE)), (IF(7-$F$26=4, (VLOOKUP(3,Tablas!$A$972:$G$974,5,TRUE)), (VLOOKUP(3,Tablas!$A$972:$G$974,5,TRUE)))))))))))), (IF($F$24=3,(IF(3-$F$26=0,0, (IF(3-$F$26=1,(VLOOKUP(1,Tablas!$A$972:$G$974,5,TRUE)), (IF(3-$F$26=2, (VLOOKUP(2,Tablas!$A$972:$G$974,5,TRUE)), (VLOOKUP(3,Tablas!$A$972:$G$974,5,TRUE)))))))), (IF($F$24=2,(IF(2-$F$26=0, 0, (IF(2-$F$26=1,(VLOOKUP(1,Tablas!$A$972:$G$974,5,TRUE)), (IF(2-$F$26=2, (VLOOKUP(2,Tablas!$A$972:$G$974,5,TRUE)), 0)))))), (IF($F$24=1,(IF(1-$F$26=0, 0, (IF(1-$F$26=1,(VLOOKUP(1,Tablas!$A$972:$G$974,5,TRUE)),0)))),0))))))))))))))))))) -> 0
E36: Total de Prima neta | G36: =SUM(G33:G35) -> 16517 | H36: =SUM(H33:H35) -> 10658 | I36: 8850
E37: Tarifa administrativa anual | G37: 75 | H37: 75 | I37: 75
E38: VAT (5%) : | G38: =+G36*5% -> 825.85 | H38: =+H36*5% -> 532.9 | I38: 442.5
E39: ITBMS (7%) | G39: =+G37*7% -> 5.25 | H39: =+H37*7% -> 5.25 | I39: 5.25
E40: TOTAL ANUAL | G40: =SUM(G36:G39) -> 17423.1 | H40: =SUM(H36:H39) -> 11271.15 | I40: 9372.75
E41: Ahorros en tarifas de prima para niños | G41: =IF($F$22=1,IF($F$24=0,0,IF($F$26=0,0,IF($F$26=1,(VLOOKUP(1,Tablas!$A$972:$G$974,3,TRUE)),(VLOOKUP(2,Tablas!$A$972:$G$974,3,TRUE))))), IF($F$24=0,0,IF($F$26=0,0,IF($F$26=1,(VLOOKUP(1,Tablas!$A$972:$G$974,3,TRUE)),IF($F$26=2,(VLOOKUP(2,Tablas!$A$972:$G$974,3,TRUE)), (VLOOKUP(3,Tablas!$A$972:$G$974,3,TRUE))))))) -> 0 | H41: =IF($F$22=1,IF($F$24=0,0,IF($F$26=0,0,IF($F$26=1,(VLOOKUP(1,Tablas!$A$972:$G$974,4,TRUE)),(VLOOKUP(2,Tablas!$A$972:$G$974,4,TRUE))))), IF($F$24=0,0,IF($F$26=0,0,IF($F$26=1,(VLOOKUP(1,Tablas!$A$972:$G$974,4,TRUE)),IF($F$26=2,(VLOOKUP(2,Tablas!$A$972:$G$974,4,TRUE)), (VLOOKUP(3,Tablas!$A$972:$G$974,4,TRUE))))))) -> 0 | I41: =IF($F$22=1,IF($F$24=0,0,IF($F$26=0,0,IF($F$26=1,(VLOOKUP(1,Tablas!$A$972:$G$974,5,TRUE)),(VLOOKUP(2,Tablas!$A$972:$G$974,5,TRUE))))), IF($F$24=0,0,IF($F$26=0,0,IF($F$26=1,(VLOOKUP(1,Tablas!$A$972:$G$974,5,TRUE)),IF($F$26=2,(VLOOKUP(2,Tablas!$A$972:$G$974,5,TRUE)), (VLOOKUP(3,Tablas!$A$972:$G$974,5,TRUE))))))) -> 0
E43: Tarifas semi anuales
E44: Prima para Asegurado Titular | G44: =VLOOKUP($I$22,Tablas!$A$1428:$G$1494,3,TRUE) -> 8754.01 | H44: =VLOOKUP($I$22,Tablas!$A$1428:$G$1494,4,TRUE) -> 5648.74 | I44: =VLOOKUP($I$22,Tablas!$A$1428:$G$1494,5,TRUE) -> 4690.5
E45: Prima para conyuge | G45: =IF($F$22=1,0,(VLOOKUP($I$24,Tablas!$A$1428:$G$1494,3,TRUE))) -> 0 | H45: =IF($F$22=1,0,(VLOOKUP($I$24,Tablas!$A$1428:$G$1494,4,TRUE))) -> 0 | I45: =IF($F$22=1,0,(VLOOKUP($I$24,Tablas!$A$1428:$G$1494,5,TRUE))) -> 0
E46: Prima para hijo (s) | G46: =IF($F$22=1, (IF($F$24=0, 0, (IF($F$26>$F$24, (VLOOKUP($F$24,Tablas!$A$1495:$G$1497,3,TRUE)), (IF($F$24>4,(IF($F$26=0, (VLOOKUP(3,Tablas!$A$1495:$G$1497,3,TRUE)), (IF($F$26=1, (VLOOKUP(3,Tablas!$A$1495:$G$1497,3,TRUE)), (IF($F$26=2, (VLOOKUP(3,Tablas!$A$1495:$G$1497,3,TRUE)), (VLOOKUP(3,Tablas!$A$1495:$G$1497,3,TRUE)))))))), (IF($F$24=4,(IF(4-$F$26=0,(VLOOKUP(2,Tablas!$A$1495:$G$1497,3,TRUE)), (IF(4-$F$26=1,(VLOOKUP(2,Tablas!$A$1495:$G$1497,3,TRUE)), (IF(4-$F$26=2, (VLOOKUP(2,Tablas!$A$1495:$G$1497,3,TRUE)), (VLOOKUP(3,Tablas!$A$1495:$G$1497,3,TRUE)))))))), (IF($F$24=3,(IF(3-$F$26=0,(VLOOKUP(1,Tablas!$A$1495:$G$1497,3,TRUE)), (IF(3-$F$26=1,(VLOOKUP(1,Tablas!$A$1495:$G$1497,3,TRUE)), (IF(3-$F$26=2, (VLOOKUP(2,Tablas!$A$1495:$G$1497,3,TRUE)), (VLOOKUP(3,Tablas!$A$1495:$G$1497,3,TRUE)))))))), (IF($F$24=2,(IF(2-$F$26=0, 0, (IF(2-$F$26=1,(VLOOKUP(1,Tablas!$A$1495:$G$1497,3,TRUE)), (IF(2-$F$26=2, (VLOOKUP(2,Tablas!$A$1495:$G$1497,3,TRUE)), 0)))))), (IF($F$24=1,(IF(1-$F$26=0, 0, (IF(1-$F$26=1,(VLOOKUP(1,Tablas!$A$1495:$G$1497,3,TRUE)),0)))),0)))))))))))))), (IF($F$24=0, 0, (IF($F$26>$F$24, (VLOOKUP($F$24,Tablas!$A$1495:$G$1497,3,TRUE)), (IF($F$24=4,(IF(4-$F$26=0, 0, (IF(4-$F$26=1, (VLOOKUP(1,Tablas!$A$1495:$G$1497,3,TRUE)), (IF(4-$F$26=2, (VLOOKUP(2,Tablas!$A$1495:$G$1497,3,TRUE)), (IF(4-$F$26=3, (VLOOKUP(3,Tablas!$A$1495:$G$1497,3,TRUE)), (IF(4-$F$26=4, (VLOOKUP(3,Tablas!$A$1495:$G$1497,3,TRUE)), 0)))))))))), (IF($F$24=5,(IF(5-$F$26=0, (VLOOKUP(1,Tablas!$A$1495:$G$1497,3,TRUE)), (IF(5-$F$26=1, (VLOOKUP(1,Tablas!$A$1495:$G$1497,3,TRUE)), (IF(5-$F$26=2, (VLOOKUP(2,Tablas!$A$1495:$G$1497,3,TRUE)), (IF(5-$F$26=3, (VLOOKUP(3,Tablas!$A$1495:$G$1497,3,TRUE)), (IF(5-$F$26=4, (VLOOKUP(3,Tablas!$A$1495:$G$1497,3,TRUE)), (VLOOKUP(3,Tablas!$A$1495:$G$1497,3,TRUE)))))))))))), (IF($F$24=6,(IF(6-$F$26=0, (VLOOKUP(2,Tablas!$A$1495:$G$1497,3,TRUE)), (IF(6-$F$26=1, (VLOOKUP(2,Tablas!$A$1495:$G$1497,3,TRUE)), (IF(6-$F$26=2, (VLOOKUP(2,Tablas!$A$1495:$G$1497,3,TRUE)), (IF(6-$F$26=3, (VLOOKUP(3,Tablas!$A$1495:$G$1497,3,TRUE)), (IF(6-$F$26=4, (VLOOKUP(3,Tablas!$A$1495:$G$1497,3,TRUE)), (VLOOKUP(3,Tablas!$A$1495:$G$1497,3,TRUE)))))))))))), (IF($F$24>6,(IF(7-$F$26=0, (VLOOKUP(3,Tablas!$A$1495:$G$1497,3,TRUE)), (IF(7-$F$26=1, (VLOOKUP(3,Tablas!$A$1495:$G$1497,3,TRUE)), (IF(7-$F$26=2, (VLOOKUP(3,Tablas!$A$1495:$G$1497,3,TRUE)), (IF(7-$F$26=3, (VLOOKUP(3,Tablas!$A$1495:$G$1497,3,TRUE)), (IF(7-$F$26=4, (VLOOKUP(3,Tablas!$A$1495:$G$1497,3,TRUE)), (VLOOKUP(3,Tablas!$A$1495:$G$1497,3,TRUE)))))))))))), (IF($F$24=3,(IF(3-$F$26=0,0, (IF(3-$F$26=1,(VLOOKUP(1,Tablas!$A$1495:$G$1497,3,TRUE)), (IF(3-$F$26=2, (VLOOKUP(2,Tablas!$A$1495:$G$1497,3,TRUE)), (VLOOKUP(3,Tablas!$A$1495:$G$1497,3,TRUE)))))))), (IF($F$24=2,(IF(2-$F$26=0, 0, (IF(2-$F$26=1,(VLOOKUP(1,Tablas!$A$1495:$G$1497,3,TRUE)), (IF(2-$F$26=2, (VLOOKUP(2,Tablas!$A$1495:$G$1497,3,TRUE)), 0)))))), (IF($F$24=1,(IF(1-$F$26=0, 0, (IF(1-$F$26=1,(VLOOKUP(1,Tablas!$A$1495:$G$1497,3,TRUE)),0)))),0))))))))))))))))))) -> 0 | H46: =IF($F$22=1, (IF($F$24=0, 0, (IF($F$26>$F$24, (VLOOKUP($F$24,Tablas!$A$1495:$G$1497,4,TRUE)), (IF($F$24>4,(IF($F$26=0, (VLOOKUP(3,Tablas!$A$1495:$G$1497,4,TRUE)), (IF($F$26=1, (VLOOKUP(3,Tablas!$A$1495:$G$1497,4,TRUE)), (IF($F$26=2, (VLOOKUP(3,Tablas!$A$1495:$G$1497,4,TRUE)), (VLOOKUP(3,Tablas!$A$1495:$G$1497,4,TRUE)))))))), (IF($F$24=4,(IF(4-$F$26=0,(VLOOKUP(2,Tablas!$A$1495:$G$1497,4,TRUE)), (IF(4-$F$26=1,(VLOOKUP(2,Tablas!$A$1495:$G$1497,4,TRUE)), (IF(4-$F$26=2, (VLOOKUP(2,Tablas!$A$1495:$G$1497,4,TRUE)), (VLOOKUP(3,Tablas!$A$1495:$G$1497,4,TRUE)))))))), (IF($F$24=3,(IF(3-$F$26=0,(VLOOKUP(1,Tablas!$A$1495:$G$1497,4,TRUE)), (IF(3-$F$26=1,(VLOOKUP(1,Tablas!$A$1495:$G$1497,4,TRUE)), (IF(3-$F$26=2, (VLOOKUP(2,Tablas!$A$1495:$G$1497,4,TRUE)), (VLOOKUP(3,Tablas!$A$1495:$G$1497,4,TRUE)))))))), (IF($F$24=2,(IF(2-$F$26=0, 0, (IF(2-$F$26=1,(VLOOKUP(1,Tablas!$A$1495:$G$1497,4,TRUE)), (IF(2-$F$26=2, (VLOOKUP(2,Tablas!$A$1495:$G$1497,4,TRUE)), 0)))))), (IF($F$24=1,(IF(1-$F$26=0, 0, (IF(1-$F$26=1,(VLOOKUP(1,Tablas!$A$1495:$G$1497,4,TRUE)),0)))),0)))))))))))))), (IF($F$24=0, 0, (IF($F$26>$F$24, (VLOOKUP($F$24,Tablas!$A$1495:$G$1497,4,TRUE)), (IF($F$24=4,(IF(4-$F$26=0, 0, (IF(4-$F$26=1, (VLOOKUP(1,Tablas!$A$1495:$G$1497,4,TRUE)), (IF(4-$F$26=2, (VLOOKUP(2,Tablas!$A$1495:$G$1497,4,TRUE)), (IF(4-$F$26=3, (VLOOKUP(3,Tablas!$A$1495:$G$1497,4,TRUE)), (IF(4-$F$26=4, (VLOOKUP(3,Tablas!$A$1495:$G$1497,4,TRUE)), 0)))))))))), (IF($F$24=5,(IF(5-$F$26=0, (VLOOKUP(1,Tablas!$A$1495:$G$1497,4,TRUE)), (IF(5-$F$26=1, (VLOOKUP(1,Tablas!$A$1495:$G$1497,4,TRUE)), (IF(5-$F$26=2, (VLOOKUP(2,Tablas!$A$1495:$G$1497,4,TRUE)), (IF(5-$F$26=3, (VLOOKUP(3,Tablas!$A$1495:$G$1497,4,TRUE)), (IF(5-$F$26=4, (VLOOKUP(3,Tablas!$A$1495:$G$1497,4,TRUE)), (VLOOKUP(3,Tablas!$A$1495:$G$1497,4,TRUE)))))))))))), (IF($F$24=6,(IF(6-$F$26=0, (VLOOKUP(2,Tablas!$A$1495:$G$1497,4,TRUE)), (IF(6-$F$26=1, (VLOOKUP(2,Tablas!$A$1495:$G$1497,4,TRUE)), (IF(6-$F$26=2, (VLOOKUP(2,Tablas!$A$1495:$G$1497,4,TRUE)), (IF(6-$F$26=3, (VLOOKUP(3,Tablas!$A$1495:$G$1497,4,TRUE)), (IF(6-$F$26=4, (VLOOKUP(3,Tablas!$A$1495:$G$1497,4,TRUE)), (VLOOKUP(3,Tablas!$A$1495:$G$1497,4,TRUE)))))))))))), (IF($F$24>6,(IF(7-$F$26=0, (VLOOKUP(3,Tablas!$A$1495:$G$1497,4,TRUE)), (IF(7-$F$26=1, (VLOOKUP(3,Tablas!$A$1495:$G$1497,4,TRUE)), (IF(7-$F$26=2, (VLOOKUP(3,Tablas!$A$1495:$G$1497,4,TRUE)), (IF(7-$F$26=3, (VLOOKUP(3,Tablas!$A$1495:$G$1497,4,TRUE)), (IF(7-$F$26=4, (VLOOKUP(3,Tablas!$A$1495:$G$1497,4,TRUE)), (VLOOKUP(3,Tablas!$A$1495:$G$1497,4,TRUE)))))))))))), (IF($F$24=3,(IF(3-$F$26=0,0, (IF(3-$F$26=1,(VLOOKUP(1,Tablas!$A$1495:$G$1497,4,TRUE)), (IF(3-$F$26=2, (VLOOKUP(2,Tablas!$A$1495:$G$1497,4,TRUE)), (VLOOKUP(3,Tablas!$A$1495:$G$1497,4,TRUE)))))))), (IF($F$24=2,(IF(2-$F$26=0, 0, (IF(2-$F$26=1,(VLOOKUP(1,Tablas!$A$1495:$G$1497,4,TRUE)), (IF(2-$F$26=2, (VLOOKUP(2,Tablas!$A$1495:$G$1497,4,TRUE)), 0)))))), (IF($F$24=1,(IF(1-$F$26=0, 0, (IF(1-$F$26=1,(VLOOKUP(1,Tablas!$A$1495:$G$1497,4,TRUE)),0)))),0))))))))))))))))))) -> 0 | I46: =IF($F$22=1, (IF($F$24=0, 0, (IF($F$26>$F$24, (VLOOKUP($F$24,Tablas!$A$1495:$G$1497,5,TRUE)), (IF($F$24>4,(IF($F$26=0, (VLOOKUP(3,Tablas!$A$1495:$G$1497,5,TRUE)), (IF($F$26=1, (VLOOKUP(3,Tablas!$A$1495:$G$1497,5,TRUE)), (IF($F$26=2, (VLOOKUP(3,Tablas!$A$1495:$G$1497,5,TRUE)), (VLOOKUP(3,Tablas!$A$1495:$G$1497,5,TRUE)))))))), (IF($F$24=4,(IF(4-$F$26=0,(VLOOKUP(2,Tablas!$A$1495:$G$1497,5,TRUE)), (IF(4-$F$26=1,(VLOOKUP(2,Tablas!$A$1495:$G$1497,5,TRUE)), (IF(4-$F$26=2, (VLOOKUP(2,Tablas!$A$1495:$G$1497,5,TRUE)), (VLOOKUP(3,Tablas!$A$1495:$G$1497,5,TRUE)))))))), (IF($F$24=3,(IF(3-$F$26=0,(VLOOKUP(1,Tablas!$A$1495:$G$1497,5,TRUE)), (IF(3-$F$26=1,(VLOOKUP(1,Tablas!$A$1495:$G$1497,5,TRUE)), (IF(3-$F$26=2, (VLOOKUP(2,Tablas!$A$1495:$G$1497,5,TRUE)), (VLOOKUP(3,Tablas!$A$1495:$G$1497,5,TRUE)))))))), (IF($F$24=2,(IF(2-$F$26=0, 0, (IF(2-$F$26=1,(VLOOKUP(1,Tablas!$A$1495:$G$1497,5,TRUE)), (IF(2-$F$26=2, (VLOOKUP(2,Tablas!$A$1495:$G$1497,5,TRUE)), 0)))))), (IF($F$24=1,(IF(1-$F$26=0, 0, (IF(1-$F$26=1,(VLOOKUP(1,Tablas!$A$1495:$G$1497,5,TRUE)),0)))),0)))))))))))))), (IF($F$24=0, 0, (IF($F$26>$F$24, (VLOOKUP($F$24,Tablas!$A$1495:$G$1497,5,TRUE)), (IF($F$24=4,(IF(4-$F$26=0, 0, (IF(4-$F$26=1, (VLOOKUP(1,Tablas!$A$1495:$G$1497,5,TRUE)), (IF(4-$F$26=2, (VLOOKUP(2,Tablas!$A$1495:$G$1497,5,TRUE)), (IF(4-$F$26=3, (VLOOKUP(3,Tablas!$A$1495:$G$1497,5,TRUE)), (IF(4-$F$26=4, (VLOOKUP(3,Tablas!$A$1495:$G$1497,5,TRUE)), 0)))))))))), (IF($F$24=5,(IF(5-$F$26=0, (VLOOKUP(1,Tablas!$A$1495:$G$1497,5,TRUE)), (IF(5-$F$26=1, (VLOOKUP(1,Tablas!$A$1495:$G$1497,5,TRUE)), (IF(5-$F$26=2, (VLOOKUP(2,Tablas!$A$1495:$G$1497,5,TRUE)), (IF(5-$F$26=3, (VLOOKUP(3,Tablas!$A$1495:$G$1497,5,TRUE)), (IF(5-$F$26=4, (VLOOKUP(3,Tablas!$A$1495:$G$1497,5,TRUE)), (VLOOKUP(3,Tablas!$A$1495:$G$1497,5,TRUE)))))))))))), (IF($F$24=6,(IF(6-$F$26=0, (VLOOKUP(2,Tablas!$A$1495:$G$1497,5,TRUE)), (IF(6-$F$26=1, (VLOOKUP(2,Tablas!$A$1495:$G$1497,5,TRUE)), (IF(6-$F$26=2, (VLOOKUP(2,Tablas!$A$1495:$G$1497,5,TRUE)), (IF(6-$F$26=3, (VLOOKUP(3,Tablas!$A$1495:$G$1497,5,TRUE)), (IF(6-$F$26=4, (VLOOKUP(3,Tablas!$A$1495:$G$1497,5,TRUE)), (VLOOKUP(3,Tablas!$A$1495:$G$1497,5,TRUE)))))))))))), (IF($F$24>6,(IF(7-$F$26=0, (VLOOKUP(3,Tablas!$A$1495:$G$1497,5,TRUE)), (IF(7-$F$26=1, (VLOOKUP(3,Tablas!$A$1495:$G$1497,5,TRUE)), (IF(7-$F$26=2, (VLOOKUP(3,Tablas!$A$1495:$G$1497,5,TRUE)), (IF(7-$F$26=3, (VLOOKUP(3,Tablas!$A$1495:$G$1497,5,TRUE)), (IF(7-$F$26=4, (VLOOKUP(3,Tablas!$A$1495:$G$1497,5,TRUE)), (VLOOKUP(3,Tablas!$A$1495:$G$1497,5,TRUE)))))))))))), (IF($F$24=3,(IF(3-$F$26=0,0, (IF(3-$F$26=1,(VLOOKUP(1,Tablas!$A$1495:$G$1497,5,TRUE)), (IF(3-$F$26=2, (VLOOKUP(2,Tablas!$A$1495:$G$1497,5,TRUE)), (VLOOKUP(3,Tablas!$A$1495:$G$1497,5,TRUE)))))))), (IF($F$24=2,(IF(2-$F$26=0, 0, (IF(2-$F$26=1,(VLOOKUP(1,Tablas!$A$1495:$G$1497,5,TRUE)), (IF(2-$F$26=2, (VLOOKUP(2,Tablas!$A$1495:$G$1497,5,TRUE)), 0)))))), (IF($F$24=1,(IF(1-$F$26=0, 0, (IF(1-$F$26=1,(VLOOKUP(1,Tablas!$A$1495:$G$1497,5,TRUE)),0)))),0))))))))))))))))))) -> 0
E47: Total de Prima neta | G47: =SUM(G44:G46) -> 8754.01 | H47: =SUM(H44:H46) -> 5648.74 | I47: 4690.5
E48: Tarifa administrativa anual | G48: 75 | H48: 75 | I48: 75
E49: VAT (5%) : | G49: =(G33+G34+G35)*5%/2 -> 412.925 | H49: =(H33+H34+H35)*5%/2 -> 266.45 | I49: 221.25
E50: ITBMS (7%) | G50: =+G48*7%+ ((G33+G34+G35)*0.06*0.07)/2 -> 39.9357 | H50: =+H48*7%+ ((H33+H34+H35)*0.06*0.07)/2 -> 27.6318 | I50: 23.835
E51: TOTAL de primera cuota | G51: =SUM(G47:G50) -> 9281.8707 | H51: =SUM(H47:H50) -> 6017.8218 | I51: 5010.585
E52: Costo de segunda cuota | G52: =(G47 + G49)+((G33+G34+G35)*0.06*0.07)/2 -> 9201.6207 | H52: =(H47 + H49)+((H33+H34+H35)*0.06*0.07)/2 -> 5937.5718 | I52: 4930.335
E53: TOTAL ANUAL | G53: =G51+G52 -> 18483.4914 | H53: =H51+H52 -> 11955.3936 | I53: 9940.92
E54: Ahorros en tarifas de prima para niños | G54: =IF($F$22=1,IF($F$24=0,0,IF($F$26=0,0,IF($F$26=1,(VLOOKUP(1,Tablas!$A$1495:$G$1497,3,TRUE)),(VLOOKUP(2,Tablas!$A$1495:$G$1497,3,TRUE))))), IF($F$24=0,0,IF($F$26=0,0,IF($F$26=1,(VLOOKUP(1,Tablas!$A$1495:$G$1497,3,TRUE)),IF($F$26=2,(VLOOKUP(2,Tablas!$A$1495:$G$1497,3,TRUE)), (VLOOKUP(3,Tablas!$A$1495:$G$1497,3,TRUE))))))) -> 0 | H54: =IF($F$22=1,IF($F$24=0,0,IF($F$26=0,0,IF($F$26=1,(VLOOKUP(1,Tablas!$A$1495:$G$1497,4,TRUE)),(VLOOKUP(2,Tablas!$A$1495:$G$1497,4,TRUE))))), IF($F$24=0,0,IF($F$26=0,0,IF($F$26=1,(VLOOKUP(1,Tablas!$A$1495:$G$1497,4,TRUE)),IF($F$26=2,(VLOOKUP(2,Tablas!$A$1495:$G$1497,4,TRUE)), (VLOOKUP(3,Tablas!$A$1495:$G$1497,4,TRUE))))))) -> 0 | I54: =IF($F$22=1,IF($F$24=0,0,IF($F$26=0,0,IF($F$26=1,(VLOOKUP(1,Tablas!$A$1495:$G$1497,5,TRUE)),(VLOOKUP(2,Tablas!$A$1495:$G$1497,5,TRUE))))), IF($F$24=0,0,IF($F$26=0,0,IF($F$26=1,(VLOOKUP(1,Tablas!$A$1495:$G$1497,5,TRUE)),IF($F$26=2,(VLOOKUP(2,Tablas!$A$1495:$G$1497,5,TRUE)), (VLOOKUP(3,Tablas!$A$1495:$G$1497,5,TRUE))))))) -> 0
E56: Tarifas trimestrales
E57: Prima para Asegurado Titular | G57: =VLOOKUP($I$22,Tablas!$A$1054:$G$1120,3,TRUE) -> 4542.175 | H57: =VLOOKUP($I$22,Tablas!$A$1054:$G$1120,4,TRUE) -> 2930.95 | I57: =VLOOKUP($I$22,Tablas!$A$1054:$G$1120,5,TRUE) -> 2433.75
E58: Prima para conyuge | G58: =IF($F$22=1,0,(VLOOKUP($I$24,Tablas!$A$1054:$G$1120,3,TRUE))) -> 0 | H58: =IF($F$22=1,0,(VLOOKUP($I$24,Tablas!$A$1054:$G$1120,4,TRUE))) -> 0 | I58: =IF($F$22=1,0,(VLOOKUP($I$24,Tablas!$A$1054:$G$1120,5,TRUE))) -> 0
E59: Prima para hijo (s) | G59: =IF($F$22=1, (IF($F$24=0, 0, (IF($F$26>$F$24, (VLOOKUP($F$24,Tablas!$A$1121:$G$1123,3,TRUE)), (IF($F$24>4,(IF($F$26=0, (VLOOKUP(3,Tablas!$A$1121:$G$1123,3,TRUE)), (IF($F$26=1, (VLOOKUP(3,Tablas!$A$1121:$G$1123,3,TRUE)), (IF($F$26=2, (VLOOKUP(3,Tablas!$A$1121:$G$1123,3,TRUE)), (VLOOKUP(3,Tablas!$A$1121:$G$1123,3,TRUE)))))))), (IF($F$24=4,(IF(4-$F$26=0,(VLOOKUP(2,Tablas!$A$1121:$G$1123,3,TRUE)), (IF(4-$F$26=1,(VLOOKUP(2,Tablas!$A$1121:$G$1123,3,TRUE)), (IF(4-$F$26=2, (VLOOKUP(2,Tablas!$A$1121:$G$1123,3,TRUE)), (VLOOKUP(3,Tablas!$A$1121:$G$1123,3,TRUE)))))))), (IF($F$24=3,(IF(3-$F$26=0,(VLOOKUP(1,Tablas!$A$1121:$G$1123,3,TRUE)), (IF(3-$F$26=1,(VLOOKUP(1,Tablas!$A$1121:$G$1123,3,TRUE)), (IF(3-$F$26=2, (VLOOKUP(2,Tablas!$A$1121:$G$1123,3,TRUE)), (VLOOKUP(3,Tablas!$A$1121:$G$1123,3,TRUE)))))))), (IF($F$24=2,(IF(2-$F$26=0, 0, (IF(2-$F$26=1,(VLOOKUP(1,Tablas!$A$1121:$G$1123,3,TRUE)), (IF(2-$F$26=2, (VLOOKUP(2,Tablas!$A$1121:$G$1123,3,TRUE)), 0)))))), (IF($F$24=1,(IF(1-$F$26=0, 0, (IF(1-$F$26=1,(VLOOKUP(1,Tablas!$A$1121:$G$1123,3,TRUE)),0)))),0)))))))))))))), (IF($F$24=0, 0, (IF($F$26>$F$24, (VLOOKUP($F$24,Tablas!$A$1121:$G$1123,3,TRUE)), (IF($F$24=4,(IF(4-$F$26=0, 0, (IF(4-$F$26=1, (VLOOKUP(1,Tablas!$A$1121:$G$1123,3,TRUE)), (IF(4-$F$26=2, (VLOOKUP(2,Tablas!$A$1121:$G$1123,3,TRUE)), (IF(4-$F$26=3, (VLOOKUP(3,Tablas!$A$1121:$G$1123,3,TRUE)), (IF(4-$F$26=4, (VLOOKUP(3,Tablas!$A$1121:$G$1123,3,TRUE)), 0)))))))))), (IF($F$24=5,(IF(5-$F$26=0, (VLOOKUP(1,Tablas!$A$1121:$G$1123,3,TRUE)), (IF(5-$F$26=1, (VLOOKUP(1,Tablas!$A$1121:$G$1123,3,TRUE)), (IF(5-$F$26=2, (VLOOKUP(2,Tablas!$A$1121:$G$1123,3,TRUE)), (IF(5-$F$26=3, (VLOOKUP(3,Tablas!$A$1121:$G$1123,3,TRUE)), (IF(5-$F$26=4, (VLOOKUP(3,Tablas!$A$1121:$G$1123,3,TRUE)), (VLOOKUP(3,Tablas!$A$1121:$G$1123,3,TRUE)))))))))))), (IF($F$24=6,(IF(6-$F$26=0, (VLOOKUP(2,Tablas!$A$1121:$G$1123,3,TRUE)), (IF(6-$F$26=1, (VLOOKUP(2,Tablas!$A$1121:$G$1123,3,TRUE)), (IF(6-$F$26=2, (VLOOKUP(2,Tablas!$A$1121:$G$1123,3,TRUE)), (IF(6-$F$26=3, (VLOOKUP(3,Tablas!$A$1121:$G$1123,3,TRUE)), (IF(6-$F$26=4, (VLOOKUP(3,Tablas!$A$1121:$G$1123,3,TRUE)), (VLOOKUP(3,Tablas!$A$1121:$G$1123,3,TRUE)))))))))))), (IF($F$24>6,(IF(7-$F$26=0, (VLOOKUP(3,Tablas!$A$1121:$G$1123,3,TRUE)), (IF(7-$F$26=1, (VLOOKUP(3,Tablas!$A$1121:$G$1123,3,TRUE)), (IF(7-$F$26=2, (VLOOKUP(3,Tablas!$A$1121:$G$1123,3,TRUE)), (IF(7-$F$26=3, (VLOOKUP(3,Tablas!$A$1121:$G$1123,3,TRUE)), (IF(7-$F$26=4, (VLOOKUP(3,Tablas!$A$1121:$G$1123,3,TRUE)), (VLOOKUP(3,Tablas!$A$1121:$G$1123,3,TRUE)))))))))))), (IF($F$24=3,(IF(3-$F$26=0,0, (IF(3-$F$26=1,(VLOOKUP(1,Tablas!$A$1121:$G$1123,3,TRUE)), (IF(3-$F$26=2, (VLOOKUP(2,Tablas!$A$1121:$G$1123,3,TRUE)), (VLOOKUP(3,Tablas!$A$1121:$G$1123,3,TRUE)))))))), (IF($F$24=2,(IF(2-$F$26=0, 0, (IF(2-$F$26=1,(VLOOKUP(1,Tablas!$A$1121:$G$1123,3,TRUE)), (IF(2-$F$26=2, (VLOOKUP(2,Tablas!$A$1121:$G$1123,3,TRUE)), 0)))))), (IF($F$24=1,(IF(1-$F$26=0, 0, (IF(1-$F$26=1,(VLOOKUP(1,Tablas!$A$1121:$G$1123,3,TRUE)),0)))),0))))))))))))))))))) -> 0 | H59: =IF($F$22=1, (IF($F$24=0, 0, (IF($F$26>$F$24, (VLOOKUP($F$24,Tablas!$A$1121:$G$1123,4,TRUE)), (IF($F$24>4,(IF($F$26=0, (VLOOKUP(3,Tablas!$A$1121:$G$1123,4,TRUE)), (IF($F$26=1, (VLOOKUP(3,Tablas!$A$1121:$G$1123,4,TRUE)), (IF($F$26=2, (VLOOKUP(3,Tablas!$A$1121:$G$1123,4,TRUE)), (VLOOKUP(3,Tablas!$A$1121:$G$1123,4,TRUE)))))))), (IF($F$24=4,(IF(4-$F$26=0,(VLOOKUP(2,Tablas!$A$1121:$G$1123,4,TRUE)), (IF(4-$F$26=1,(VLOOKUP(2,Tablas!$A$1121:$G$1123,4,TRUE)), (IF(4-$F$26=2, (VLOOKUP(2,Tablas!$A$1121:$G$1123,4,TRUE)), (VLOOKUP(3,Tablas!$A$1121:$G$1123,4,TRUE)))))))), (IF($F$24=3,(IF(3-$F$26=0,(VLOOKUP(1,Tablas!$A$1121:$G$1123,4,TRUE)), (IF(3-$F$26=1,(VLOOKUP(1,Tablas!$A$1121:$G$1123,4,TRUE)), (IF(3-$F$26=2, (VLOOKUP(2,Tablas!$A$1121:$G$1123,4,TRUE)), (VLOOKUP(3,Tablas!$A$1121:$G$1123,4,TRUE)))))))), (IF($F$24=2,(IF(2-$F$26=0, 0, (IF(2-$F$26=1,(VLOOKUP(1,Tablas!$A$1121:$G$1123,4,TRUE)), (IF(2-$F$26=2, (VLOOKUP(2,Tablas!$A$1121:$G$1123,4,TRUE)), 0)))))), (IF($F$24=1,(IF(1-$F$26=0, 0, (IF(1-$F$26=1,(VLOOKUP(1,Tablas!$A$1121:$G$1123,4,TRUE)),0)))),0)))))))))))))), (IF($F$24=0, 0, (IF($F$26>$F$24, (VLOOKUP($F$24,Tablas!$A$1121:$G$1123,4,TRUE)), (IF($F$24=4,(IF(4-$F$26=0, 0, (IF(4-$F$26=1, (VLOOKUP(1,Tablas!$A$1121:$G$1123,4,TRUE)), (IF(4-$F$26=2, (VLOOKUP(2,Tablas!$A$1121:$G$1123,4,TRUE)), (IF(4-$F$26=3, (VLOOKUP(3,Tablas!$A$1121:$G$1123,4,TRUE)), (IF(4-$F$26=4, (VLOOKUP(3,Tablas!$A$1121:$G$1123,4,TRUE)), 0)))))))))), (IF($F$24=5,(IF(5-$F$26=0, (VLOOKUP(1,Tablas!$A$1121:$G$1123,4,TRUE)), (IF(5-$F$26=1, (VLOOKUP(1,Tablas!$A$1121:$G$1123,4,TRUE)), (IF(5-$F$26=2, (VLOOKUP(2,Tablas!$A$1121:$G$1123,4,TRUE)), (IF(5-$F$26=3, (VLOOKUP(3,Tablas!$A$1121:$G$1123,4,TRUE)), (IF(5-$F$26=4, (VLOOKUP(3,Tablas!$A$1121:$G$1123,4,TRUE)), (VLOOKUP(3,Tablas!$A$1121:$G$1123,4,TRUE)))))))))))), (IF($F$24=6,(IF(6-$F$26=0, (VLOOKUP(2,Tablas!$A$1121:$G$1123,4,TRUE)), (IF(6-$F$26=1, (VLOOKUP(2,Tablas!$A$1121:$G$1123,4,TRUE)), (IF(6-$F$26=2, (VLOOKUP(2,Tablas!$A$1121:$G$1123,4,TRUE)), (IF(6-$F$26=3, (VLOOKUP(3,Tablas!$A$1121:$G$1123,4,TRUE)), (IF(6-$F$26=4, (VLOOKUP(3,Tablas!$A$1121:$G$1123,4,TRUE)), (VLOOKUP(3,Tablas!$A$1121:$G$1123,4,TRUE)))))))))))), (IF($F$24>6,(IF(7-$F$26=0, (VLOOKUP(3,Tablas!$A$1121:$G$1123,4,TRUE)), (IF(7-$F$26=1, (VLOOKUP(3,Tablas!$A$1121:$G$1123,4,TRUE)), (IF(7-$F$26=2, (VLOOKUP(3,Tablas!$A$1121:$G$1123,4,TRUE)), (IF(7-$F$26=3, (VLOOKUP(3,Tablas!$A$1121:$G$1123,4,TRUE)), (IF(7-$F$26=4, (VLOOKUP(3,Tablas!$A$1121:$G$1123,4,TRUE)), (VLOOKUP(3,Tablas!$A$1121:$G$1123,4,TRUE)))))))))))), (IF($F$24=3,(IF(3-$F$26=0,0, (IF(3-$F$26=1,(VLOOKUP(1,Tablas!$A$1121:$G$1123,4,TRUE)), (IF(3-$F$26=2, (VLOOKUP(2,Tablas!$A$1121:$G$1123,4,TRUE)), (VLOOKUP(3,Tablas!$A$1121:$G$1123,4,TRUE)))))))), (IF($F$24=2,(IF(2-$F$26=0, 0, (IF(2-$F$26=1,(VLOOKUP(1,Tablas!$A$1121:$G$1123,4,TRUE)), (IF(2-$F$26=2, (VLOOKUP(2,Tablas!$A$1121:$G$1123,4,TRUE)), 0)))))), (IF($F$24=1,(IF(1-$F$26=0, 0, (IF(1-$F$26=1,(VLOOKUP(1,Tablas!$A$1121:$G$1123,4,TRUE)),0)))),0))))))))))))))))))) -> 0 | I59: =IF($F$22=1, (IF($F$24=0, 0, (IF($F$26>$F$24, (VLOOKUP($F$24,Tablas!$A$1121:$G$1123,5,TRUE)), (IF($F$24>4,(IF($F$26=0, (VLOOKUP(3,Tablas!$A$1121:$G$1123,5,TRUE)), (IF($F$26=1, (VLOOKUP(3,Tablas!$A$1121:$G$1123,5,TRUE)), (IF($F$26=2, (VLOOKUP(3,Tablas!$A$1121:$G$1123,5,TRUE)), (VLOOKUP(3,Tablas!$A$1121:$G$1123,5,TRUE)))))))), (IF($F$24=4,(IF(4-$F$26=0,(VLOOKUP(2,Tablas!$A$1121:$G$1123,5,TRUE)), (IF(4-$F$26=1,(VLOOKUP(2,Tablas!$A$1121:$G$1123,5,TRUE)), (IF(4-$F$26=2, (VLOOKUP(2,Tablas!$A$1121:$G$1123,5,TRUE)), (VLOOKUP(3,Tablas!$A$1121:$G$1123,5,TRUE)))))))), (IF($F$24=3,(IF(3-$F$26=0,(VLOOKUP(1,Tablas!$A$1121:$G$1123,5,TRUE)), (IF(3-$F$26=1,(VLOOKUP(1,Tablas!$A$1121:$G$1123,5,TRUE)), (IF(3-$F$26=2, (VLOOKUP(2,Tablas!$A$1121:$G$1123,5,TRUE)), (VLOOKUP(3,Tablas!$A$1121:$G$1123,5,TRUE)))))))), (IF($F$24=2,(IF(2-$F$26=0, 0, (IF(2-$F$26=1,(VLOOKUP(1,Tablas!$A$1121:$G$1123,5,TRUE)), (IF(2-$F$26=2, (VLOOKUP(2,Tablas!$A$1121:$G$1123,5,TRUE)), 0)))))), (IF($F$24=1,(IF(1-$F$26=0, 0, (IF(1-$F$26=1,(VLOOKUP(1,Tablas!$A$1121:$G$1123,5,TRUE)),0)))),0)))))))))))))), (IF($F$24=0, 0, (IF($F$26>$F$24, (VLOOKUP($F$24,Tablas!$A$1121:$G$1123,5,TRUE)), (IF($F$24=4,(IF(4-$F$26=0, 0, (IF(4-$F$26=1, (VLOOKUP(1,Tablas!$A$1121:$G$1123,5,TRUE)), (IF(4-$F$26=2, (VLOOKUP(2,Tablas!$A$1121:$G$1123,5,TRUE)), (IF(4-$F$26=3, (VLOOKUP(3,Tablas!$A$1121:$G$1123,5,TRUE)), (IF(4-$F$26=4, (VLOOKUP(3,Tablas!$A$1121:$G$1123,5,TRUE)), 0)))))))))), (IF($F$24=5,(IF(5-$F$26=0, (VLOOKUP(1,Tablas!$A$1121:$G$1123,5,TRUE)), (IF(5-$F$26=1, (VLOOKUP(1,Tablas!$A$1121:$G$1123,5,TRUE)), (IF(5-$F$26=2, (VLOOKUP(2,Tablas!$A$1121:$G$1123,5,TRUE)), (IF(5-$F$26=3, (VLOOKUP(3,Tablas!$A$1121:$G$1123,5,TRUE)), (IF(5-$F$26=4, (VLOOKUP(3,Tablas!$A$1121:$G$1123,5,TRUE)), (VLOOKUP(3,Tablas!$A$1121:$G$1123,5,TRUE)))))))))))), (IF($F$24=6,(IF(6-$F$26=0, (VLOOKUP(2,Tablas!$A$1121:$G$1123,5,TRUE)), (IF(6-$F$26=1, (VLOOKUP(2,Tablas!$A$1121:$G$1123,5,TRUE)), (IF(6-$F$26=2, (VLOOKUP(2,Tablas!$A$1121:$G$1123,5,TRUE)), (IF(6-$F$26=3, (VLOOKUP(3,Tablas!$A$1121:$G$1123,5,TRUE)), (IF(6-$F$26=4, (VLOOKUP(3,Tablas!$A$1121:$G$1123,5,TRUE)), (VLOOKUP(3,Tablas!$A$1121:$G$1123,5,TRUE)))))))))))), (IF($F$24>6,(IF(7-$F$26=0, (VLOOKUP(3,Tablas!$A$1121:$G$1123,5,TRUE)), (IF(7-$F$26=1, (VLOOKUP(3,Tablas!$A$1121:$G$1123,5,TRUE)), (IF(7-$F$26=2, (VLOOKUP(3,Tablas!$A$1121:$G$1123,5,TRUE)), (IF(7-$F$26=3, (VLOOKUP(3,Tablas!$A$1121:$G$1123,5,TRUE)), (IF(7-$F$26=4, (VLOOKUP(3,Tablas!$A$1121:$G$1123,5,TRUE)), (VLOOKUP(3,Tablas!$A$1121:$G$1123,5,TRUE)))))))))))), (IF($F$24=3,(IF(3-$F$26=0,0, (IF(3-$F$26=1,(VLOOKUP(1,Tablas!$A$1121:$G$1123,5,TRUE)), (IF(3-$F$26=2, (VLOOKUP(2,Tablas!$A$1121:$G$1123,5,TRUE)), (VLOOKUP(3,Tablas!$A$1121:$G$1123,5,TRUE)))))))), (IF($F$24=2,(IF(2-$F$26=0, 0, (IF(2-$F$26=1,(VLOOKUP(1,Tablas!$A$1121:$G$1123,5,TRUE)), (IF(2-$F$26=2, (VLOOKUP(2,Tablas!$A$1121:$G$1123,5,TRUE)), 0)))))), (IF($F$24=1,(IF(1-$F$26=0, 0, (IF(1-$F$26=1,(VLOOKUP(1,Tablas!$A$1121:$G$1123,5,TRUE)),0)))),0))))))))))))))))))) -> 0
E60: Total de Prima neta | G60: =SUM(G57:G59) -> 4542.175 | H60: =SUM(H57:H59) -> 2930.95 | I60: 2433.75
E61: Tarifa administrativa anual | G61: 75 | H61: 75 | I61: 75
E62: VAT (5%) : | G62: =(G33+G34+G35)*5%/4 -> 206.4625 | H62: =(H33+H34+H35)*5%/4 -> 133.225 | I62: 110.625
E63: ITBMS (7%) | G63: =+G61*7% + ((G33+G34+G35)*0.1*0.07)/4 -> 34.15475 | H63: =+H61*7% + ((H33+H34+H35)*0.1*0.07)/4 -> 23.9015 | I63: 20.7375
E64: TOTAL de primera cuota | G64: =SUM(G60:G63) -> 4857.79225 | H64: =SUM(H60:H63) -> 3163.0765 | I64: 2640.1125
E65: Costo de tarifa trimestral 2 a 4 | G65: =(G60 + G62)+((G33+G34+G35)*0.1*0.07)/4 -> 4777.54225 | H65: =(H60 + H62)+((H33+H34+H35)*0.1*0.07)/4 -> 3082.8265 | I65: 2559.8625
E66: TOTAL ANUAL | G66: =G64+(G65*3) -> 19190.419 | H66: =H64+(H65*3) -> 12411.556 | I66: 10319.7
E67: Ahorros en tarifas de prima para niños | G67: =IF($F$22=1,IF($F$24=0,0,IF($F$26=0,0,IF($F$26=1,(VLOOKUP(1,Tablas!$A$1121:$G$1123,3,TRUE)),(VLOOKUP(2,Tablas!$A$1121:$G$1123,3,TRUE))))), IF($F$24=0,0,IF($F$26=0,0,IF($F$26=1,(VLOOKUP(1,Tablas!$A$1121:$G$1123,3,TRUE)),IF($F$26=2,(VLOOKUP(2,Tablas!$A$1121:$G$1123,3,TRUE)), (VLOOKUP(3,Tablas!$A$1121:$G$1123,3,TRUE))))))) -> 0 | H67: =IF($F$22=1,IF($F$24=0,0,IF($F$26=0,0,IF($F$26=1,(VLOOKUP(1,Tablas!$A$1121:$G$1123,4,TRUE)),(VLOOKUP(2,Tablas!$A$1121:$G$1123,4,TRUE))))), IF($F$24=0,0,IF($F$26=0,0,IF($F$26=1,(VLOOKUP(1,Tablas!$A$1121:$G$1123,4,TRUE)),IF($F$26=2,(VLOOKUP(2,Tablas!$A$1121:$G$1123,4,TRUE)), (VLOOKUP(3,Tablas!$A$1121:$G$1123,4,TRUE))))))) -> 0 | I67: =IF($F$22=1,IF($F$24=0,0,IF($F$26=0,0,IF($F$26=1,(VLOOKUP(1,Tablas!$A$1121:$G$1123,5,TRUE)),(VLOOKUP(2,Tablas!$A$1121:$G$1123,5,TRUE))))), IF($F$24=0,0,IF($F$26=0,0,IF($F$26=1,(VLOOKUP(1,Tablas!$A$1121:$G$1123,5,TRUE)),IF($F$26=2,(VLOOKUP(2,Tablas!$A$1121:$G$1123,5,TRUE)), (VLOOKUP(3,Tablas!$A$1121:$G$1123,5,TRUE))))))) -> 0
E69: Tarifas mensuales
E70: Prima para Asegurado Titular | G70: =VLOOKUP($I$22,Tablas!$A$979:$G$1045,3,TRUE) -> 1541.586667 | H70: =VLOOKUP($I$22,Tablas!$A$979:$G$1045,4,TRUE) -> 994.7466667 | I70: =VLOOKUP($I$22,Tablas!$A$979:$G$1045,5,TRUE) -> 826
E71: Prima para conyuge | G71: =IF($F$22=1,0,(VLOOKUP($I$24,Tablas!$A$979:$G$1045,3,TRUE))) -> 0 | H71: =IF($F$22=1,0,(VLOOKUP($I$24,Tablas!$A$979:$G$1045,4,TRUE))) -> 0 | I71: =IF($F$22=1,0,(VLOOKUP($I$24,Tablas!$A$979:$G$1045,5,TRUE))) -> 0
E72: Prima para hijo (s) | G72: =IF($F$22=1, (IF($F$24=0, 0, (IF($F$26>$F$24, (VLOOKUP($F$24,Tablas!$A$1046:$G$1048,3,TRUE)), (IF($F$24>4,(IF($F$26=0, (VLOOKUP(3,Tablas!$A$1046:$G$1048,3,TRUE)), (IF($F$26=1, (VLOOKUP(3,Tablas!$A$1046:$G$1048,3,TRUE)), (IF($F$26=2, (VLOOKUP(3,Tablas!$A$1046:$G$1048,3,TRUE)), (VLOOKUP(3,Tablas!$A$1046:$G$1048,3,TRUE)))))))), (IF($F$24=4,(IF(4-$F$26=0,(VLOOKUP(2,Tablas!$A$1046:$G$1048,3,TRUE)), (IF(4-$F$26=1,(VLOOKUP(2,Tablas!$A$1046:$G$1048,3,TRUE)), (IF(4-$F$26=2, (VLOOKUP(2,Tablas!$A$1046:$G$1048,3,TRUE)), (VLOOKUP(3,Tablas!$A$1046:$G$1048,3,TRUE)))))))), (IF($F$24=3,(IF(3-$F$26=0,(VLOOKUP(1,Tablas!$A$1046:$G$1048,3,TRUE)), (IF(3-$F$26=1,(VLOOKUP(1,Tablas!$A$1046:$G$1048,3,TRUE)), (IF(3-$F$26=2, (VLOOKUP(2,Tablas!$A$1046:$G$1048,3,TRUE)), (VLOOKUP(3,Tablas!$A$1046:$G$1048,3,TRUE)))))))), (IF($F$24=2,(IF(2-$F$26=0, 0, (IF(2-$F$26=1,(VLOOKUP(1,Tablas!$A$1046:$G$1048,3,TRUE)), (IF(2-$F$26=2, (VLOOKUP(2,Tablas!$A$1046:$G$1048,3,TRUE)), 0)))))), (IF($F$24=1,(IF(1-$F$26=0, 0, (IF(1-$F$26=1,(VLOOKUP(1,Tablas!$A$1046:$G$1048,3,TRUE)),0)))),0)))))))))))))), (IF($F$24=0, 0, (IF($F$26>$F$24, (VLOOKUP($F$24,Tablas!$A$1046:$G$1048,3,TRUE)), (IF($F$24=4,(IF(4-$F$26=0, 0, (IF(4-$F$26=1, (VLOOKUP(1,Tablas!$A$1046:$G$1048,3,TRUE)), (IF(4-$F$26=2, (VLOOKUP(2,Tablas!$A$1046:$G$1048,3,TRUE)), (IF(4-$F$26=3, (VLOOKUP(3,Tablas!$A$1046:$G$1048,3,TRUE)), (IF(4-$F$26=4, (VLOOKUP(3,Tablas!$A$1046:$G$1048,3,TRUE)), 0)))))))))), (IF($F$24=5,(IF(5-$F$26=0, (VLOOKUP(1,Tablas!$A$1046:$G$1048,3,TRUE)), (IF(5-$F$26=1, (VLOOKUP(1,Tablas!$A$1046:$G$1048,3,TRUE)), (IF(5-$F$26=2, (VLOOKUP(2,Tablas!$A$1046:$G$1048,3,TRUE)), (IF(5-$F$26=3, (VLOOKUP(3,Tablas!$A$1046:$G$1048,3,TRUE)), (IF(5-$F$26=4, (VLOOKUP(3,Tablas!$A$1046:$G$1048,3,TRUE)), (VLOOKUP(3,Tablas!$A$1046:$G$1048,3,TRUE)))))))))))), (IF($F$24=6,(IF(6-$F$26=0, (VLOOKUP(2,Tablas!$A$1046:$G$1048,3,TRUE)), (IF(6-$F$26=1, (VLOOKUP(2,Tablas!$A$1046:$G$1048,3,TRUE)), (IF(6-$F$26=2, (VLOOKUP(2,Tablas!$A$1046:$G$1048,3,TRUE)), (IF(6-$F$26=3, (VLOOKUP(3,Tablas!$A$1046:$G$1048,3,TRUE)), (IF(6-$F$26=4, (VLOOKUP(3,Tablas!$A$1046:$G$1048,3,TRUE)), (VLOOKUP(3,Tablas!$A$1046:$G$1048,3,TRUE)))))))))))), (IF($F$24>6,(IF(7-$F$26=0, (VLOOKUP(3,Tablas!$A$1046:$G$1048,3,TRUE)), (IF(7-$F$26=1, (VLOOKUP(3,Tablas!$A$1046:$G$1048,3,TRUE)), (IF(7-$F$26=2, (VLOOKUP(3,Tablas!$A$1046:$G$1048,3,TRUE)), (IF(7-$F$26=3, (VLOOKUP(3,Tablas!$A$1046:$G$1048,3,TRUE)), (IF(7-$F$26=4, (VLOOKUP(3,Tablas!$A$1046:$G$1048,3,TRUE)), (VLOOKUP(3,Tablas!$A$1046:$G$1048,3,TRUE)))))))))))), (IF($F$24=3,(IF(3-$F$26=0,0, (IF(3-$F$26=1,(VLOOKUP(1,Tablas!$A$1046:$G$1048,3,TRUE)), (IF(3-$F$26=2, (VLOOKUP(2,Tablas!$A$1046:$G$1048,3,TRUE)), (VLOOKUP(3,Tablas!$A$1046:$G$1048,3,TRUE)))))))), (IF($F$24=2,(IF(2-$F$26=0, 0, (IF(2-$F$26=1,(VLOOKUP(1,Tablas!$A$1046:$G$1048,3,TRUE)), (IF(2-$F$26=2, (VLOOKUP(2,Tablas!$A$1046:$G$1048,3,TRUE)), 0)))))), (IF($F$24=1,(IF(1-$F$26=0, 0, (IF(1-$F$26=1,(VLOOKUP(1,Tablas!$A$1046:$G$1048,3,TRUE)),0)))),0))))))))))))))))))) -> 0 | H72: =IF($F$22=1, (IF($F$24=0, 0, (IF($F$26>$F$24, (VLOOKUP($F$24,Tablas!$A$1046:$G$1048,4,TRUE)), (IF($F$24>4,(IF($F$26=0, (VLOOKUP(3,Tablas!$A$1046:$G$1048,4,TRUE)), (IF($F$26=1, (VLOOKUP(3,Tablas!$A$1046:$G$1048,4,TRUE)), (IF($F$26=2, (VLOOKUP(3,Tablas!$A$1046:$G$1048,4,TRUE)), (VLOOKUP(3,Tablas!$A$1046:$G$1048,4,TRUE)))))))), (IF($F$24=4,(IF(4-$F$26=0,(VLOOKUP(2,Tablas!$A$1046:$G$1048,4,TRUE)), (IF(4-$F$26=1,(VLOOKUP(2,Tablas!$A$1046:$G$1048,4,TRUE)), (IF(4-$F$26=2, (VLOOKUP(2,Tablas!$A$1046:$G$1048,4,TRUE)), (VLOOKUP(3,Tablas!$A$1046:$G$1048,4,TRUE)))))))), (IF($F$24=3,(IF(3-$F$26=0,(VLOOKUP(1,Tablas!$A$1046:$G$1048,4,TRUE)), (IF(3-$F$26=1,(VLOOKUP(1,Tablas!$A$1046:$G$1048,4,TRUE)), (IF(3-$F$26=2, (VLOOKUP(2,Tablas!$A$1046:$G$1048,4,TRUE)), (VLOOKUP(3,Tablas!$A$1046:$G$1048,4,TRUE)))))))), (IF($F$24=2,(IF(2-$F$26=0, 0, (IF(2-$F$26=1,(VLOOKUP(1,Tablas!$A$1046:$G$1048,4,TRUE)), (IF(2-$F$26=2, (VLOOKUP(2,Tablas!$A$1046:$G$1048,4,TRUE)), 0)))))), (IF($F$24=1,(IF(1-$F$26=0, 0, (IF(1-$F$26=1,(VLOOKUP(1,Tablas!$A$1046:$G$1048,4,TRUE)),0)))),0)))))))))))))), (IF($F$24=0, 0, (IF($F$26>$F$24, (VLOOKUP($F$24,Tablas!$A$1046:$G$1048,4,TRUE)), (IF($F$24=4,(IF(4-$F$26=0, 0, (IF(4-$F$26=1, (VLOOKUP(1,Tablas!$A$1046:$G$1048,4,TRUE)), (IF(4-$F$26=2, (VLOOKUP(2,Tablas!$A$1046:$G$1048,4,TRUE)), (IF(4-$F$26=3, (VLOOKUP(3,Tablas!$A$1046:$G$1048,4,TRUE)), (IF(4-$F$26=4, (VLOOKUP(3,Tablas!$A$1046:$G$1048,4,TRUE)), 0)))))))))), (IF($F$24=5,(IF(5-$F$26=0, (VLOOKUP(1,Tablas!$A$1046:$G$1048,4,TRUE)), (IF(5-$F$26=1, (VLOOKUP(1,Tablas!$A$1046:$G$1048,4,TRUE)), (IF(5-$F$26=2, (VLOOKUP(2,Tablas!$A$1046:$G$1048,4,TRUE)), (IF(5-$F$26=3, (VLOOKUP(3,Tablas!$A$1046:$G$1048,4,TRUE)), (IF(5-$F$26=4, (VLOOKUP(3,Tablas!$A$1046:$G$1048,4,TRUE)), (VLOOKUP(3,Tablas!$A$1046:$G$1048,4,TRUE)))))))))))), (IF($F$24=6,(IF(6-$F$26=0, (VLOOKUP(2,Tablas!$A$1046:$G$1048,4,TRUE)), (IF(6-$F$26=1, (VLOOKUP(2,Tablas!$A$1046:$G$1048,4,TRUE)), (IF(6-$F$26=2, (VLOOKUP(2,Tablas!$A$1046:$G$1048,4,TRUE)), (IF(6-$F$26=3, (VLOOKUP(3,Tablas!$A$1046:$G$1048,4,TRUE)), (IF(6-$F$26=4, (VLOOKUP(3,Tablas!$A$1046:$G$1048,4,TRUE)), (VLOOKUP(3,Tablas!$A$1046:$G$1048,4,TRUE)))))))))))), (IF($F$24>6,(IF(7-$F$26=0, (VLOOKUP(3,Tablas!$A$1046:$G$1048,4,TRUE)), (IF(7-$F$26=1, (VLOOKUP(3,Tablas!$A$1046:$G$1048,4,TRUE)), (IF(7-$F$26=2, (VLOOKUP(3,Tablas!$A$1046:$G$1048,4,TRUE)), (IF(7-$F$26=3, (VLOOKUP(3,Tablas!$A$1046:$G$1048,4,TRUE)), (IF(7-$F$26=4, (VLOOKUP(3,Tablas!$A$1046:$G$1048,4,TRUE)), (VLOOKUP(3,Tablas!$A$1046:$G$1048,4,TRUE)))))))))))), (IF($F$24=3,(IF(3-$F$26=0,0, (IF(3-$F$26=1,(VLOOKUP(1,Tablas!$A$1046:$G$1048,4,TRUE)), (IF(3-$F$26=2, (VLOOKUP(2,Tablas!$A$1046:$G$1048,4,TRUE)), (VLOOKUP(3,Tablas!$A$1046:$G$1048,4,TRUE)))))))), (IF($F$24=2,(IF(2-$F$26=0, 0, (IF(2-$F$26=1,(VLOOKUP(1,Tablas!$A$1046:$G$1048,4,TRUE)), (IF(2-$F$26=2, (VLOOKUP(2,Tablas!$A$1046:$G$1048,4,TRUE)), 0)))))), (IF($F$24=1,(IF(1-$F$26=0, 0, (IF(1-$F$26=1,(VLOOKUP(1,Tablas!$A$1046:$G$1048,4,TRUE)),0)))),0))))))))))))))))))) -> 0 | I72: =IF($F$22=1, (IF($F$24=0, 0, (IF($F$26>$F$24, (VLOOKUP($F$24,Tablas!$A$1046:$G$1048,5,TRUE)), (IF($F$24>4,(IF($F$26=0, (VLOOKUP(3,Tablas!$A$1046:$G$1048,5,TRUE)), (IF($F$26=1, (VLOOKUP(3,Tablas!$A$1046:$G$1048,5,TRUE)), (IF($F$26=2, (VLOOKUP(3,Tablas!$A$1046:$G$1048,5,TRUE)), (VLOOKUP(3,Tablas!$A$1046:$G$1048,5,TRUE)))))))), (IF($F$24=4,(IF(4-$F$26=0,(VLOOKUP(2,Tablas!$A$1046:$G$1048,5,TRUE)), (IF(4-$F$26=1,(VLOOKUP(2,Tablas!$A$1046:$G$1048,5,TRUE)), (IF(4-$F$26=2, (VLOOKUP(2,Tablas!$A$1046:$G$1048,5,TRUE)), (VLOOKUP(3,Tablas!$A$1046:$G$1048,5,TRUE)))))))), (IF($F$24=3,(IF(3-$F$26=0,(VLOOKUP(1,Tablas!$A$1046:$G$1048,5,TRUE)), (IF(3-$F$26=1,(VLOOKUP(1,Tablas!$A$1046:$G$1048,5,TRUE)), (IF(3-$F$26=2, (VLOOKUP(2,Tablas!$A$1046:$G$1048,5,TRUE)), (VLOOKUP(3,Tablas!$A$1046:$G$1048,5,TRUE)))))))), (IF($F$24=2,(IF(2-$F$26=0, 0, (IF(2-$F$26=1,(VLOOKUP(1,Tablas!$A$1046:$G$1048,5,TRUE)), (IF(2-$F$26=2, (VLOOKUP(2,Tablas!$A$1046:$G$1048,5,TRUE)), 0)))))), (IF($F$24=1,(IF(1-$F$26=0, 0, (IF(1-$F$26=1,(VLOOKUP(1,Tablas!$A$1046:$G$1048,5,TRUE)),0)))),0)))))))))))))), (IF($F$24=0, 0, (IF($F$26>$F$24, (VLOOKUP($F$24,Tablas!$A$1046:$G$1048,5,TRUE)), (IF($F$24=4,(IF(4-$F$26=0, 0, (IF(4-$F$26=1, (VLOOKUP(1,Tablas!$A$1046:$G$1048,5,TRUE)), (IF(4-$F$26=2, (VLOOKUP(2,Tablas!$A$1046:$G$1048,5,TRUE)), (IF(4-$F$26=3, (VLOOKUP(3,Tablas!$A$1046:$G$1048,5,TRUE)), (IF(4-$F$26=4, (VLOOKUP(3,Tablas!$A$1046:$G$1048,5,TRUE)), 0)))))))))), (IF($F$24=5,(IF(5-$F$26=0, (VLOOKUP(1,Tablas!$A$1046:$G$1048,5,TRUE)), (IF(5-$F$26=1, (VLOOKUP(1,Tablas!$A$1046:$G$1048,5,TRUE)), (IF(5-$F$26=2, (VLOOKUP(2,Tablas!$A$1046:$G$1048,5,TRUE)), (IF(5-$F$26=3, (VLOOKUP(3,Tablas!$A$1046:$G$1048,5,TRUE)), (IF(5-$F$26=4, (VLOOKUP(3,Tablas!$A$1046:$G$1048,5,TRUE)), (VLOOKUP(3,Tablas!$A$1046:$G$1048,5,TRUE)))))))))))), (IF($F$24=6,(IF(6-$F$26=0, (VLOOKUP(2,Tablas!$A$1046:$G$1048,5,TRUE)), (IF(6-$F$26=1, (VLOOKUP(2,Tablas!$A$1046:$G$1048,5,TRUE)), (IF(6-$F$26=2, (VLOOKUP(2,Tablas!$A$1046:$G$1048,5,TRUE)), (IF(6-$F$26=3, (VLOOKUP(3,Tablas!$A$1046:$G$1048,5,TRUE)), (IF(6-$F$26=4, (VLOOKUP(3,Tablas!$A$1046:$G$1048,5,TRUE)), (VLOOKUP(3,Tablas!$A$1046:$G$1048,5,TRUE)))))))))))), (IF($F$24>6,(IF(7-$F$26=0, (VLOOKUP(3,Tablas!$A$1046:$G$1048,5,TRUE)), (IF(7-$F$26=1, (VLOOKUP(3,Tablas!$A$1046:$G$1048,5,TRUE)), (IF(7-$F$26=2, (VLOOKUP(3,Tablas!$A$1046:$G$1048,5,TRUE)), (IF(7-$F$26=3, (VLOOKUP(3,Tablas!$A$1046:$G$1048,5,TRUE)), (IF(7-$F$26=4, (VLOOKUP(3,Tablas!$A$1046:$G$1048,5,TRUE)), (VLOOKUP(3,Tablas!$A$1046:$G$1048,5,TRUE)))))))))))), (IF($F$24=3,(IF(3-$F$26=0,0, (IF(3-$F$26=1,(VLOOKUP(1,Tablas!$A$1046:$G$1048,5,TRUE)), (IF(3-$F$26=2, (VLOOKUP(2,Tablas!$A$1046:$G$1048,5,TRUE)), (VLOOKUP(3,Tablas!$A$1046:$G$1048,5,TRUE)))))))), (IF($F$24=2,(IF(2-$F$26=0, 0, (IF(2-$F$26=1,(VLOOKUP(1,Tablas!$A$1046:$G$1048,5,TRUE)), (IF(2-$F$26=2, (VLOOKUP(2,Tablas!$A$1046:$G$1048,5,TRUE)), 0)))))), (IF($F$24=1,(IF(1-$F$26=0, 0, (IF(1-$F$26=1,(VLOOKUP(1,Tablas!$A$1046:$G$1048,5,TRUE)),0)))),0))))))))))))))))))) -> 0
E73: Total de Prima neta | G73: =SUM(G70:G72) -> 1541.586667 | H73: =SUM(H70:H72) -> 994.7466667 | I73: 826
E74: Tarifa administrativa anual | G74: 75 | H74: 75 | I74: 75
E75: VAT (5%) : | G75: =(G33+G34+G35)*5%/12 -> 68.82083333 | H75: =(H33+H34+H35)*5%/12 -> 44.40833333 | I75: 36.875
E76: ITBMS (7%) | G76: =+G74*7% + ((G33+G34+G35)*0.12*0.07)/12 -> 16.8119 | H76: =+H74*7% + ((H33+H34+H35)*0.12*0.07)/12 -> 12.7106 | I76: 11.445
E77: TOTAL de primera cuota | G77: =SUM(G73:G76) -> 1702.2194 | H77: =SUM(H73:H76) -> 1126.8656 | I77: 949.32
E78: Costo de Tarifa mensual de 2 a 12 | G78: =(G73 + G75)+((G33+G34+G35)*0.12*0.07)/12 -> 1621.9694 | H78: =(H73 + H75)+((H33+H34+H35)*0.12*0.07)/12 -> 1046.6156 | I78: 869.07
E79: TOTAL ANUAL | G79: =G77+(G78*11) -> 19543.8828 | H79: =H77+(H78*11) -> 12639.6372 | I79: 10509.09
E80: Ahorros en tarifas de prima para niños | G80: =IF($F$22=1,IF($F$24=0,0,IF($F$26=0,0,IF($F$26=1,(VLOOKUP(1,Tablas!$A$1046:$G$1048,3,TRUE)),(VLOOKUP(2,Tablas!$A$1046:$G$1048,3,TRUE))))), IF($F$24=0,0,IF($F$26=0,0,IF($F$26=1,(VLOOKUP(1,Tablas!$A$1046:$G$1048,3,TRUE)),IF($F$26=2,(VLOOKUP(2,Tablas!$A$1046:$G$1048,3,TRUE)), (VLOOKUP(3,Tablas!$A$1046:$G$1048,3,TRUE))))))) -> 0 | H80: =IF($F$22=1,IF($F$24=0,0,IF($F$26=0,0,IF($F$26=1,(VLOOKUP(1,Tablas!$A$1046:$G$1048,4,TRUE)),(VLOOKUP(2,Tablas!$A$1046:$G$1048,4,TRUE))))), IF($F$24=0,0,IF($F$26=0,0,IF($F$26=1,(VLOOKUP(1,Tablas!$A$1046:$G$1048,4,TRUE)),IF($F$26=2,(VLOOKUP(2,Tablas!$A$1046:$G$1048,4,TRUE)), (VLOOKUP(3,Tablas!$A$1046:$G$1048,4,TRUE))))))) -> 0 | I80: =IF($F$22=1,IF($F$24=0,0,IF($F$26=0,0,IF($F$26=1,(VLOOKUP(1,Tablas!$A$1046:$G$1048,5,TRUE)),(VLOOKUP(2,Tablas!$A$1046:$G$1048,5,TRUE))))), IF($F$24=0,0,IF($F$26=0,0,IF($F$26=1,(VLOOKUP(1,Tablas!$A$1046:$G$1048,5,TRUE)),IF($F$26=2,(VLOOKUP(2,Tablas!$A$1046:$G$1048,5,TRUE)), (VLOOKUP(3,Tablas!$A$1046:$G$1048,5,TRUE))))))) -> 0
E82: Tarifas en US$ - Efectivas a partir del 1ro de Enero, 2020

Sheet Bupa Global Elite
A19: Bupa Global Elite Health Plan | D19: Nombre del Asegurado Titular | F19: =+'INGRESO DE DATOS'!$D$15 -> NOMBRE DEL CLIENTE
D21: Número de adultos en la póliza | F21: =+'INGRESO DE DATOS'!$D$17 -> 1 | H21: Edad del Asegurado Titular | I21: =+'INGRESO DE DATOS'!$D$19 -> 28
D23: Número de niños en la póliza | F23: =+'INGRESO DE DATOS'!$H$17 -> 0 | H23: Edad del/la conyuge | I23: =+'INGRESO DE DATOS'!$H$19 -> 46
D25: Número de niños menores de 10 años | F25: =+'INGRESO DE DATOS'!$D$44 -> 1 | G25: Fecha de la cotización : | H25: =NOW() -> 2021-11-01T13:36:43.400
H26: FALSE
E27: Deducibles | G27: PLAN 1 | H27: PLAN 2 | I27: PLAN 3 | J27: PLAN 4 | K27: PLAN 5
E28: En el país de residencia | G28: 1000 | H28: 2000 | I28: 3500 | J28: 5000 | K28: 10000
E29: Fuera del país de residencia | G29: 1000 | H29: 2000 | I29: 3500 | J29: 5000 | K29: 10000
E31: Tarifas anuales
E32: Prima para Asegurado Titular | G32: =VLOOKUP($I$21,Tablas!$A$6:$G$72,3,TRUE) -> 8691 | H32: =VLOOKUP($I$21,Tablas!$A$6:$G$72,4,TRUE) -> 6170 | I32: =VLOOKUP($I$21,Tablas!$A$6:$G$72,5,TRUE) -> 5148 | J32: =VLOOKUP($I$21,Tablas!$A$6:$G$72,6,TRUE) -> 4464 | K32: =VLOOKUP($I$21,Tablas!$A$6:$G$72,7,TRUE) -> 3461
E33: Prima para conyuge | G33: =IF($F$21=1,0,(VLOOKUP($I$23,Tablas!$A$6:$G$72,3,TRUE))) -> 0 | H33: =IF($F$21=1,0,(VLOOKUP($I$23,Tablas!$A$6:$G$72,4,TRUE))) -> 0 | I33: =IF($F$21=1,0,(VLOOKUP($I$23,Tablas!$A$6:$G$72,5,TRUE))) -> 0 | J33: =IF($F$21=1,0,(VLOOKUP($I$23,Tablas!$A$6:$G$72,6,TRUE))) -> 0 | K33: =IF($F$21=1,0,(VLOOKUP($I$23,Tablas!$A$6:$G$72,7,TRUE))) -> 0
E34: Prima para hijo (s) | G34: =IF($F$21=1, (IF($F$23=0, 0, (IF($F$25>$F$23, (VLOOKUP($F$23,Tablas!$A$73:$G$75,3,TRUE)), (IF($F$23>4,(IF($F$25=0, (VLOOKUP(3,Tablas!$A$73:$G$75,3,TRUE)), (IF($F$25=1, (VLOOKUP(3,Tablas!$A$73:$G$75,3,TRUE)), (IF($F$25=2, (VLOOKUP(3,Tablas!$A$73:$G$75,3,TRUE)), (VLOOKUP(3,Tablas!$A$73:$G$75,3,TRUE)))))))), (IF($F$23=4,(IF(4-$F$25=0,(VLOOKUP(2,Tablas!$A$73:$G$75,3,TRUE)), (IF(4-$F$25=1,(VLOOKUP(2,Tablas!$A$73:$G$75,3,TRUE)), (IF(4-$F$25=2, (VLOOKUP(2,Tablas!$A$73:$G$75,3,TRUE)), (VLOOKUP(3,Tablas!$A$73:$G$75,3,TRUE)))))))), (IF($F$23=3,(IF(3-$F$25=0,(VLOOKUP(1,Tablas!$A$73:$G$75,3,TRUE)), (IF(3-$F$25=1,(VLOOKUP(1,Tablas!$A$73:$G$75,3,TRUE)), (IF(3-$F$25=2, (VLOOKUP(2,Tablas!$A$73:$G$75,3,TRUE)), (VLOOKUP(3,Tablas!$A$73:$G$75,3,TRUE)))))))), (IF($F$23=2,(IF(2-$F$25=0, 0, (IF(2-$F$25=1,(VLOOKUP(1,Tablas!$A$73:$G$75,3,TRUE)), (IF(2-$F$25=2, (VLOOKUP(2,Tablas!$A$73:$G$75,3,TRUE)), 0)))))), (IF($F$23=1,(IF(1-$F$25=0, 0, (IF(1-$F$25=1,(VLOOKUP(1,Tablas!$A$73:$G$75,3,TRUE)),0)))),0)))))))))))))), (IF($F$23=0, 0, (IF($F$25>$F$23, (VLOOKUP($F$23,Tablas!$A$73:$G$75,3,TRUE)), (IF($F$23=4,(IF(4-$F$25=0, 0, (IF(4-$F$25=1, (VLOOKUP(1,Tablas!$A$73:$G$75,3,TRUE)), (IF(4-$F$25=2, (VLOOKUP(2,Tablas!$A$73:$G$75,3,TRUE)), (IF(4-$F$25=3, (VLOOKUP(3,Tablas!$A$73:$G$75,3,TRUE)), (IF(4-$F$25=4, (VLOOKUP(3,Tablas!$A$73:$G$75,3,TRUE)), 0)))))))))), (IF($F$23=5,(IF(5-$F$25=0, (VLOOKUP(1,Tablas!$A$73:$G$75,3,TRUE)), (IF(5-$F$25=1, (VLOOKUP(1,Tablas!$A$73:$G$75,3,TRUE)), (IF(5-$F$25=2, (VLOOKUP(2,Tablas!$A$73:$G$75,3,TRUE)), (IF(5-$F$25=3, (VLOOKUP(3,Tablas!$A$73:$G$75,3,TRUE)), (IF(5-$F$25=4, (VLOOKUP(3,Tablas!$A$73:$G$75,3,TRUE)), (VLOOKUP(3,Tablas!$A$73:$G$75,3,TRUE)))))))))))), (IF($F$23=6,(IF(6-$F$25=0, (VLOOKUP(2,Tablas!$A$73:$G$75,3,TRUE)), (IF(6-$F$25=1, (VLOOKUP(2,Tablas!$A$73:$G$75,3,TRUE)), (IF(6-$F$25=2, (VLOOKUP(2,Tablas!$A$73:$G$75,3,TRUE)), (IF(6-$F$25=3, (VLOOKUP(3,Tablas!$A$73:$G$75,3,TRUE)), (IF(6-$F$25=4, (VLOOKUP(3,Tablas!$A$73:$G$75,3,TRUE)), (VLOOKUP(3,Tablas!$A$73:$G$75,3,TRUE)))))))))))), (IF($F$23>6,(IF(7-$F$25=0, (VLOOKUP(3,Tablas!$A$73:$G$75,3,TRUE)), (IF(7-$F$25=1, (VLOOKUP(3,Tablas!$A$73:$G$75,3,TRUE)), (IF(7-$F$25=2, (VLOOKUP(3,Tablas!$A$73:$G$75,3,TRUE)), (IF(7-$F$25=3, (VLOOKUP(3,Tablas!$A$73:$G$75,3,TRUE)), (IF(7-$F$25=4, (VLOOKUP(3,Tablas!$A$73:$G$75,3,TRUE)), (VLOOKUP(3,Tablas!$A$73:$G$75,3,TRUE)))))))))))), (IF($F$23=3,(IF(3-$F$25=0,0, (IF(3-$F$25=1,(VLOOKUP(1,Tablas!$A$73:$G$75,3,TRUE)), (IF(3-$F$25=2, (VLOOKUP(2,Tablas!$A$73:$G$75,3,TRUE)), (VLOOKUP(3,Tablas!$A$73:$G$75,3,TRUE)))))))), (IF($F$23=2,(IF(2-$F$25=0, 0, (IF(2-$F$25=1,(VLOOKUP(1,Tablas!$A$73:$G$75,3,TRUE)), (IF(2-$F$25=2, (VLOOKUP(2,Tablas!$A$73:$G$75,3,TRUE)), 0)))))), (IF($F$23=1,(IF(1-$F$25=0, 0, (IF(1-$F$25=1,(VLOOKUP(1,Tablas!$A$73:$G$75,3,TRUE)),0)))),0))))))))))))))))))) -> 0 | H34: =IF($F$21=1, (IF($F$23=0, 0, (IF($F$25>$F$23, (VLOOKUP($F$23,Tablas!$A$73:$G$75,4,TRUE)), (IF($F$23>4,(IF($F$25=0, (VLOOKUP(3,Tablas!$A$73:$G$75,4,TRUE)), (IF($F$25=1, (VLOOKUP(3,Tablas!$A$73:$G$75,4,TRUE)), (IF($F$25=2, (VLOOKUP(3,Tablas!$A$73:$G$75,4,TRUE)), (VLOOKUP(3,Tablas!$A$73:$G$75,4,TRUE)))))))), (IF($F$23=4,(IF(4-$F$25=0,(VLOOKUP(2,Tablas!$A$73:$G$75,4,TRUE)), (IF(4-$F$25=1,(VLOOKUP(2,Tablas!$A$73:$G$75,4,TRUE)), (IF(4-$F$25=2, (VLOOKUP(2,Tablas!$A$73:$G$75,4,TRUE)), (VLOOKUP(3,Tablas!$A$73:$G$75,4,TRUE)))))))), (IF($F$23=3,(IF(3-$F$25=0,(VLOOKUP(1,Tablas!$A$73:$G$75,4,TRUE)), (IF(3-$F$25=1,(VLOOKUP(1,Tablas!$A$73:$G$75,4,TRUE)), (IF(3-$F$25=2, (VLOOKUP(2,Tablas!$A$73:$G$75,4,TRUE)), (VLOOKUP(3,Tablas!$A$73:$G$75,4,TRUE)))))))), (IF($F$23=2,(IF(2-$F$25=0, 0, (IF(2-$F$25=1,(VLOOKUP(1,Tablas!$A$73:$G$75,4,TRUE)), (IF(2-$F$25=2, (VLOOKUP(2,Tablas!$A$73:$G$75,4,TRUE)), 0)))))), (IF($F$23=1,(IF(1-$F$25=0, 0, (IF(1-$F$25=1,(VLOOKUP(1,Tablas!$A$73:$G$75,4,TRUE)),0)))),0)))))))))))))), (IF($F$23=0, 0, (IF($F$25>$F$23, (VLOOKUP($F$23,Tablas!$A$73:$G$75,4,TRUE)), (IF($F$23=4,(IF(4-$F$25=0, 0, (IF(4-$F$25=1, (VLOOKUP(1,Tablas!$A$73:$G$75,4,TRUE)), (IF(4-$F$25=2, (VLOOKUP(2,Tablas!$A$73:$G$75,4,TRUE)), (IF(4-$F$25=3, (VLOOKUP(3,Tablas!$A$73:$G$75,4,TRUE)), (IF(4-$F$25=4, (VLOOKUP(3,Tablas!$A$73:$G$75,4,TRUE)), 0)))))))))), (IF($F$23=5,(IF(5-$F$25=0, (VLOOKUP(1,Tablas!$A$73:$G$75,4,TRUE)), (IF(5-$F$25=1, (VLOOKUP(1,Tablas!$A$73:$G$75,4,TRUE)), (IF(5-$F$25=2, (VLOOKUP(2,Tablas!$A$73:$G$75,4,TRUE)), (IF(5-$F$25=3, (VLOOKUP(3,Tablas!$A$73:$G$75,4,TRUE)), (IF(5-$F$25=4, (VLOOKUP(3,Tablas!$A$73:$G$75,4,TRUE)), (VLOOKUP(3,Tablas!$A$73:$G$75,4,TRUE)))))))))))), (IF($F$23=6,(IF(6-$F$25=0, (VLOOKUP(2,Tablas!$A$73:$G$75,4,TRUE)), (IF(6-$F$25=1, (VLOOKUP(2,Tablas!$A$73:$G$75,4,TRUE)), (IF(6-$F$25=2, (VLOOKUP(2,Tablas!$A$73:$G$75,4,TRUE)), (IF(6-$F$25=3, (VLOOKUP(3,Tablas!$A$73:$G$75,4,TRUE)), (IF(6-$F$25=4, (VLOOKUP(3,Tablas!$A$73:$G$75,4,TRUE)), (VLOOKUP(3,Tablas!$A$73:$G$75,4,TRUE)))))))))))), (IF($F$23>6,(IF(7-$F$25=0, (VLOOKUP(3,Tablas!$A$73:$G$75,4,TRUE)), (IF(7-$F$25=1, (VLOOKUP(3,Tablas!$A$73:$G$75,4,TRUE)), (IF(7-$F$25=2, (VLOOKUP(3,Tablas!$A$73:$G$75,4,TRUE)), (IF(7-$F$25=3, (VLOOKUP(3,Tablas!$A$73:$G$75,4,TRUE)), (IF(7-$F$25=4, (VLOOKUP(3,Tablas!$A$73:$G$75,4,TRUE)), (VLOOKUP(3,Tablas!$A$73:$G$75,4,TRUE)))))))))))), (IF($F$23=3,(IF(3-$F$25=0,0, (IF(3-$F$25=1,(VLOOKUP(1,Tablas!$A$73:$G$75,4,TRUE)), (IF(3-$F$25=2, (VLOOKUP(2,Tablas!$A$73:$G$75,4,TRUE)), (VLOOKUP(3,Tablas!$A$73:$G$75,4,TRUE)))))))), (IF($F$23=2,(IF(2-$F$25=0, 0, (IF(2-$F$25=1,(VLOOKUP(1,Tablas!$A$73:$G$75,4,TRUE)), (IF(2-$F$25=2, (VLOOKUP(2,Tablas!$A$73:$G$75,4,TRUE)), 0)))))), (IF($F$23=1,(IF(1-$F$25=0, 0, (IF(1-$F$25=1,(VLOOKUP(1,Tablas!$A$73:$G$75,4,TRUE)),0)))),0))))))))))))))))))) -> 0 | I34: =IF($F$21=1, (IF($F$23=0, 0, (IF($F$25>$F$23, (VLOOKUP($F$23,Tablas!$A$73:$G$75,5,TRUE)), (IF($F$23>4,(IF($F$25=0, (VLOOKUP(3,Tablas!$A$73:$G$75,5,TRUE)), (IF($F$25=1, (VLOOKUP(3,Tablas!$A$73:$G$75,5,TRUE)), (IF($F$25=2, (VLOOKUP(3,Tablas!$A$73:$G$75,5,TRUE)), (VLOOKUP(3,Tablas!$A$73:$G$75,5,TRUE)))))))), (IF($F$23=4,(IF(4-$F$25=0,(VLOOKUP(2,Tablas!$A$73:$G$75,5,TRUE)), (IF(4-$F$25=1,(VLOOKUP(2,Tablas!$A$73:$G$75,5,TRUE)), (IF(4-$F$25=2, (VLOOKUP(2,Tablas!$A$73:$G$75,5,TRUE)), (VLOOKUP(3,Tablas!$A$73:$G$75,5,TRUE)))))))), (IF($F$23=3,(IF(3-$F$25=0,(VLOOKUP(1,Tablas!$A$73:$G$75,5,TRUE)), (IF(3-$F$25=1,(VLOOKUP(1,Tablas!$A$73:$G$75,5,TRUE)), (IF(3-$F$25=2, (VLOOKUP(2,Tablas!$A$73:$G$75,5,TRUE)), (VLOOKUP(3,Tablas!$A$73:$G$75,5,TRUE)))))))), (IF($F$23=2,(IF(2-$F$25=0, 0, (IF(2-$F$25=1,(VLOOKUP(1,Tablas!$A$73:$G$75,5,TRUE)), (IF(2-$F$25=2, (VLOOKUP(2,Tablas!$A$73:$G$75,5,TRUE)), 0)))))), (IF($F$23=1,(IF(1-$F$25=0, 0, (IF(1-$F$25=1,(VLOOKUP(1,Tablas!$A$73:$G$75,5,TRUE)),0)))),0)))))))))))))), (IF($F$23=0, 0, (IF($F$25>$F$23, (VLOOKUP($F$23,Tablas!$A$73:$G$75,5,TRUE)), (IF($F$23=4,(IF(4-$F$25=0, 0, (IF(4-$F$25=1, (VLOOKUP(1,Tablas!$A$73:$G$75,5,TRUE)), (IF(4-$F$25=2, (VLOOKUP(2,Tablas!$A$73:$G$75,5,TRUE)), (IF(4-$F$25=3, (VLOOKUP(3,Tablas!$A$73:$G$75,5,TRUE)), (IF(4-$F$25=4, (VLOOKUP(3,Tablas!$A$73:$G$75,5,TRUE)), 0)))))))))), (IF($F$23=5,(IF(5-$F$25=0, (VLOOKUP(1,Tablas!$A$73:$G$75,5,TRUE)), (IF(5-$F$25=1, (VLOOKUP(1,Tablas!$A$73:$G$75,5,TRUE)), (IF(5-$F$25=2, (VLOOKUP(2,Tablas!$A$73:$G$75,5,TRUE)), (IF(5-$F$25=3, (VLOOKUP(3,Tablas!$A$73:$G$75,5,TRUE)), (IF(5-$F$25=4, (VLOOKUP(3,Tablas!$A$73:$G$75,5,TRUE)), (VLOOKUP(3,Tablas!$A$73:$G$75,5,TRUE)))))))))))), (IF($F$23=6,(IF(6-$F$25=0, (VLOOKUP(2,Tablas!$A$73:$G$75,5,TRUE)), (IF(6-$F$25=1, (VLOOKUP(2,Tablas!$A$73:$G$75,5,TRUE)), (IF(6-$F$25=2, (VLOOKUP(2,Tablas!$A$73:$G$75,5,TRUE)), (IF(6-$F$25=3, (VLOOKUP(3,Tablas!$A$73:$G$75,5,TRUE)), (IF(6-$F$25=4, (VLOOKUP(3,Tablas!$A$73:$G$75,5,TRUE)), (VLOOKUP(3,Tablas!$A$73:$G$75,5,TRUE)))))))))))), (IF($F$23>6,(IF(7-$F$25=0, (VLOOKUP(3,Tablas!$A$73:$G$75,5,TRUE)), (IF(7-$F$25=1, (VLOOKUP(3,Tablas!$A$73:$G$75,5,TRUE)), (IF(7-$F$25=2, (VLOOKUP(3,Tablas!$A$73:$G$75,5,TRUE)), (IF(7-$F$25=3, (VLOOKUP(3,Tablas!$A$73:$G$75,5,TRUE)), (IF(7-$F$25=4, (VLOOKUP(3,Tablas!$A$73:$G$75,5,TRUE)), (VLOOKUP(3,Tablas!$A$73:$G$75,5,TRUE)))))))))))), (IF($F$23=3,(IF(3-$F$25=0,0, (IF(3-$F$25=1,(VLOOKUP(1,Tablas!$A$73:$G$75,5,TRUE)), (IF(3-$F$25=2, (VLOOKUP(2,Tablas!$A$73:$G$75,5,TRUE)), (VLOOKUP(3,Tablas!$A$73:$G$75,5,TRUE)))))))), (IF($F$23=2,(IF(2-$F$25=0, 0, (IF(2-$F$25=1,(VLOOKUP(1,Tablas!$A$73:$G$75,5,TRUE)), (IF(2-$F$25=2, (VLOOKUP(2,Tablas!$A$73:$G$75,5,TRUE)), 0)))))), (IF($F$23=1,(IF(1-$F$25=0, 0, (IF(1-$F$25=1,(VLOOKUP(1,Tablas!$A$73:$G$75,5,TRUE)),0)))),0))))))))))))))))))) -> 0 | J34: =IF($F$21=1, (IF($F$23=0, 0, (IF($F$25>$F$23, (VLOOKUP($F$23,Tablas!$A$73:$G$75,6,TRUE)), (IF($F$23>4,(IF($F$25=0, (VLOOKUP(3,Tablas!$A$73:$G$75,6,TRUE)), (IF($F$25=1, (VLOOKUP(3,Tablas!$A$73:$G$75,6,TRUE)), (IF($F$25=2, (VLOOKUP(3,Tablas!$A$73:$G$75,6,TRUE)), (VLOOKUP(3,Tablas!$A$73:$G$75,6,TRUE)))))))), (IF($F$23=4,(IF(4-$F$25=0,(VLOOKUP(2,Tablas!$A$73:$G$75,6,TRUE)), (IF(4-$F$25=1,(VLOOKUP(2,Tablas!$A$73:$G$75,6,TRUE)), (IF(4-$F$25=2, (VLOOKUP(2,Tablas!$A$73:$G$75,6,TRUE)), (VLOOKUP(3,Tablas!$A$73:$G$75,6,TRUE)))))))), (IF($F$23=3,(IF(3-$F$25=0,(VLOOKUP(1,Tablas!$A$73:$G$75,6,TRUE)), (IF(3-$F$25=1,(VLOOKUP(1,Tablas!$A$73:$G$75,6,TRUE)), (IF(3-$F$25=2, (VLOOKUP(2,Tablas!$A$73:$G$75,6,TRUE)), (VLOOKUP(3,Tablas!$A$73:$G$75,6,TRUE)))))))), (IF($F$23=2,(IF(2-$F$25=0, 0, (IF(2-$F$25=1,(VLOOKUP(1,Tablas!$A$73:$G$75,6,TRUE)), (IF(2-$F$25=2, (VLOOKUP(2,Tablas!$A$73:$G$75,6,TRUE)), 0)))))), (IF($F$23=1,(IF(1-$F$25=0, 0, (IF(1-$F$25=1,(VLOOKUP(1,Tablas!$A$73:$G$75,6,TRUE)),0)))),0)))))))))))))), (IF($F$23=0, 0, (IF($F$25>$F$23, (VLOOKUP($F$23,Tablas!$A$73:$G$75,6,TRUE)), (IF($F$23=4,(IF(4-$F$25=0, 0, (IF(4-$F$25=1, (VLOOKUP(1,Tablas!$A$73:$G$75,6,TRUE)), (IF(4-$F$25=2, (VLOOKUP(2,Tablas!$A$73:$G$75,6,TRUE)), (IF(4-$F$25=3, (VLOOKUP(3,Tablas!$A$73:$G$75,6,TRUE)), (IF(4-$F$25=4, (VLOOKUP(3,Tablas!$A$73:$G$75,6,TRUE)), 0)))))))))), (IF($F$23=5,(IF(5-$F$25=0, (VLOOKUP(1,Tablas!$A$73:$G$75,6,TRUE)), (IF(5-$F$25=1, (VLOOKUP(1,Tablas!$A$73:$G$75,6,TRUE)), (IF(5-$F$25=2, (VLOOKUP(2,Tablas!$A$73:$G$75,6,TRUE)), (IF(5-$F$25=3, (VLOOKUP(3,Tablas!$A$73:$G$75,6,TRUE)), (IF(5-$F$25=4, (VLOOKUP(3,Tablas!$A$73:$G$75,6,TRUE)), (VLOOKUP(3,Tablas!$A$73:$G$75,6,TRUE)))))))))))), (IF($F$23=6,(IF(6-$F$25=0, (VLOOKUP(2,Tablas!$A$73:$G$75,6,TRUE)), (IF(6-$F$25=1, (VLOOKUP(2,Tablas!$A$73:$G$75,6,TRUE)), (IF(6-$F$25=2, (VLOOKUP(2,Tablas!$A$73:$G$75,6,TRUE)), (IF(6-$F$25=3, (VLOOKUP(3,Tablas!$A$73:$G$75,6,TRUE)), (IF(6-$F$25=4, (VLOOKUP(3,Tablas!$A$73:$G$75,6,TRUE)), (VLOOKUP(3,Tablas!$A$73:$G$75,6,TRUE)))))))))))), (IF($F$23>6,(IF(7-$F$25=0, (VLOOKUP(3,Tablas!$A$73:$G$75,6,TRUE)), (IF(7-$F$25=1, (VLOOKUP(3,Tablas!$A$73:$G$75,6,TRUE)), (IF(7-$F$25=2, (VLOOKUP(3,Tablas!$A$73:$G$75,6,TRUE)), (IF(7-$F$25=3, (VLOOKUP(3,Tablas!$A$73:$G$75,6,TRUE)), (IF(7-$F$25=4, (VLOOKUP(3,Tablas!$A$73:$G$75,6,TRUE)), (VLOOKUP(3,Tablas!$A$73:$G$75,6,TRUE)))))))))))), (IF($F$23=3,(IF(3-$F$25=0,0, (IF(3-$F$25=1,(VLOOKUP(1,Tablas!$A$73:$G$75,6,TRUE)), (IF(3-$F$25=2, (VLOOKUP(2,Tablas!$A$73:$G$75,6,TRUE)), (VLOOKUP(3,Tablas!$A$73:$G$75,6,TRUE)))))))), (IF($F$23=2,(IF(2-$F$25=0, 0, (IF(2-$F$25=1,(VLOOKUP(1,Tablas!$A$73:$G$75,6,TRUE)), (IF(2-$F$25=2, (VLOOKUP(2,Tablas!$A$73:$G$75,6,TRUE)), 0)))))), (IF($F$23=1,(IF(1-$F$25=0, 0, (IF(1-$F$25=1,(VLOOKUP(1,Tablas!$A$73:$G$75,6,TRUE)),0)))),0))))))))))))))))))) -> 0 | K34: =IF($F$21=1, (IF($F$23=0, 0, (IF($F$25>$F$23, (VLOOKUP($F$23,Tablas!$A$73:$G$75,7,TRUE)), (IF($F$23>4,(IF($F$25=0, (VLOOKUP(3,Tablas!$A$73:$G$75,7,TRUE)), (IF($F$25=1, (VLOOKUP(3,Tablas!$A$73:$G$75,7,TRUE)), (IF($F$25=2, (VLOOKUP(3,Tablas!$A$73:$G$75,7,TRUE)), (VLOOKUP(3,Tablas!$A$73:$G$75,7,TRUE)))))))), (IF($F$23=4,(IF(4-$F$25=0,(VLOOKUP(2,Tablas!$A$73:$G$75,7,TRUE)), (IF(4-$F$25=1,(VLOOKUP(2,Tablas!$A$73:$G$75,7,TRUE)), (IF(4-$F$25=2, (VLOOKUP(2,Tablas!$A$73:$G$75,7,TRUE)), (VLOOKUP(3,Tablas!$A$73:$G$75,7,TRUE)))))))), (IF($F$23=3,(IF(3-$F$25=0,(VLOOKUP(1,Tablas!$A$73:$G$75,7,TRUE)), (IF(3-$F$25=1,(VLOOKUP(1,Tablas!$A$73:$G$75,7,TRUE)), (IF(3-$F$25=2, (VLOOKUP(2,Tablas!$A$73:$G$75,7,TRUE)), (VLOOKUP(3,Tablas!$A$73:$G$75,7,TRUE)))))))), (IF($F$23=2,(IF(2-$F$25=0, 0, (IF(2-$F$25=1,(VLOOKUP(1,Tablas!$A$73:$G$75,7,TRUE)), (IF(2-$F$25=2, (VLOOKUP(2,Tablas!$A$73:$G$75,7,TRUE)), 0)))))), (IF($F$23=1,(IF(1-$F$25=0, 0, (IF(1-$F$25=1,(VLOOKUP(1,Tablas!$A$73:$G$75,7,TRUE)),0)))),0)))))))))))))), (IF($F$23=0, 0, (IF($F$25>$F$23, (VLOOKUP($F$23,Tablas!$A$73:$G$75,7,TRUE)), (IF($F$23=4,(IF(4-$F$25=0, 0, (IF(4-$F$25=1, (VLOOKUP(1,Tablas!$A$73:$G$75,7,TRUE)), (IF(4-$F$25=2, (VLOOKUP(2,Tablas!$A$73:$G$75,7,TRUE)), (IF(4-$F$25=3, (VLOOKUP(3,Tablas!$A$73:$G$75,7,TRUE)), (IF(4-$F$25=4, (VLOOKUP(3,Tablas!$A$73:$G$75,7,TRUE)), 0)))))))))), (IF($F$23=5,(IF(5-$F$25=0, (VLOOKUP(1,Tablas!$A$73:$G$75,7,TRUE)), (IF(5-$F$25=1, (VLOOKUP(1,Tablas!$A$73:$G$75,7,TRUE)), (IF(5-$F$25=2, (VLOOKUP(2,Tablas!$A$73:$G$75,7,TRUE)), (IF(5-$F$25=3, (VLOOKUP(3,Tablas!$A$73:$G$75,7,TRUE)), (IF(5-$F$25=4, (VLOOKUP(3,Tablas!$A$73:$G$75,7,TRUE)), (VLOOKUP(3,Tablas!$A$73:$G$75,7,TRUE)))))))))))), (IF($F$23=6,(IF(6-$F$25=0, (VLOOKUP(2,Tablas!$A$73:$G$75,7,TRUE)), (IF(6-$F$25=1, (VLOOKUP(2,Tablas!$A$73:$G$75,7,TRUE)), (IF(6-$F$25=2, (VLOOKUP(2,Tablas!$A$73:$G$75,7,TRUE)), (IF(6-$F$25=3, (VLOOKUP(3,Tablas!$A$73:$G$75,7,TRUE)), (IF(6-$F$25=4, (VLOOKUP(3,Tablas!$A$73:$G$75,7,TRUE)), (VLOOKUP(3,Tablas!$A$73:$G$75,7,TRUE)))))))))))), (IF($F$23>6,(IF(7-$F$25=0, (VLOOKUP(3,Tablas!$A$73:$G$75,7,TRUE)), (IF(7-$F$25=1, (VLOOKUP(3,Tablas!$A$73:$G$75,7,TRUE)), (IF(7-$F$25=2, (VLOOKUP(3,Tablas!$A$73:$G$75,7,TRUE)), (IF(7-$F$25=3, (VLOOKUP(3,Tablas!$A$73:$G$75,7,TRUE)), (IF(7-$F$25=4, (VLOOKUP(3,Tablas!$A$73:$G$75,7,TRUE)), (VLOOKUP(3,Tablas!$A$73:$G$75,7,TRUE)))))))))))), (IF($F$23=3,(IF(3-$F$25=0,0, (IF(3-$F$25=1,(VLOOKUP(1,Tablas!$A$73:$G$75,7,TRUE)), (IF(3-$F$25=2, (VLOOKUP(2,Tablas!$A$73:$G$75,7,TRUE)), (VLOOKUP(3,Tablas!$A$73:$G$75,7,TRUE)))))))), (IF($F$23=2,(IF(2-$F$25=0, 0, (IF(2-$F$25=1,(VLOOKUP(1,Tablas!$A$73:$G$75,7,TRUE)), (IF(2-$F$25=2, (VLOOKUP(2,Tablas!$A$73:$G$75,7,TRUE)), 0)))))), (IF($F$23=1,(IF(1-$F$25=0, 0, (IF(1-$F$25=1,(VLOOKUP(1,Tablas!$A$73:$G$75,7,TRUE)),0)))),0))))))))))))))))))) -> 0
E35: Total de Prima neta | G35: =SUM(G32:G34) -> 8691 | H35: =SUM(H32:H34) -> 6170 | I35: 5148 | J35: 4464 | K35: 3461
E36: Ajuste por la variante con coaseguro fuera del país de residencia | G36: =IF('INGRESO DE DATOS'!$H$21,G35*-15%,0) -> -1303.65 | H36: =IF('INGRESO DE DATOS'!$H$21,H35*-15%,0) -> -925.5 | I36: =IF('INGRESO DE DATOS'!$H$21,I35*-15%,0) -> -772.2 | J36: =IF('INGRESO DE DATOS'!$H$21,J35*-15%,0) -> -669.6 | K36: =IF('INGRESO DE DATOS'!$H$21,K35*-15%,0) -> -519.15
E37: Tarifa administrativa anual | G37: 75 | H37: 75 | I37: 75 | J37: 75 | K37: 75
E38: VAT (5%) : | G38: =(G35+G36)*5% -> 369.3675 | H38: =(H35+H36)*5% -> 262.225 | I38: 218.79 | J38: 189.72 | K38: 147.0925
E39: ITBMS (7%) | G39: =+G37*7% -> 5.25 | H39: =+H37*7% -> 5.25 | I39: 5.25 | J39: 5.25 | K39: 5.25
E40: TOTAL ANUAL | G40: =SUM(G35:G39) -> 7836.9675 | H40: =SUM(H35:H39) -> 5586.975 | I40: 4674.84 | J40: =SUM(J35:J39) -> 4064.37 | K40: 3169.1925
E41: Ahorros en tarifas de prima para niños | G41: =IF($F$21=1,IF($F$23=0,0,IF($F$25=0,0,IF($F$25=1,(VLOOKUP(1,Tablas!$A$73:$G$75,3,TRUE)),(VLOOKUP(2,Tablas!$A$73:$G$75,3,TRUE))))), IF($F$23=0,0,IF($F$25=0,0,IF($F$25=1,(VLOOKUP(1,Tablas!$A$73:$G$75,3,TRUE)),IF($F$25=2,(VLOOKUP(2,Tablas!$A$73:$G$75,3,TRUE)), (VLOOKUP(3,Tablas!$A$73:$G$75,3,TRUE))))))) -> 0 | H41: =IF($F$21=1,IF($F$23=0,0,IF($F$25=0,0,IF($F$25=1,(VLOOKUP(1,Tablas!$A$73:$G$75,4,TRUE)),(VLOOKUP(2,Tablas!$A$73:$G$75,4,TRUE))))), IF($F$23=0,0,IF($F$25=0,0,IF($F$25=1,(VLOOKUP(1,Tablas!$A$73:$G$75,4,TRUE)),IF($F$25=2,(VLOOKUP(2,Tablas!$A$73:$G$75,4,TRUE)), (VLOOKUP(3,Tablas!$A$73:$G$75,4,TRUE))))))) -> 0 | I41: =IF($F$21=1,IF($F$23=0,0,IF($F$25=0,0,IF($F$25=1,(VLOOKUP(1,Tablas!$A$73:$G$75,5,TRUE)),(VLOOKUP(2,Tablas!$A$73:$G$75,5,TRUE))))), IF($F$23=0,0,IF($F$25=0,0,IF($F$25=1,(VLOOKUP(1,Tablas!$A$73:$G$75,5,TRUE)),IF($F$25=2,(VLOOKUP(2,Tablas!$A$73:$G$75,5,TRUE)), (VLOOKUP(3,Tablas!$A$73:$G$75,5,TRUE))))))) -> 0 | J41: =IF($F$21=1,IF($F$23=0,0,IF($F$25=0,0,IF($F$25=1,(VLOOKUP(1,Tablas!$A$73:$G$75,6,TRUE)),(VLOOKUP(2,Tablas!$A$73:$G$75,6,TRUE))))), IF($F$23=0,0,IF($F$25=0,0,IF($F$25=1,(VLOOKUP(1,Tablas!$A$73:$G$75,6,TRUE)),IF($F$25=2,(VLOOKUP(2,Tablas!$A$73:$G$75,6,TRUE)), (VLOOKUP(3,Tablas!$A$73:$G$75,6,TRUE))))))) -> 0 | K41: =IF($F$21=1,IF($F$23=0,0,IF($F$25=0,0,IF($F$25=1,(VLOOKUP(1,Tablas!$A$73:$G$75,7,TRUE)),(VLOOKUP(2,Tablas!$A$73:$G$75,7,TRUE))))), IF($F$23=0,0,IF($F$25=0,0,IF($F$25=1,(VLOOKUP(1,Tablas!$A$73:$G$75,7,TRUE)),IF($F$25=2,(VLOOKUP(2,Tablas!$A$73:$G$75,7,TRUE)), (VLOOKUP(3,Tablas!$A$73:$G$75,7,TRUE))))))) -> 0
E43: Tarifas semi anuales
E44: Prima para Asegurado Titular | G44: =VLOOKUP($I$21,Tablas!$A$455:$G$521,3,TRUE) -> 4606.23 | H44: =VLOOKUP($I$21,Tablas!$A$455:$G$521,4,TRUE) -> 3270.1 | I44: =VLOOKUP($I$21,Tablas!$A$455:$G$521,5,TRUE) -> 2728.44 | J44: =VLOOKUP($I$21,Tablas!$A$455:$G$521,6,TRUE) -> 2365.92 | K44: =VLOOKUP($I$21,Tablas!$A$455:$G$521,7,TRUE) -> 1834.33
E45: Prima para conyuge | G45: =IF($F$21=1,0,(VLOOKUP($I$23,Tablas!$A$455:$G$521,3,TRUE))) -> 0 | H45: =IF($F$21=1,0,(VLOOKUP($I$23,Tablas!$A$455:$G$521,4,TRUE))) -> 0 | I45: =IF($F$21=1,0,(VLOOKUP($I$23,Tablas!$A$455:$G$521,5,TRUE))) -> 0 | J45: =IF($F$21=1,0,(VLOOKUP($I$23,Tablas!$A$455:$G$521,6,TRUE))) -> 0 | K45: =IF($F$21=1,0,(VLOOKUP($I$23,Tablas!$A$455:$G$521,7,TRUE))) -> 0
E46: Prima para hijo (s) | G46: =IF($F$21=1, (IF($F$23=0, 0, (IF($F$25>$F$23, (VLOOKUP($F$23,Tablas!$A$522:$G$524,3,TRUE)), (IF($F$23>4,(IF($F$25=0, (VLOOKUP(3,Tablas!$A$522:$G$524,3,TRUE)), (IF($F$25=1, (VLOOKUP(3,Tablas!$A$522:$G$524,3,TRUE)), (IF($F$25=2, (VLOOKUP(3,Tablas!$A$522:$G$524,3,TRUE)), (VLOOKUP(3,Tablas!$A$522:$G$524,3,TRUE)))))))), (IF($F$23=4,(IF(4-$F$25=0,(VLOOKUP(2,Tablas!$A$522:$G$524,3,TRUE)), (IF(4-$F$25=1,(VLOOKUP(2,Tablas!$A$522:$G$524,3,TRUE)), (IF(4-$F$25=2, (VLOOKUP(2,Tablas!$A$522:$G$524,3,TRUE)), (VLOOKUP(3,Tablas!$A$522:$G$524,3,TRUE)))))))), (IF($F$23=3,(IF(3-$F$25=0,(VLOOKUP(1,Tablas!$A$522:$G$524,3,TRUE)), (IF(3-$F$25=1,(VLOOKUP(1,Tablas!$A$522:$G$524,3,TRUE)), (IF(3-$F$25=2, (VLOOKUP(2,Tablas!$A$522:$G$524,3,TRUE)), (VLOOKUP(3,Tablas!$A$522:$G$524,3,TRUE)))))))), (IF($F$23=2,(IF(2-$F$25=0, 0, (IF(2-$F$25=1,(VLOOKUP(1,Tablas!$A$522:$G$524,3,TRUE)), (IF(2-$F$25=2, (VLOOKUP(2,Tablas!$A$522:$G$524,3,TRUE)), 0)))))), (IF($F$23=1,(IF(1-$F$25=0, 0, (IF(1-$F$25=1,(VLOOKUP(1,Tablas!$A$522:$G$524,3,TRUE)),0)))),0)))))))))))))), (IF($F$23=0, 0, (IF($F$25>$F$23, (VLOOKUP($F$23,Tablas!$A$522:$G$524,3,TRUE)), (IF($F$23=4,(IF(4-$F$25=0, 0, (IF(4-$F$25=1, (VLOOKUP(1,Tablas!$A$522:$G$524,3,TRUE)), (IF(4-$F$25=2, (VLOOKUP(2,Tablas!$A$522:$G$524,3,TRUE)), (IF(4-$F$25=3, (VLOOKUP(3,Tablas!$A$522:$G$524,3,TRUE)), (IF(4-$F$25=4, (VLOOKUP(3,Tablas!$A$522:$G$524,3,TRUE)), 0)))))))))), (IF($F$23=5,(IF(5-$F$25=0, (VLOOKUP(1,Tablas!$A$522:$G$524,3,TRUE)), (IF(5-$F$25=1, (VLOOKUP(1,Tablas!$A$522:$G$524,3,TRUE)), (IF(5-$F$25=2, (VLOOKUP(2,Tablas!$A$522:$G$524,3,TRUE)), (IF(5-$F$25=3, (VLOOKUP(3,Tablas!$A$522:$G$524,3,TRUE)), (IF(5-$F$25=4, (VLOOKUP(3,Tablas!$A$522:$G$524,3,TRUE)), (VLOOKUP(3,Tablas!$A$522:$G$524,3,TRUE)))))))))))), (IF($F$23=6,(IF(6-$F$25=0, (VLOOKUP(2,Tablas!$A$522:$G$524,3,TRUE)), (IF(6-$F$25=1, (VLOOKUP(2,Tablas!$A$522:$G$524,3,TRUE)), (IF(6-$F$25=2, (VLOOKUP(2,Tablas!$A$522:$G$524,3,TRUE)), (IF(6-$F$25=3, (VLOOKUP(3,Tablas!$A$522:$G$524,3,TRUE)), (IF(6-$F$25=4, (VLOOKUP(3,Tablas!$A$522:$G$524,3,TRUE)), (VLOOKUP(3,Tablas!$A$522:$G$524,3,TRUE)))))))))))), (IF($F$23>6,(IF(7-$F$25=0, (VLOOKUP(3,Tablas!$A$522:$G$524,3,TRUE)), (IF(7-$F$25=1, (VLOOKUP(3,Tablas!$A$522:$G$524,3,TRUE)), (IF(7-$F$25=2, (VLOOKUP(3,Tablas!$A$522:$G$524,3,TRUE)), (IF(7-$F$25=3, (VLOOKUP(3,Tablas!$A$522:$G$524,3,TRUE)), (IF(7-$F$25=4, (VLOOKUP(3,Tablas!$A$522:$G$524,3,TRUE)), (VLOOKUP(3,Tablas!$A$522:$G$524,3,TRUE)))))))))))), (IF($F$23=3,(IF(3-$F$25=0,0, (IF(3-$F$25=1,(VLOOKUP(1,Tablas!$A$522:$G$524,3,TRUE)), (IF(3-$F$25=2, (VLOOKUP(2,Tablas!$A$522:$G$524,3,TRUE)), (VLOOKUP(3,Tablas!$A$522:$G$524,3,TRUE)))))))), (IF($F$23=2,(IF(2-$F$25=0, 0, (IF(2-$F$25=1,(VLOOKUP(1,Tablas!$A$522:$G$524,3,TRUE)), (IF(2-$F$25=2, (VLOOKUP(2,Tablas!$A$522:$G$524,3,TRUE)), 0)))))), (IF($F$23=1,(IF(1-$F$25=0, 0, (IF(1-$F$25=1,(VLOOKUP(1,Tablas!$A$522:$G$524,3,TRUE)),0)))),0))))))))))))))))))) -> 0 | H46: =IF($F$21=1, (IF($F$23=0, 0, (IF($F$25>$F$23, (VLOOKUP($F$23,Tablas!$A$522:$G$524,4,TRUE)), (IF($F$23>4,(IF($F$25=0, (VLOOKUP(3,Tablas!$A$522:$G$524,4,TRUE)), (IF($F$25=1, (VLOOKUP(3,Tablas!$A$522:$G$524,4,TRUE)), (IF($F$25=2, (VLOOKUP(3,Tablas!$A$522:$G$524,4,TRUE)), (VLOOKUP(3,Tablas!$A$522:$G$524,4,TRUE)))))))), (IF($F$23=4,(IF(4-$F$25=0,(VLOOKUP(2,Tablas!$A$522:$G$524,4,TRUE)), (IF(4-$F$25=1,(VLOOKUP(2,Tablas!$A$522:$G$524,4,TRUE)), (IF(4-$F$25=2, (VLOOKUP(2,Tablas!$A$522:$G$524,4,TRUE)), (VLOOKUP(3,Tablas!$A$522:$G$524,4,TRUE)))))))), (IF($F$23=3,(IF(3-$F$25=0,(VLOOKUP(1,Tablas!$A$522:$G$524,4,TRUE)), (IF(3-$F$25=1,(VLOOKUP(1,Tablas!$A$522:$G$524,4,TRUE)), (IF(3-$F$25=2, (VLOOKUP(2,Tablas!$A$522:$G$524,4,TRUE)), (VLOOKUP(3,Tablas!$A$522:$G$524,4,TRUE)))))))), (IF($F$23=2,(IF(2-$F$25=0, 0, (IF(2-$F$25=1,(VLOOKUP(1,Tablas!$A$522:$G$524,4,TRUE)), (IF(2-$F$25=2, (VLOOKUP(2,Tablas!$A$522:$G$524,4,TRUE)), 0)))))), (IF($F$23=1,(IF(1-$F$25=0, 0, (IF(1-$F$25=1,(VLOOKUP(1,Tablas!$A$522:$G$524,4,TRUE)),0)))),0)))))))))))))), (IF($F$23=0, 0, (IF($F$25>$F$23, (VLOOKUP($F$23,Tablas!$A$522:$G$524,4,TRUE)), (IF($F$23=4,(IF(4-$F$25=0, 0, (IF(4-$F$25=1, (VLOOKUP(1,Tablas!$A$522:$G$524,4,TRUE)), (IF(4-$F$25=2, (VLOOKUP(2,Tablas!$A$522:$G$524,4,TRUE)), (IF(4-$F$25=3, (VLOOKUP(3,Tablas!$A$522:$G$524,4,TRUE)), (IF(4-$F$25=4, (VLOOKUP(3,Tablas!$A$522:$G$524,4,TRUE)), 0)))))))))), (IF($F$23=5,(IF(5-$F$25=0, (VLOOKUP(1,Tablas!$A$522:$G$524,4,TRUE)), (IF(5-$F$25=1, (VLOOKUP(1,Tablas!$A$522:$G$524,4,TRUE)), (IF(5-$F$25=2, (VLOOKUP(2,Tablas!$A$522:$G$524,4,TRUE)), (IF(5-$F$25=3, (VLOOKUP(3,Tablas!$A$522:$G$524,4,TRUE)), (IF(5-$F$25=4, (VLOOKUP(3,Tablas!$A$522:$G$524,4,TRUE)), (VLOOKUP(3,Tablas!$A$522:$G$524,4,TRUE)))))))))))), (IF($F$23=6,(IF(6-$F$25=0, (VLOOKUP(2,Tablas!$A$522:$G$524,4,TRUE)), (IF(6-$F$25=1, (VLOOKUP(2,Tablas!$A$522:$G$524,4,TRUE)), (IF(6-$F$25=2, (VLOOKUP(2,Tablas!$A$522:$G$524,4,TRUE)), (IF(6-$F$25=3, (VLOOKUP(3,Tablas!$A$522:$G$524,4,TRUE)), (IF(6-$F$25=4, (VLOOKUP(3,Tablas!$A$522:$G$524,4,TRUE)), (VLOOKUP(3,Tablas!$A$522:$G$524,4,TRUE)))))))))))), (IF($F$23>6,(IF(7-$F$25=0, (VLOOKUP(3,Tablas!$A$522:$G$524,4,TRUE)), (IF(7-$F$25=1, (VLOOKUP(3,Tablas!$A$522:$G$524,4,TRUE)), (IF(7-$F$25=2, (VLOOKUP(3,Tablas!$A$522:$G$524,4,TRUE)), (IF(7-$F$25=3, (VLOOKUP(3,Tablas!$A$522:$G$524,4,TRUE)), (IF(7-$F$25=4, (VLOOKUP(3,Tablas!$A$522:$G$524,4,TRUE)), (VLOOKUP(3,Tablas!$A$522:$G$524,4,TRUE)))))))))))), (IF($F$23=3,(IF(3-$F$25=0,0, (IF(3-$F$25=1,(VLOOKUP(1,Tablas!$A$522:$G$524,4,TRUE)), (IF(3-$F$25=2, (VLOOKUP(2,Tablas!$A$522:$G$524,4,TRUE)), (VLOOKUP(3,Tablas!$A$522:$G$524,4,TRUE)))))))), (IF($F$23=2,(IF(2-$F$25=0, 0, (IF(2-$F$25=1,(VLOOKUP(1,Tablas!$A$522:$G$524,4,TRUE)), (IF(2-$F$25=2, (VLOOKUP(2,Tablas!$A$522:$G$524,4,TRUE)), 0)))))), (IF($F$23=1,(IF(1-$F$25=0, 0, (IF(1-$F$25=1,(VLOOKUP(1,Tablas!$A$522:$G$524,4,TRUE)),0)))),0))))))))))))))))))) -> 0 | I46: =IF($F$21=1, (IF($F$23=0, 0, (IF($F$25>$F$23, (VLOOKUP($F$23,Tablas!$A$522:$G$524,5,TRUE)), (IF($F$23>4,(IF($F$25=0, (VLOOKUP(3,Tablas!$A$522:$G$524,5,TRUE)), (IF($F$25=1, (VLOOKUP(3,Tablas!$A$522:$G$524,5,TRUE)), (IF($F$25=2, (VLOOKUP(3,Tablas!$A$522:$G$524,5,TRUE)), (VLOOKUP(3,Tablas!$A$522:$G$524,5,TRUE)))))))), (IF($F$23=4,(IF(4-$F$25=0,(VLOOKUP(2,Tablas!$A$522:$G$524,5,TRUE)), (IF(4-$F$25=1,(VLOOKUP(2,Tablas!$A$522:$G$524,5,TRUE)), (IF(4-$F$25=2, (VLOOKUP(2,Tablas!$A$522:$G$524,5,TRUE)), (VLOOKUP(3,Tablas!$A$522:$G$524,5,TRUE)))))))), (IF($F$23=3,(IF(3-$F$25=0,(VLOOKUP(1,Tablas!$A$522:$G$524,5,TRUE)), (IF(3-$F$25=1,(VLOOKUP(1,Tablas!$A$522:$G$524,5,TRUE)), (IF(3-$F$25=2, (VLOOKUP(2,Tablas!$A$522:$G$524,5,TRUE)), (VLOOKUP(3,Tablas!$A$522:$G$524,5,TRUE)))))))), (IF($F$23=2,(IF(2-$F$25=0, 0, (IF(2-$F$25=1,(VLOOKUP(1,Tablas!$A$522:$G$524,5,TRUE)), (IF(2-$F$25=2, (VLOOKUP(2,Tablas!$A$522:$G$524,5,TRUE)), 0)))))), (IF($F$23=1,(IF(1-$F$25=0, 0, (IF(1-$F$25=1,(VLOOKUP(1,Tablas!$A$522:$G$524,5,TRUE)),0)))),0)))))))))))))), (IF($F$23=0, 0, (IF($F$25>$F$23, (VLOOKUP($F$23,Tablas!$A$522:$G$524,5,TRUE)), (IF($F$23=4,(IF(4-$F$25=0, 0, (IF(4-$F$25=1, (VLOOKUP(1,Tablas!$A$522:$G$524,5,TRUE)), (IF(4-$F$25=2, (VLOOKUP(2,Tablas!$A$522:$G$524,5,TRUE)), (IF(4-$F$25=3, (VLOOKUP(3,Tablas!$A$522:$G$524,5,TRUE)), (IF(4-$F$25=4, (VLOOKUP(3,Tablas!$A$522:$G$524,5,TRUE)), 0)))))))))), (IF($F$23=5,(IF(5-$F$25=0, (VLOOKUP(1,Tablas!$A$522:$G$524,5,TRUE)), (IF(5-$F$25=1, (VLOOKUP(1,Tablas!$A$522:$G$524,5,TRUE)), (IF(5-$F$25=2, (VLOOKUP(2,Tablas!$A$522:$G$524,5,TRUE)), (IF(5-$F$25=3, (VLOOKUP(3,Tablas!$A$522:$G$524,5,TRUE)), (IF(5-$F$25=4, (VLOOKUP(3,Tablas!$A$522:$G$524,5,TRUE)), (VLOOKUP(3,Tablas!$A$522:$G$524,5,TRUE)))))))))))), (IF($F$23=6,(IF(6-$F$25=0, (VLOOKUP(2,Tablas!$A$522:$G$524,5,TRUE)), (IF(6-$F$25=1, (VLOOKUP(2,Tablas!$A$522:$G$524,5,TRUE)), (IF(6-$F$25=2, (VLOOKUP(2,Tablas!$A$522:$G$524,5,TRUE)), (IF(6-$F$25=3, (VLOOKUP(3,Tablas!$A$522:$G$524,5,TRUE)), (IF(6-$F$25=4, (VLOOKUP(3,Tablas!$A$522:$G$524,5,TRUE)), (VLOOKUP(3,Tablas!$A$522:$G$524,5,TRUE)))))))))))), (IF($F$23>6,(IF(7-$F$25=0, (VLOOKUP(3,Tablas!$A$522:$G$524,5,TRUE)), (IF(7-$F$25=1, (VLOOKUP(3,Tablas!$A$522:$G$524,5,TRUE)), (IF(7-$F$25=2, (VLOOKUP(3,Tablas!$A$522:$G$524,5,TRUE)), (IF(7-$F$25=3, (VLOOKUP(3,Tablas!$A$522:$G$524,5,TRUE)), (IF(7-$F$25=4, (VLOOKUP(3,Tablas!$A$522:$G$524,5,TRUE)), (VLOOKUP(3,Tablas!$A$522:$G$524,5,TRUE)))))))))))), (IF($F$23=3,(IF(3-$F$25=0,0, (IF(3-$F$25=1,(VLOOKUP(1,Tablas!$A$522:$G$524,5,TRUE)), (IF(3-$F$25=2, (VLOOKUP(2,Tablas!$A$522:$G$524,5,TRUE)), (VLOOKUP(3,Tablas!$A$522:$G$524,5,TRUE)))))))), (IF($F$23=2,(IF(2-$F$25=0, 0, (IF(2-$F$25=1,(VLOOKUP(1,Tablas!$A$522:$G$524,5,TRUE)), (IF(2-$F$25=2, (VLOOKUP(2,Tablas!$A$522:$G$524,5,TRUE)), 0)))))), (IF($F$23=1,(IF(1-$F$25=0, 0, (IF(1-$F$25=1,(VLOOKUP(1,Tablas!$A$522:$G$524,5,TRUE)),0)))),0))))))))))))))))))) -> 0 | J46: =IF($F$21=1, (IF($F$23=0, 0, (IF($F$25>$F$23, (VLOOKUP($F$23,Tablas!$A$522:$G$524,6,TRUE)), (IF($F$23>4,(IF($F$25=0, (VLOOKUP(3,Tablas!$A$522:$G$524,6,TRUE)), (IF($F$25=1, (VLOOKUP(3,Tablas!$A$522:$G$524,6,TRUE)), (IF($F$25=2, (VLOOKUP(3,Tablas!$A$522:$G$524,6,TRUE)), (VLOOKUP(3,Tablas!$A$522:$G$524,7,TRUE)))))))), (IF($F$23=4,(IF(4-$F$25=0,(VLOOKUP(2,Tablas!$A$522:$G$524,6,TRUE)), (IF(4-$F$25=1,(VLOOKUP(2,Tablas!$A$522:$G$524,6,TRUE)), (IF(4-$F$25=2, (VLOOKUP(2,Tablas!$A$522:$G$524,6,TRUE)), (VLOOKUP(3,Tablas!$A$522:$G$524,6,TRUE)))))))), (IF($F$23=3,(IF(3-$F$25=0,(VLOOKUP(1,Tablas!$A$522:$G$524,6,TRUE)), (IF(3-$F$25=1,(VLOOKUP(1,Tablas!$A$522:$G$524,6,TRUE)), (IF(3-$F$25=2, (VLOOKUP(2,Tablas!$A$522:$G$524,6,TRUE)), (VLOOKUP(3,Tablas!$A$522:$G$524,6,TRUE)))))))), (IF($F$23=2,(IF(2-$F$25=0, 0, (IF(2-$F$25=1,(VLOOKUP(1,Tablas!$A$522:$G$524,6,TRUE)), (IF(2-$F$25=2, (VLOOKUP(2,Tablas!$A$522:$G$524,6,TRUE)), 0)))))), (IF($F$23=1,(IF(1-$F$25=0, 0, (IF(1-$F$25=1,(VLOOKUP(1,Tablas!$A$522:$G$524,6,TRUE)),0)))),0)))))))))))))), (IF($F$23=0, 0, (IF($F$25>$F$23, (VLOOKUP($F$23,Tablas!$A$522:$G$524,6,TRUE)), (IF($F$23=4,(IF(4-$F$25=0, 0, (IF(4-$F$25=1, (VLOOKUP(1,Tablas!$A$522:$G$524,6,TRUE)), (IF(4-$F$25=2, (VLOOKUP(2,Tablas!$A$522:$G$524,6,TRUE)), (IF(4-$F$25=3, (VLOOKUP(3,Tablas!$A$522:$G$524,6,TRUE)), (IF(4-$F$25=4, (VLOOKUP(3,Tablas!$A$522:$G$524,6,TRUE)), 0)))))))))), (IF($F$23=5,(IF(5-$F$25=0, (VLOOKUP(1,Tablas!$A$522:$G$524,6,TRUE)), (IF(5-$F$25=1, (VLOOKUP(1,Tablas!$A$522:$G$524,6,TRUE)), (IF(5-$F$25=2, (VLOOKUP(2,Tablas!$A$522:$G$524,6,TRUE)), (IF(5-$F$25=3, (VLOOKUP(3,Tablas!$A$522:$G$524,6,TRUE)), (IF(5-$F$25=4, (VLOOKUP(3,Tablas!$A$522:$G$524,6,TRUE)), (VLOOKUP(3,Tablas!$A$522:$G$524,7,TRUE)))))))))))), (IF($F$23=6,(IF(6-$F$25=0, (VLOOKUP(2,Tablas!$A$522:$G$524,6,TRUE)), (IF(6-$F$25=1, (VLOOKUP(2,Tablas!$A$522:$G$524,6,TRUE)), (IF(6-$F$25=2, (VLOOKUP(2,Tablas!$A$522:$G$524,6,TRUE)), (IF(6-$F$25=3, (VLOOKUP(3,Tablas!$A$522:$G$524,6,TRUE)), (IF(6-$F$25=4, (VLOOKUP(3,Tablas!$A$522:$G$524,6,TRUE)), (VLOOKUP(3,Tablas!$A$522:$G$524,7,TRUE)))))))))))), (IF($F$23>6,(IF(7-$F$25=0, (VLOOKUP(3,Tablas!$A$522:$G$524,6,TRUE)), (IF(7-$F$25=1, (VLOOKUP(3,Tablas!$A$522:$G$524,6,TRUE)), (IF(7-$F$25=2, (VLOOKUP(3,Tablas!$A$522:$G$524,6,TRUE)), (IF(7-$F$25=3, (VLOOKUP(3,Tablas!$A$522:$G$524,6,TRUE)), (IF(7-$F$25=4, (VLOOKUP(3,Tablas!$A$522:$G$524,6,TRUE)), (VLOOKUP(3,Tablas!$A$522:$G$524,6,TRUE)))))))))))), (IF($F$23=3,(IF(3-$F$25=0,0, (IF(3-$F$25=1,(VLOOKUP(1,Tablas!$A$522:$G$524,6,TRUE)), (IF(3-$F$25=2, (VLOOKUP(2,Tablas!$A$522:$G$524,6,TRUE)), (VLOOKUP(3,Tablas!$A$522:$G$524,7,TRUE)))))))), (IF($F$23=2,(IF(2-$F$25=0, 0, (IF(2-$F$25=1,(VLOOKUP(1,Tablas!$A$522:$G$524,6,TRUE)), (IF(2-$F$25=2, (VLOOKUP(2,Tablas!$A$522:$G$524,6,TRUE)), 0)))))), (IF($F$23=1,(IF(1-$F$25=0, 0, (IF(1-$F$25=1,(VLOOKUP(1,Tablas!$A$522:$G$524,6,TRUE)),0)))),0))))))))))))))))))) -> 0 | K46: =IF($F$21=1, (IF($F$23=0, 0, (IF($F$25>$F$23, (VLOOKUP($F$23,Tablas!$A$522:$G$524,7,TRUE)), (IF($F$23>4,(IF($F$25=0, (VLOOKUP(3,Tablas!$A$522:$G$524,7,TRUE)), (IF($F$25=1, (VLOOKUP(3,Tablas!$A$522:$G$524,7,TRUE)), (IF($F$25=2, (VLOOKUP(3,Tablas!$A$522:$G$524,7,TRUE)), (VLOOKUP(3,Tablas!$A$522:$G$524,7,TRUE)))))))), (IF($F$23=4,(IF(4-$F$25=0,(VLOOKUP(2,Tablas!$A$522:$G$524,7,TRUE)), (IF(4-$F$25=1,(VLOOKUP(2,Tablas!$A$522:$G$524,7,TRUE)), (IF(4-$F$25=2, (VLOOKUP(2,Tablas!$A$522:$G$524,7,TRUE)), (VLOOKUP(3,Tablas!$A$522:$G$524,7,TRUE)))))))), (IF($F$23=3,(IF(3-$F$25=0,(VLOOKUP(1,Tablas!$A$522:$G$524,7,TRUE)), (IF(3-$F$25=1,(VLOOKUP(1,Tablas!$A$522:$G$524,7,TRUE)), (IF(3-$F$25=2, (VLOOKUP(2,Tablas!$A$522:$G$524,7,TRUE)), (VLOOKUP(3,Tablas!$A$522:$G$524,7,TRUE)))))))), (IF($F$23=2,(IF(2-$F$25=0, 0, (IF(2-$F$25=1,(VLOOKUP(1,Tablas!$A$522:$G$524,7,TRUE)), (IF(2-$F$25=2, (VLOOKUP(2,Tablas!$A$522:$G$524,7,TRUE)), 0)))))), (IF($F$23=1,(IF(1-$F$25=0, 0, (IF(1-$F$25=1,(VLOOKUP(1,Tablas!$A$522:$G$524,7,TRUE)),0)))),0)))))))))))))), (IF($F$23=0, 0, (IF($F$25>$F$23, (VLOOKUP($F$23,Tablas!$A$522:$G$524,7,TRUE)), (IF($F$23=4,(IF(4-$F$25=0, 0, (IF(4-$F$25=1, (VLOOKUP(1,Tablas!$A$522:$G$524,7,TRUE)), (IF(4-$F$25=2, (VLOOKUP(2,Tablas!$A$522:$G$524,7,TRUE)), (IF(4-$F$25=3, (VLOOKUP(3,Tablas!$A$522:$G$524,7,TRUE)), (IF(4-$F$25=4, (VLOOKUP(3,Tablas!$A$522:$G$524,7,TRUE)), 0)))))))))), (IF($F$23=5,(IF(5-$F$25=0, (VLOOKUP(1,Tablas!$A$522:$G$524,7,TRUE)), (IF(5-$F$25=1, (VLOOKUP(1,Tablas!$A$522:$G$524,7,TRUE)), (IF(5-$F$25=2, (VLOOKUP(2,Tablas!$A$522:$G$524,7,TRUE)), (IF(5-$F$25=3, (VLOOKUP(3,Tablas!$A$522:$G$524,7,TRUE)), (IF(5-$F$25=4, (VLOOKUP(3,Tablas!$A$522:$G$524,7,TRUE)), (VLOOKUP(3,Tablas!$A$522:$G$524,7,TRUE)))))))))))), (IF($F$23=6,(IF(6-$F$25=0, (VLOOKUP(2,Tablas!$A$522:$G$524,7,TRUE)), (IF(6-$F$25=1, (VLOOKUP(2,Tablas!$A$522:$G$524,7,TRUE)), (IF(6-$F$25=2, (VLOOKUP(2,Tablas!$A$522:$G$524,7,TRUE)), (IF(6-$F$25=3, (VLOOKUP(3,Tablas!$A$522:$G$524,7,TRUE)), (IF(6-$F$25=4, (VLOOKUP(3,Tablas!$A$522:$G$524,7,TRUE)), (VLOOKUP(3,Tablas!$A$522:$G$524,7,TRUE)))))))))))), (IF($F$23>6,(IF(7-$F$25=0, (VLOOKUP(3,Tablas!$A$522:$G$524,7,TRUE)), (IF(7-$F$25=1, (VLOOKUP(3,Tablas!$A$522:$G$524,7,TRUE)), (IF(7-$F$25=2, (VLOOKUP(3,Tablas!$A$522:$G$524,7,TRUE)), (IF(7-$F$25=3, (VLOOKUP(3,Tablas!$A$522:$G$524,7,TRUE)), (IF(7-$F$25=4, (VLOOKUP(3,Tablas!$A$522:$G$524,7,TRUE)), (VLOOKUP(3,Tablas!$A$522:$G$524,7,TRUE)))))))))))), (IF($F$23=3,(IF(3-$F$25=0,0, (IF(3-$F$25=1,(VLOOKUP(1,Tablas!$A$522:$G$524,7,TRUE)), (IF(3-$F$25=2, (VLOOKUP(2,Tablas!$A$522:$G$524,7,TRUE)), (VLOOKUP(3,Tablas!$A$522:$G$524,7,TRUE)))))))), (IF($F$23=2,(IF(2-$F$25=0, 0, (IF(2-$F$25=1,(VLOOKUP(1,Tablas!$A$522:$G$524,7,TRUE)), (IF(2-$F$25=2, (VLOOKUP(2,Tablas!$A$522:$G$524,7,TRUE)), 0)))))), (IF($F$23=1,(IF(1-$F$25=0, 0, (IF(1-$F$25=1,(VLOOKUP(1,Tablas!$A$522:$G$524,7,TRUE)),0)))),0))))))))))))))))))) -> 0
E47: Total de Prima neta | G47: =SUM(G44:G46) -> 4606.23 | H47: =SUM(H44:H46) -> 3270.1 | I47: 2728.44 | J47: 2365.92 | K47: 1834.33
E48: Ajuste por la variante con coaseguro fuera del país de residencia | G48: =IF('INGRESO DE DATOS'!$H$21,G47*-15%,0) -> -690.9345 | H48: =IF('INGRESO DE DATOS'!$H$21,H47*-15%,0) -> -490.515 | I48: =IF('INGRESO DE DATOS'!$H$21,I47*-15%,0) -> -409.266 | J48: =IF('INGRESO DE DATOS'!$H$21,J47*-15%,0) -> -354.888 | K48: =IF('INGRESO DE DATOS'!$H$21,K47*-15%,0) -> -275.1495
E49: Tarifa administrativa anual | G49: 75 | H49: 75 | I49: 75 | J49: 75 | K49: 75
E50: VAT (5%) : | G50: =(G32+G33+G34+G36)*5%/2 -> 184.68375 | H50: =(H32+H33+H34+H36)*5%/2 -> 131.1125 | I50: 109.395 | J50: 94.86 | K50: 73.54625
E51: ITBMS (7%) | G51: =+G49*7%+ ((G32+G33+G34+G36)*0.06*0.07)/2 -> 20.763435 | H51: =+H49*7%+ ((H32+H33+H34+H36)*0.06*0.07)/2 -> 16.26345 | I51: 14.43918 | J51: 13.21824 | K51: 11.427885
E52: TOTAL de primera cuota | G52: =SUM(G47:G51) -> 4195.742685 | H52: =SUM(H47:H51) -> 3001.96095 | I52: 2518.00818 | J52: 2194.11024 | K52: 1719.154635
E53: Costo de segunda cuota | G53: =((G47+G48)+ G50)+((G32+G33+G34+G36)*0.06*0.07)/2 -> 4115.492685 | H53: =((H47+H48)+ H50)+((H32+H33+H34+H36)*0.06*0.07)/2 -> 2921.71095 | I53: 2437.75818 | J53: 2113.86024 | K53: 1638.904635
E54: TOTAL ANUAL | G54: =G52+G53 -> 8311.23537 | H54: =H52+H53 -> 5923.6719 | I54: 4955.76636 | J54: =J52+J53 -> 4307.97048 | K54: 3358.05927
E55: Ahorros en tarifas de prima para niños | G55: =IF($F$21=1,IF($F$23=0,0,IF($F$25=0,0,IF($F$25=1,(VLOOKUP(1,Tablas!$A$522:$G$524,3,TRUE)),(VLOOKUP(2,Tablas!$A$522:$G$524,3,TRUE))))), IF($F$23=0,0,IF($F$25=0,0,IF($F$25=1,(VLOOKUP(1,Tablas!$A$522:$G$524,3,TRUE)),IF($F$25=2,(VLOOKUP(2,Tablas!$A$522:$G$524,3,TRUE)), (VLOOKUP(3,Tablas!$A$522:$G$524,3,TRUE))))))) -> 0 | H55: =IF($F$21=1,IF($F$23=0,0,IF($F$25=0,0,IF($F$25=1,(VLOOKUP(1,Tablas!$A$522:$G$524,4,TRUE)),(VLOOKUP(2,Tablas!$A$522:$G$524,4,TRUE))))), IF($F$23=0,0,IF($F$25=0,0,IF($F$25=1,(VLOOKUP(1,Tablas!$A$522:$G$524,4,TRUE)),IF($F$25=2,(VLOOKUP(2,Tablas!$A$522:$G$524,4,TRUE)), (VLOOKUP(3,Tablas!$A$522:$G$524,4,TRUE))))))) -> 0 | I55: =IF($F$21=1,IF($F$23=0,0,IF($F$25=0,0,IF($F$25=1,(VLOOKUP(1,Tablas!$A$522:$G$524,5,TRUE)),(VLOOKUP(2,Tablas!$A$522:$G$524,5,TRUE))))), IF($F$23=0,0,IF($F$25=0,0,IF($F$25=1,(VLOOKUP(1,Tablas!$A$522:$G$524,5,TRUE)),IF($F$25=2,(VLOOKUP(2,Tablas!$A$522:$G$524,5,TRUE)), (VLOOKUP(3,Tablas!$A$522:$G$524,5,TRUE))))))) -> 0 | J55: =IF($F$21=1,IF($F$23=0,0,IF($F$25=0,0,IF($F$25=1,(VLOOKUP(1,Tablas!$A$522:$G$524,7,TRUE)),(VLOOKUP(2,Tablas!$A$522:$G$524,7,TRUE))))), IF($F$23=0,0,IF($F$25=0,0,IF($F$25=1,(VLOOKUP(1,Tablas!$A$522:$G$524,7,TRUE)),IF($F$25=2,(VLOOKUP(2,Tablas!$A$522:$G$524,7,TRUE)), (VLOOKUP(3,Tablas!$A$522:$G$524,7,TRUE))))))) -> 0 | K55: =IF($F$21=1,IF($F$23=0,0,IF($F$25=0,0,IF($F$25=1,(VLOOKUP(1,Tablas!$A$522:$G$524,7,TRUE)),(VLOOKUP(2,Tablas!$A$522:$G$524,7,TRUE))))), IF($F$23=0,0,IF($F$25=0,0,IF($F$25=1,(VLOOKUP(1,Tablas!$A$522:$G$524,7,TRUE)),IF($F$25=2,(VLOOKUP(2,Tablas!$A$522:$G$524,7,TRUE)), (VLOOKUP(3,Tablas!$A$522:$G$524,7,TRUE))))))) -> 0
E57: Tarifas trimestrales
E58: Prima para Asegurado Titular | G58: =VLOOKUP($I$21,Tablas!$A$680:$G$746,3,TRUE) -> 2390.025 | H58: =VLOOKUP($I$21,Tablas!$A$680:$G$746,4,TRUE) -> 1696.75 | I58: =VLOOKUP($I$21,Tablas!$A$680:$G$746,5,TRUE) -> 1415.7 | J58: =VLOOKUP($I$21,Tablas!$A$680:$G$746,6,TRUE) -> 1227.6 | K58: =VLOOKUP($I$21,Tablas!$A$680:$G$746,7,TRUE) -> 951.775
E59: Prima para conyuge | G59: =IF($F$21=1,0,(VLOOKUP($I$23,Tablas!$A$680:$G$746,3,TRUE))) -> 0 | H59: =IF($F$21=1,0,(VLOOKUP($I$23,Tablas!$A$680:$G$746,4,TRUE))) -> 0 | I59: =IF($F$21=1,0,(VLOOKUP($I$23,Tablas!$A$680:$G$746,5,TRUE))) -> 0 | J59: =IF($F$21=1,0,(VLOOKUP($I$23,Tablas!$A$680:$G$746,6,TRUE))) -> 0 | K59: =IF($F$21=1,0,(VLOOKUP($I$23,Tablas!$A$680:$G$746,7,TRUE))) -> 0
E60: Prima para hijo (s) | G60: =IF($F$21=1, (IF($F$23=0, 0, (IF($F$25>$F$23, (VLOOKUP($F$23,Tablas!$A$747:$G$749,3,TRUE)), (IF($F$23>4,(IF($F$25=0, (VLOOKUP(3,Tablas!$A$747:$G$749,3,TRUE)), (IF($F$25=1, (VLOOKUP(3,Tablas!$A$747:$G$749,3,TRUE)), (IF($F$25=2, (VLOOKUP(3,Tablas!$A$747:$G$749,3,TRUE)), (VLOOKUP(3,Tablas!$A$747:$G$749,3,TRUE)))))))), (IF($F$23=4,(IF(4-$F$25=0,(VLOOKUP(2,Tablas!$A$747:$G$749,3,TRUE)), (IF(4-$F$25=1,(VLOOKUP(2,Tablas!$A$747:$G$749,3,TRUE)), (IF(4-$F$25=2, (VLOOKUP(2,Tablas!$A$747:$G$749,3,TRUE)), (VLOOKUP(3,Tablas!$A$747:$G$749,3,TRUE)))))))), (IF($F$23=3,(IF(3-$F$25=0,(VLOOKUP(1,Tablas!$A$747:$G$749,3,TRUE)), (IF(3-$F$25=1,(VLOOKUP(1,Tablas!$A$747:$G$749,3,TRUE)), (IF(3-$F$25=2, (VLOOKUP(2,Tablas!$A$747:$G$749,3,TRUE)), (VLOOKUP(3,Tablas!$A$747:$G$749,3,TRUE)))))))), (IF($F$23=2,(IF(2-$F$25=0, 0, (IF(2-$F$25=1,(VLOOKUP(1,Tablas!$A$747:$G$749,3,TRUE)), (IF(2-$F$25=2, (VLOOKUP(2,Tablas!$A$747:$G$749,3,TRUE)), 0)))))), (IF($F$23=1,(IF(1-$F$25=0, 0, (IF(1-$F$25=1,(VLOOKUP(1,Tablas!$A$747:$G$749,3,TRUE)),0)))),0)))))))))))))), (IF($F$23=0, 0, (IF($F$25>$F$23, (VLOOKUP($F$23,Tablas!$A$747:$G$749,3,TRUE)), (IF($F$23=4,(IF(4-$F$25=0, 0, (IF(4-$F$25=1, (VLOOKUP(1,Tablas!$A$747:$G$749,3,TRUE)), (IF(4-$F$25=2, (VLOOKUP(2,Tablas!$A$747:$G$749,3,TRUE)), (IF(4-$F$25=3, (VLOOKUP(3,Tablas!$A$747:$G$749,3,TRUE)), (IF(4-$F$25=4, (VLOOKUP(3,Tablas!$A$747:$G$749,3,TRUE)), 0)))))))))), (IF($F$23=5,(IF(5-$F$25=0, (VLOOKUP(1,Tablas!$A$747:$G$749,3,TRUE)), (IF(5-$F$25=1, (VLOOKUP(1,Tablas!$A$747:$G$749,3,TRUE)), (IF(5-$F$25=2, (VLOOKUP(2,Tablas!$A$747:$G$749,3,TRUE)), (IF(5-$F$25=3, (VLOOKUP(3,Tablas!$A$747:$G$749,3,TRUE)), (IF(5-$F$25=4, (VLOOKUP(3,Tablas!$A$747:$G$749,3,TRUE)), (VLOOKUP(3,Tablas!$A$747:$G$749,3,TRUE)))))))))))), (IF($F$23=6,(IF(6-$F$25=0, (VLOOKUP(2,Tablas!$A$747:$G$749,3,TRUE)), (IF(6-$F$25=1, (VLOOKUP(2,Tablas!$A$747:$G$749,3,TRUE)), (IF(6-$F$25=2, (VLOOKUP(2,Tablas!$A$747:$G$749,3,TRUE)), (IF(6-$F$25=3, (VLOOKUP(3,Tablas!$A$747:$G$749,3,TRUE)), (IF(6-$F$25=4, (VLOOKUP(3,Tablas!$A$747:$G$749,3,TRUE)), (VLOOKUP(3,Tablas!$A$747:$G$749,3,TRUE)))))))))))), (IF($F$23>6,(IF(7-$F$25=0, (VLOOKUP(3,Tablas!$A$747:$G$749,3,TRUE)), (IF(7-$F$25=1, (VLOOKUP(3,Tablas!$A$747:$G$749,3,TRUE)), (IF(7-$F$25=2, (VLOOKUP(3,Tablas!$A$747:$G$749,3,TRUE)), (IF(7-$F$25=3, (VLOOKUP(3,Tablas!$A$747:$G$749,3,TRUE)), (IF(7-$F$25=4, (VLOOKUP(3,Tablas!$A$747:$G$749,3,TRUE)), (VLOOKUP(3,Tablas!$A$747:$G$749,3,TRUE)))))))))))), (IF($F$23=3,(IF(3-$F$25=0,0, (IF(3-$F$25=1,(VLOOKUP(1,Tablas!$A$747:$G$749,3,TRUE)), (IF(3-$F$25=2, (VLOOKUP(2,Tablas!$A$747:$G$749,3,TRUE)), (VLOOKUP(3,Tablas!$A$747:$G$749,3,TRUE)))))))), (IF($F$23=2,(IF(2-$F$25=0, 0, (IF(2-$F$25=1,(VLOOKUP(1,Tablas!$A$747:$G$749,3,TRUE)), (IF(2-$F$25=2, (VLOOKUP(2,Tablas!$A$747:$G$749,3,TRUE)), 0)))))), (IF($F$23=1,(IF(1-$F$25=0, 0, (IF(1-$F$25=1,(VLOOKUP(1,Tablas!$A$747:$G$749,3,TRUE)),0)))),0))))))))))))))))))) -> 0 | H60: =IF($F$21=1, (IF($F$23=0, 0, (IF($F$25>$F$23, (VLOOKUP($F$23,Tablas!$A$747:$G$749,4,TRUE)), (IF($F$23>4,(IF($F$25=0, (VLOOKUP(3,Tablas!$A$747:$G$749,4,TRUE)), (IF($F$25=1, (VLOOKUP(3,Tablas!$A$747:$G$749,4,TRUE)), (IF($F$25=2, (VLOOKUP(3,Tablas!$A$747:$G$749,4,TRUE)), (VLOOKUP(3,Tablas!$A$747:$G$749,4,TRUE)))))))), (IF($F$23=4,(IF(4-$F$25=0,(VLOOKUP(2,Tablas!$A$747:$G$749,4,TRUE)), (IF(4-$F$25=1,(VLOOKUP(2,Tablas!$A$747:$G$749,4,TRUE)), (IF(4-$F$25=2, (VLOOKUP(2,Tablas!$A$747:$G$749,4,TRUE)), (VLOOKUP(3,Tablas!$A$747:$G$749,4,TRUE)))))))), (IF($F$23=3,(IF(3-$F$25=0,(VLOOKUP(1,Tablas!$A$747:$G$749,4,TRUE)), (IF(3-$F$25=1,(VLOOKUP(1,Tablas!$A$747:$G$749,4,TRUE)), (IF(3-$F$25=2, (VLOOKUP(2,Tablas!$A$747:$G$749,4,TRUE)), (VLOOKUP(3,Tablas!$A$747:$G$749,4,TRUE)))))))), (IF($F$23=2,(IF(2-$F$25=0, 0, (IF(2-$F$25=1,(VLOOKUP(1,Tablas!$A$747:$G$749,4,TRUE)), (IF(2-$F$25=2, (VLOOKUP(2,Tablas!$A$747:$G$749,4,TRUE)), 0)))))), (IF($F$23=1,(IF(1-$F$25=0, 0, (IF(1-$F$25=1,(VLOOKUP(1,Tablas!$A$747:$G$749,4,TRUE)),0)))),0)))))))))))))), (IF($F$23=0, 0, (IF($F$25>$F$23, (VLOOKUP($F$23,Tablas!$A$747:$G$749,4,TRUE)), (IF($F$23=4,(IF(4-$F$25=0, 0, (IF(4-$F$25=1, (VLOOKUP(1,Tablas!$A$747:$G$749,4,TRUE)), (IF(4-$F$25=2, (VLOOKUP(2,Tablas!$A$747:$G$749,4,TRUE)), (IF(4-$F$25=3, (VLOOKUP(3,Tablas!$A$747:$G$749,4,TRUE)), (IF(4-$F$25=4, (VLOOKUP(3,Tablas!$A$747:$G$749,4,TRUE)), 0)))))))))), (IF($F$23=5,(IF(5-$F$25=0, (VLOOKUP(1,Tablas!$A$747:$G$749,4,TRUE)), (IF(5-$F$25=1, (VLOOKUP(1,Tablas!$A$747:$G$749,4,TRUE)), (IF(5-$F$25=2, (VLOOKUP(2,Tablas!$A$747:$G$749,4,TRUE)), (IF(5-$F$25=3, (VLOOKUP(3,Tablas!$A$747:$G$749,4,TRUE)), (IF(5-$F$25=4, (VLOOKUP(3,Tablas!$A$747:$G$749,4,TRUE)), (VLOOKUP(3,Tablas!$A$747:$G$749,4,TRUE)))))))))))), (IF($F$23=6,(IF(6-$F$25=0, (VLOOKUP(2,Tablas!$A$747:$G$749,4,TRUE)), (IF(6-$F$25=1, (VLOOKUP(2,Tablas!$A$747:$G$749,4,TRUE)), (IF(6-$F$25=2, (VLOOKUP(2,Tablas!$A$747:$G$749,4,TRUE)), (IF(6-$F$25=3, (VLOOKUP(3,Tablas!$A$747:$G$749,4,TRUE)), (IF(6-$F$25=4, (VLOOKUP(3,Tablas!$A$747:$G$749,4,TRUE)), (VLOOKUP(3,Tablas!$A$747:$G$749,4,TRUE)))))))))))), (IF($F$23>6,(IF(7-$F$25=0, (VLOOKUP(3,Tablas!$A$747:$G$749,4,TRUE)), (IF(7-$F$25=1, (VLOOKUP(3,Tablas!$A$747:$G$749,4,TRUE)), (IF(7-$F$25=2, (VLOOKUP(3,Tablas!$A$747:$G$749,4,TRUE)), (IF(7-$F$25=3, (VLOOKUP(3,Tablas!$A$747:$G$749,4,TRUE)), (IF(7-$F$25=4, (VLOOKUP(3,Tablas!$A$747:$G$749,4,TRUE)), (VLOOKUP(3,Tablas!$A$747:$G$749,4,TRUE)))))))))))), (IF($F$23=3,(IF(3-$F$25=0,0, (IF(3-$F$25=1,(VLOOKUP(1,Tablas!$A$747:$G$749,4,TRUE)), (IF(3-$F$25=2, (VLOOKUP(2,Tablas!$A$747:$G$749,4,TRUE)), (VLOOKUP(3,Tablas!$A$747:$G$749,4,TRUE)))))))), (IF($F$23=2,(IF(2-$F$25=0, 0, (IF(2-$F$25=1,(VLOOKUP(1,Tablas!$A$747:$G$749,4,TRUE)), (IF(2-$F$25=2, (VLOOKUP(2,Tablas!$A$747:$G$749,4,TRUE)), 0)))))), (IF($F$23=1,(IF(1-$F$25=0, 0, (IF(1-$F$25=1,(VLOOKUP(1,Tablas!$A$747:$G$749,4,TRUE)),0)))),0))))))))))))))))))) -> 0 | I60: =IF($F$21=1, (IF($F$23=0, 0, (IF($F$25>$F$23, (VLOOKUP($F$23,Tablas!$A$747:$G$749,5,TRUE)), (IF($F$23>4,(IF($F$25=0, (VLOOKUP(3,Tablas!$A$747:$G$749,5,TRUE)), (IF($F$25=1, (VLOOKUP(3,Tablas!$A$747:$G$749,5,TRUE)), (IF($F$25=2, (VLOOKUP(3,Tablas!$A$747:$G$749,5,TRUE)), (VLOOKUP(3,Tablas!$A$747:$G$749,5,TRUE)))))))), (IF($F$23=4,(IF(4-$F$25=0,(VLOOKUP(2,Tablas!$A$747:$G$749,5,TRUE)), (IF(4-$F$25=1,(VLOOKUP(2,Tablas!$A$747:$G$749,5,TRUE)), (IF(4-$F$25=2, (VLOOKUP(2,Tablas!$A$747:$G$749,5,TRUE)), (VLOOKUP(3,Tablas!$A$747:$G$749,5,TRUE)))))))), (IF($F$23=3,(IF(3-$F$25=0,(VLOOKUP(1,Tablas!$A$747:$G$749,5,TRUE)), (IF(3-$F$25=1,(VLOOKUP(1,Tablas!$A$747:$G$749,5,TRUE)), (IF(3-$F$25=2, (VLOOKUP(2,Tablas!$A$747:$G$749,5,TRUE)), (VLOOKUP(3,Tablas!$A$747:$G$749,5,TRUE)))))))), (IF($F$23=2,(IF(2-$F$25=0, 0, (IF(2-$F$25=1,(VLOOKUP(1,Tablas!$A$747:$G$749,5,TRUE)), (IF(2-$F$25=2, (VLOOKUP(2,Tablas!$A$747:$G$749,5,TRUE)), 0)))))), (IF($F$23=1,(IF(1-$F$25=0, 0, (IF(1-$F$25=1,(VLOOKUP(1,Tablas!$A$747:$G$749,5,TRUE)),0)))),0)))))))))))))), (IF($F$23=0, 0, (IF($F$25>$F$23, (VLOOKUP($F$23,Tablas!$A$747:$G$749,5,TRUE)), (IF($F$23=4,(IF(4-$F$25=0, 0, (IF(4-$F$25=1, (VLOOKUP(1,Tablas!$A$747:$G$749,5,TRUE)), (IF(4-$F$25=2, (VLOOKUP(2,Tablas!$A$747:$G$749,5,TRUE)), (IF(4-$F$25=3, (VLOOKUP(3,Tablas!$A$747:$G$749,5,TRUE)), (IF(4-$F$25=4, (VLOOKUP(3,Tablas!$A$747:$G$749,5,TRUE)), 0)))))))))), (IF($F$23=5,(IF(5-$F$25=0, (VLOOKUP(1,Tablas!$A$747:$G$749,5,TRUE)), (IF(5-$F$25=1, (VLOOKUP(1,Tablas!$A$747:$G$749,5,TRUE)), (IF(5-$F$25=2, (VLOOKUP(2,Tablas!$A$747:$G$749,5,TRUE)), (IF(5-$F$25=3, (VLOOKUP(3,Tablas!$A$747:$G$749,5,TRUE)), (IF(5-$F$25=4, (VLOOKUP(3,Tablas!$A$747:$G$749,5,TRUE)), (VLOOKUP(3,Tablas!$A$747:$G$749,5,TRUE)))))))))))), (IF($F$23=6,(IF(6-$F$25=0, (VLOOKUP(2,Tablas!$A$747:$G$749,5,TRUE)), (IF(6-$F$25=1, (VLOOKUP(2,Tablas!$A$747:$G$749,5,TRUE)), (IF(6-$F$25=2, (VLOOKUP(2,Tablas!$A$747:$G$749,5,TRUE)), (IF(6-$F$25=3, (VLOOKUP(3,Tablas!$A$747:$G$749,5,TRUE)), (IF(6-$F$25=4, (VLOOKUP(3,Tablas!$A$747:$G$749,5,TRUE)), (VLOOKUP(3,Tablas!$A$747:$G$749,5,TRUE)))))))))))), (IF($F$23>6,(IF(7-$F$25=0, (VLOOKUP(3,Tablas!$A$747:$G$749,5,TRUE)), (IF(7-$F$25=1, (VLOOKUP(3,Tablas!$A$747:$G$749,5,TRUE)), (IF(7-$F$25=2, (VLOOKUP(3,Tablas!$A$747:$G$749,5,TRUE)), (IF(7-$F$25=3, (VLOOKUP(3,Tablas!$A$747:$G$749,5,TRUE)), (IF(7-$F$25=4, (VLOOKUP(3,Tablas!$A$747:$G$749,5,TRUE)), (VLOOKUP(3,Tablas!$A$747:$G$749,5,TRUE)))))))))))), (IF($F$23=3,(IF(3-$F$25=0,0, (IF(3-$F$25=1,(VLOOKUP(1,Tablas!$A$747:$G$749,5,TRUE)), (IF(3-$F$25=2, (VLOOKUP(2,Tablas!$A$747:$G$749,5,TRUE)), (VLOOKUP(3,Tablas!$A$747:$G$749,5,TRUE)))))))), (IF($F$23=2,(IF(2-$F$25=0, 0, (IF(2-$F$25=1,(VLOOKUP(1,Tablas!$A$747:$G$749,5,TRUE)), (IF(2-$F$25=2, (VLOOKUP(2,Tablas!$A$747:$G$749,5,TRUE)), 0)))))), (IF($F$23=1,(IF(1-$F$25=0, 0, (IF(1-$F$25=1,(VLOOKUP(1,Tablas!$A$747:$G$749,5,TRUE)),0)))),0))))))))))))))))))) -> 0 | J60: =IF($F$21=1, (IF($F$23=0, 0, (IF($F$25>$F$23, (VLOOKUP($F$23,Tablas!$A$747:$G$749,6,TRUE)), (IF($F$23>4,(IF($F$25=0, (VLOOKUP(3,Tablas!$A$747:$G$749,6,TRUE)), (IF($F$25=1, (VLOOKUP(3,Tablas!$A$747:$G$749,6,TRUE)), (IF($F$25=2, (VLOOKUP(3,Tablas!$A$747:$G$749,6,TRUE)), (VLOOKUP(3,Tablas!$A$747:$G$749,6,TRUE)))))))), (IF($F$23=4,(IF(4-$F$25=0,(VLOOKUP(2,Tablas!$A$747:$G$749,6,TRUE)), (IF(4-$F$25=1,(VLOOKUP(2,Tablas!$A$747:$G$749,6,TRUE)), (IF(4-$F$25=2, (VLOOKUP(2,Tablas!$A$747:$G$749,6,TRUE)), (VLOOKUP(3,Tablas!$A$747:$G$749,6,TRUE)))))))), (IF($F$23=3,(IF(3-$F$25=0,(VLOOKUP(1,Tablas!$A$747:$G$749,6,TRUE)), (IF(3-$F$25=1,(VLOOKUP(1,Tablas!$A$747:$G$749,6,TRUE)), (IF(3-$F$25=2, (VLOOKUP(2,Tablas!$A$747:$G$749,6,TRUE)), (VLOOKUP(3,Tablas!$A$747:$G$749,6,TRUE)))))))), (IF($F$23=2,(IF(2-$F$25=0, 0, (IF(2-$F$25=1,(VLOOKUP(1,Tablas!$A$747:$G$749,6,TRUE)), (IF(2-$F$25=2, (VLOOKUP(2,Tablas!$A$747:$G$749,6,TRUE)), 0)))))), (IF($F$23=1,(IF(1-$F$25=0, 0, (IF(1-$F$25=1,(VLOOKUP(1,Tablas!$A$747:$G$749,6,TRUE)),0)))),0)))))))))))))), (IF($F$23=0, 0, (IF($F$25>$F$23, (VLOOKUP($F$23,Tablas!$A$747:$G$749,6,TRUE)), (IF($F$23=4,(IF(4-$F$25=0, 0, (IF(4-$F$25=1, (VLOOKUP(1,Tablas!$A$747:$G$749,6,TRUE)), (IF(4-$F$25=2, (VLOOKUP(2,Tablas!$A$747:$G$749,6,TRUE)), (IF(4-$F$25=3, (VLOOKUP(3,Tablas!$A$747:$G$749,6,TRUE)), (IF(4-$F$25=4, (VLOOKUP(3,Tablas!$A$747:$G$749,6,TRUE)), 0)))))))))), (IF($F$23=5,(IF(5-$F$25=0, (VLOOKUP(1,Tablas!$A$747:$G$749,6,TRUE)), (IF(5-$F$25=1, (VLOOKUP(1,Tablas!$A$747:$G$749,6,TRUE)), (IF(5-$F$25=2, (VLOOKUP(2,Tablas!$A$747:$G$749,6,TRUE)), (IF(5-$F$25=3, (VLOOKUP(3,Tablas!$A$747:$G$749,6,TRUE)), (IF(5-$F$25=4, (VLOOKUP(3,Tablas!$A$747:$G$749,6,TRUE)), (VLOOKUP(3,Tablas!$A$747:$G$749,6,TRUE)))))))))))), (IF($F$23=6,(IF(6-$F$25=0, (VLOOKUP(2,Tablas!$A$747:$G$749,6,TRUE)), (IF(6-$F$25=1, (VLOOKUP(2,Tablas!$A$747:$G$749,6,TRUE)), (IF(6-$F$25=2, (VLOOKUP(2,Tablas!$A$747:$G$749,6,TRUE)), (IF(6-$F$25=3, (VLOOKUP(3,Tablas!$A$747:$G$749,6,TRUE)), (IF(6-$F$25=4, (VLOOKUP(3,Tablas!$A$747:$G$749,6,TRUE)), (VLOOKUP(3,Tablas!$A$747:$G$749,6,TRUE)))))))))))), (IF($F$23>6,(IF(7-$F$25=0, (VLOOKUP(3,Tablas!$A$747:$G$749,6,TRUE)), (IF(7-$F$25=1, (VLOOKUP(3,Tablas!$A$747:$G$749,6,TRUE)), (IF(7-$F$25=2, (VLOOKUP(3,Tablas!$A$747:$G$749,6,TRUE)), (IF(7-$F$25=3, (VLOOKUP(3,Tablas!$A$747:$G$749,6,TRUE)), (IF(7-$F$25=4, (VLOOKUP(3,Tablas!$A$747:$G$749,6,TRUE)), (VLOOKUP(3,Tablas!$A$747:$G$749,6,TRUE)))))))))))), (IF($F$23=3,(IF(3-$F$25=0,0, (IF(3-$F$25=1,(VLOOKUP(1,Tablas!$A$747:$G$749,6,TRUE)), (IF(3-$F$25=2, (VLOOKUP(2,Tablas!$A$747:$G$749,6,TRUE)), (VLOOKUP(3,Tablas!$A$747:$G$749,6,TRUE)))))))), (IF($F$23=2,(IF(2-$F$25=0, 0, (IF(2-$F$25=1,(VLOOKUP(1,Tablas!$A$747:$G$749,6,TRUE)), (IF(2-$F$25=2, (VLOOKUP(2,Tablas!$A$747:$G$749,6,TRUE)), 0)))))), (IF($F$23=1,(IF(1-$F$25=0, 0, (IF(1-$F$25=1,(VLOOKUP(1,Tablas!$A$747:$G$749,6,TRUE)),0)))),0))))))))))))))))))) -> 0 | K60: =IF($F$21=1, (IF($F$23=0, 0, (IF($F$25>$F$23, (VLOOKUP($F$23,Tablas!$A$747:$G$749,7,TRUE)), (IF($F$23>4,(IF($F$25=0, (VLOOKUP(3,Tablas!$A$747:$G$749,7,TRUE)), (IF($F$25=1, (VLOOKUP(3,Tablas!$A$747:$G$749,7,TRUE)), (IF($F$25=2, (VLOOKUP(3,Tablas!$A$747:$G$749,7,TRUE)), (VLOOKUP(3,Tablas!$A$747:$G$749,7,TRUE)))))))), (IF($F$23=4,(IF(4-$F$25=0,(VLOOKUP(2,Tablas!$A$747:$G$749,7,TRUE)), (IF(4-$F$25=1,(VLOOKUP(2,Tablas!$A$747:$G$749,7,TRUE)), (IF(4-$F$25=2, (VLOOKUP(2,Tablas!$A$747:$G$749,7,TRUE)), (VLOOKUP(3,Tablas!$A$747:$G$749,7,TRUE)))))))), (IF($F$23=3,(IF(3-$F$25=0,(VLOOKUP(1,Tablas!$A$747:$G$749,7,TRUE)), (IF(3-$F$25=1,(VLOOKUP(1,Tablas!$A$747:$G$749,7,TRUE)), (IF(3-$F$25=2, (VLOOKUP(2,Tablas!$A$747:$G$749,7,TRUE)), (VLOOKUP(3,Tablas!$A$747:$G$749,7,TRUE)))))))), (IF($F$23=2,(IF(2-$F$25=0, 0, (IF(2-$F$25=1,(VLOOKUP(1,Tablas!$A$747:$G$749,7,TRUE)), (IF(2-$F$25=2, (VLOOKUP(2,Tablas!$A$747:$G$749,7,TRUE)), 0)))))), (IF($F$23=1,(IF(1-$F$25=0, 0, (IF(1-$F$25=1,(VLOOKUP(1,Tablas!$A$747:$G$749,7,TRUE)),0)))),0)))))))))))))), (IF($F$23=0, 0, (IF($F$25>$F$23, (VLOOKUP($F$23,Tablas!$A$747:$G$749,7,TRUE)), (IF($F$23=4,(IF(4-$F$25=0, 0, (IF(4-$F$25=1, (VLOOKUP(1,Tablas!$A$747:$G$749,7,TRUE)), (IF(4-$F$25=2, (VLOOKUP(2,Tablas!$A$747:$G$749,7,TRUE)), (IF(4-$F$25=3, (VLOOKUP(3,Tablas!$A$747:$G$749,7,TRUE)), (IF(4-$F$25=4, (VLOOKUP(3,Tablas!$A$747:$G$749,7,TRUE)), 0)))))))))), (IF($F$23=5,(IF(5-$F$25=0, (VLOOKUP(1,Tablas!$A$747:$G$749,7,TRUE)), (IF(5-$F$25=1, (VLOOKUP(1,Tablas!$A$747:$G$749,7,TRUE)), (IF(5-$F$25=2, (VLOOKUP(2,Tablas!$A$747:$G$749,7,TRUE)), (IF(5-$F$25=3, (VLOOKUP(3,Tablas!$A$747:$G$749,7,TRUE)), (IF(5-$F$25=4, (VLOOKUP(3,Tablas!$A$747:$G$749,7,TRUE)), (VLOOKUP(3,Tablas!$A$747:$G$749,7,TRUE)))))))))))), (IF($F$23=6,(IF(6-$F$25=0, (VLOOKUP(2,Tablas!$A$747:$G$749,7,TRUE)), (IF(6-$F$25=1, (VLOOKUP(2,Tablas!$A$747:$G$749,7,TRUE)), (IF(6-$F$25=2, (VLOOKUP(2,Tablas!$A$747:$G$749,7,TRUE)), (IF(6-$F$25=3, (VLOOKUP(3,Tablas!$A$747:$G$749,7,TRUE)), (IF(6-$F$25=4, (VLOOKUP(3,Tablas!$A$747:$G$749,7,TRUE)), (VLOOKUP(3,Tablas!$A$747:$G$749,7,TRUE)))))))))))), (IF($F$23>6,(IF(7-$F$25=0, (VLOOKUP(3,Tablas!$A$747:$G$749,7,TRUE)), (IF(7-$F$25=1, (VLOOKUP(3,Tablas!$A$747:$G$749,7,TRUE)), (IF(7-$F$25=2, (VLOOKUP(3,Tablas!$A$747:$G$749,7,TRUE)), (IF(7-$F$25=3, (VLOOKUP(3,Tablas!$A$747:$G$749,7,TRUE)), (IF(7-$F$25=4, (VLOOKUP(3,Tablas!$A$747:$G$749,7,TRUE)), (VLOOKUP(3,Tablas!$A$747:$G$749,7,TRUE)))))))))))), (IF($F$23=3,(IF(3-$F$25=0,0, (IF(3-$F$25=1,(VLOOKUP(1,Tablas!$A$747:$G$749,7,TRUE)), (IF(3-$F$25=2, (VLOOKUP(2,Tablas!$A$747:$G$749,7,TRUE)), (VLOOKUP(3,Tablas!$A$747:$G$749,7,TRUE)))))))), (IF($F$23=2,(IF(2-$F$25=0, 0, (IF(2-$F$25=1,(VLOOKUP(1,Tablas!$A$747:$G$749,7,TRUE)), (IF(2-$F$25=2, (VLOOKUP(2,Tablas!$A$747:$G$749,7,TRUE)), 0)))))), (IF($F$23=1,(IF(1-$F$25=0, 0, (IF(1-$F$25=1,(VLOOKUP(1,Tablas!$A$747:$G$749,7,TRUE)),0)))),0))))))))))))))))))) -> 0
E61: Total de Prima neta | G61: =SUM(G58:G60) -> 2390.025 | H61: =SUM(H58:H60) -> 1696.75 | I61: 1415.7 | J61: 1227.6 | K61: 951.775
E62: Ajuste por la variante con coaseguro fuera del país de residencia | G62: =IF('INGRESO DE DATOS'!$H$21,G61*-15%,0) -> -358.50375 | H62: =IF('INGRESO DE DATOS'!$H$21,H61*-15%,0) -> -254.5125 | I62: =IF('INGRESO DE DATOS'!$H$21,I61*-15%,0) -> -212.355 | J62: =IF('INGRESO DE DATOS'!$H$21,J61*-15%,0) -> -184.14 | K62: =IF('INGRESO DE DATOS'!$H$21,K61*-15%,0) -> -142.76625
E63: Tarifa administrativa anual | G63: 75 | H63: 75 | I63: 75 | J63: 75 | K63: 75
E64: VAT (5%) : | G64: =(G32+G33+G34+G36)*5%/4 -> 92.341875 | H64: =(H32+H33+H34+H36)*5%/4 -> 65.55625 | I64: 54.6975 | J64: 47.43 | K64: 36.773125
E65: ITBMS (7%) | G65: =+G63*7% + ((G32+G33+G34+G36)*0.1*0.07)/4 -> 18.1778625 | H65: =+H63*7% + ((H32+H33+H34+H36)*0.1*0.07)/4 -> 14.427875 | I65: 12.90765 | J65: 11.8902 | K65: 10.3982375
E66: TOTAL de primera cuota | G66: =SUM(G61:G65) -> 2217.040988 | H66: =SUM(H61:H65) -> 1597.221625 | I66: 1345.95015 | J66: 1177.7802 | K66: 931.1801125
E67: Costo de tarifa trimestral 2 a 4 | G67: =(G61+G62)+G64+((G32+G33+G34+G36)*0.1*0.07)/4 -> 2136.790988 | H67: =(H61+H62)+H64+((H32+H33+H34+H36)*0.1*0.07)/4 -> 1516.971625 | I67: 1265.70015 | J67: 1097.5302 | K67: 850.9301125
E68: TOTAL ANUAL | G68: =G66+(G67*3) -> 8627.41395 | H68: =H66+(H67*3) -> 6148.1365 | I68: 5143.0506 | J68: =J66+(J67*3) -> 4470.3708 | K68: 3483.97045
E69: Ahorros en tarifas de prima para niños | G69: =IF($F$21=1,IF($F$23=0,0,IF($F$25=0,0,IF($F$25=1,(VLOOKUP(1,Tablas!$A$747:$G$749,3,TRUE)),(VLOOKUP(2,Tablas!$A$747:$G$749,3,TRUE))))), IF($F$23=0,0,IF($F$25=0,0,IF($F$25=1,(VLOOKUP(1,Tablas!$A$747:$G$749,3,TRUE)),IF($F$25=2,(VLOOKUP(2,Tablas!$A$747:$G$749,3,TRUE)), (VLOOKUP(3,Tablas!$A$747:$G$749,3,TRUE))))))) -> 0 | H69: =IF($F$21=1,IF($F$23=0,0,IF($F$25=0,0,IF($F$25=1,(VLOOKUP(1,Tablas!$A$747:$G$749,4,TRUE)),(VLOOKUP(2,Tablas!$A$747:$G$749,4,TRUE))))), IF($F$23=0,0,IF($F$25=0,0,IF($F$25=1,(VLOOKUP(1,Tablas!$A$747:$G$749,4,TRUE)),IF($F$25=2,(VLOOKUP(2,Tablas!$A$747:$G$749,4,TRUE)), (VLOOKUP(3,Tablas!$A$747:$G$749,4,TRUE))))))) -> 0 | I69: =IF($F$21=1,IF($F$23=0,0,IF($F$25=0,0,IF($F$25=1,(VLOOKUP(1,Tablas!$A$747:$G$749,5,TRUE)),(VLOOKUP(2,Tablas!$A$747:$G$749,5,TRUE))))), IF($F$23=0,0,IF($F$25=0,0,IF($F$25=1,(VLOOKUP(1,Tablas!$A$747:$G$749,5,TRUE)),IF($F$25=2,(VLOOKUP(2,Tablas!$A$747:$G$749,5,TRUE)), (VLOOKUP(3,Tablas!$A$747:$G$749,5,TRUE))))))) -> 0 | J69: =IF($F$21=1,IF($F$23=0,0,IF($F$25=0,0,IF($F$25=1,(VLOOKUP(1,Tablas!$A$747:$G$749,6,TRUE)),(VLOOKUP(2,Tablas!$A$747:$G$749,6,TRUE))))), IF($F$23=0,0,IF($F$25=0,0,IF($F$25=1,(VLOOKUP(1,Tablas!$A$747:$G$749,6,TRUE)),IF($F$25=2,(VLOOKUP(2,Tablas!$A$747:$G$749,6,TRUE)), (VLOOKUP(3,Tablas!$A$747:$G$749,6,TRUE))))))) -> 0 | K69: =IF($F$21=1,IF($F$23=0,0,IF($F$25=0,0,IF($F$25=1,(VLOOKUP(1,Tablas!$A$747:$G$749,7,TRUE)),(VLOOKUP(2,Tablas!$A$747:$G$749,7,TRUE))))), IF($F$23=0,0,IF($F$25=0,0,IF($F$25=1,(VLOOKUP(1,Tablas!$A$747:$G$749,7,TRUE)),IF($F$25=2,(VLOOKUP(2,Tablas!$A$747:$G$749,7,TRUE)), (VLOOKUP(3,Tablas!$A$747:$G$749,7,TRUE))))))) -> 0
E71: Tarifas mensuales
E72: Prima para Asegurado Titular | G72: =VLOOKUP($I$21,Tablas!$A$80:$G$146,3,TRUE) -> 811.16 | H72: =VLOOKUP($I$21,Tablas!$A$80:$G$146,4,TRUE) -> 575.8666667 | I72: =VLOOKUP($I$21,Tablas!$A$80:$G$146,5,TRUE) -> 480.48 | J72: =VLOOKUP($I$21,Tablas!$A$80:$G$146,6,TRUE) -> 416.64 | K72: =VLOOKUP($I$21,Tablas!$A$80:$G$146,7,TRUE) -> 323.0266667
E73: Prima para conyuge | G73: =IF($F$21=1,0,(VLOOKUP($I$23,Tablas!$A$80:$G$146,3,TRUE))) -> 0 | H73: =IF($F$21=1,0,(VLOOKUP($I$23,Tablas!$A$80:$G$146,4,TRUE))) -> 0 | I73: =IF($F$21=1,0,(VLOOKUP($I$23,Tablas!$A$80:$G$146,5,TRUE))) -> 0 | J73: =IF($F$21=1,0,(VLOOKUP($I$23,Tablas!$A$80:$G$146,6,TRUE))) -> 0 | K73: =IF($F$21=1,0,(VLOOKUP($I$23,Tablas!$A$80:$G$146,7,TRUE))) -> 0
E74: Prima para hijo (s) | G74: =IF($F$21=1, (IF($F$23=0, 0, (IF($F$25>$F$23, (VLOOKUP($F$23,Tablas!$A$147:$G$149,3,TRUE)), (IF($F$23>4,(IF($F$25=0, (VLOOKUP(3,Tablas!$A$147:$G$149,3,TRUE)), (IF($F$25=1, (VLOOKUP(3,Tablas!$A$147:$G$149,3,TRUE)), (IF($F$25=2, (VLOOKUP(3,Tablas!$A$147:$G$149,3,TRUE)), (VLOOKUP(3,Tablas!$A$147:$G$149,3,TRUE)))))))), (IF($F$23=4,(IF(4-$F$25=0,(VLOOKUP(2,Tablas!$A$147:$G$149,3,TRUE)), (IF(4-$F$25=1,(VLOOKUP(2,Tablas!$A$147:$G$149,3,TRUE)), (IF(4-$F$25=2, (VLOOKUP(2,Tablas!$A$147:$G$149,3,TRUE)), (VLOOKUP(3,Tablas!$A$147:$G$149,3,TRUE)))))))), (IF($F$23=3,(IF(3-$F$25=0,(VLOOKUP(1,Tablas!$A$147:$G$149,3,TRUE)), (IF(3-$F$25=1,(VLOOKUP(1,Tablas!$A$147:$G$149,3,TRUE)), (IF(3-$F$25=2, (VLOOKUP(2,Tablas!$A$147:$G$149,3,TRUE)), (VLOOKUP(3,Tablas!$A$147:$G$149,3,TRUE)))))))), (IF($F$23=2,(IF(2-$F$25=0, 0, (IF(2-$F$25=1,(VLOOKUP(1,Tablas!$A$147:$G$149,3,TRUE)), (IF(2-$F$25=2, (VLOOKUP(2,Tablas!$A$147:$G$149,3,TRUE)), 0)))))), (IF($F$23=1,(IF(1-$F$25=0, 0, (IF(1-$F$25=1,(VLOOKUP(1,Tablas!$A$147:$G$149,3,TRUE)),0)))),0)))))))))))))), (IF($F$23=0, 0, (IF($F$25>$F$23, (VLOOKUP($F$23,Tablas!$A$147:$G$149,3,TRUE)), (IF($F$23=4,(IF(4-$F$25=0, 0, (IF(4-$F$25=1, (VLOOKUP(1,Tablas!$A$147:$G$149,3,TRUE)), (IF(4-$F$25=2, (VLOOKUP(2,Tablas!$A$147:$G$149,3,TRUE)), (IF(4-$F$25=3, (VLOOKUP(3,Tablas!$A$147:$G$149,3,TRUE)), (IF(4-$F$25=4, (VLOOKUP(3,Tablas!$A$147:$G$149,3,TRUE)), 0)))))))))), (IF($F$23=5,(IF(5-$F$25=0, (VLOOKUP(1,Tablas!$A$147:$G$149,3,TRUE)), (IF(5-$F$25=1, (VLOOKUP(1,Tablas!$A$147:$G$149,3,TRUE)), (IF(5-$F$25=2, (VLOOKUP(2,Tablas!$A$147:$G$149,3,TRUE)), (IF(5-$F$25=3, (VLOOKUP(3,Tablas!$A$147:$G$149,3,TRUE)), (IF(5-$F$25=4, (VLOOKUP(3,Tablas!$A$147:$G$149,3,TRUE)), (VLOOKUP(3,Tablas!$A$147:$G$149,3,TRUE)))))))))))), (IF($F$23=6,(IF(6-$F$25=0, (VLOOKUP(2,Tablas!$A$147:$G$149,3,TRUE)), (IF(6-$F$25=1, (VLOOKUP(2,Tablas!$A$147:$G$149,3,TRUE)), (IF(6-$F$25=2, (VLOOKUP(2,Tablas!$A$147:$G$149,3,TRUE)), (IF(6-$F$25=3, (VLOOKUP(3,Tablas!$A$147:$G$149,3,TRUE)), (IF(6-$F$25=4, (VLOOKUP(3,Tablas!$A$147:$G$149,3,TRUE)), (VLOOKUP(3,Tablas!$A$147:$G$149,3,TRUE)))))))))))), (IF($F$23>6,(IF(7-$F$25=0, (VLOOKUP(3,Tablas!$A$147:$G$149,3,TRUE)), (IF(7-$F$25=1, (VLOOKUP(3,Tablas!$A$147:$G$149,3,TRUE)), (IF(7-$F$25=2, (VLOOKUP(3,Tablas!$A$147:$G$149,3,TRUE)), (IF(7-$F$25=3, (VLOOKUP(3,Tablas!$A$147:$G$149,3,TRUE)), (IF(7-$F$25=4, (VLOOKUP(3,Tablas!$A$147:$G$149,3,TRUE)), (VLOOKUP(3,Tablas!$A$147:$G$149,3,TRUE)))))))))))), (IF($F$23=3,(IF(3-$F$25=0,0, (IF(3-$F$25=1,(VLOOKUP(1,Tablas!$A$147:$G$149,3,TRUE)), (IF(3-$F$25=2, (VLOOKUP(2,Tablas!$A$147:$G$149,3,TRUE)), (VLOOKUP(3,Tablas!$A$147:$G$149,3,TRUE)))))))), (IF($F$23=2,(IF(2-$F$25=0, 0, (IF(2-$F$25=1,(VLOOKUP(1,Tablas!$A$147:$G$149,3,TRUE)), (IF(2-$F$25=2, (VLOOKUP(2,Tablas!$A$147:$G$149,3,TRUE)), 0)))))), (IF($F$23=1,(IF(1-$F$25=0, 0, (IF(1-$F$25=1,(VLOOKUP(1,Tablas!$A$147:$G$149,3,TRUE)),0)))),0))))))))))))))))))) -> 0 | H74: =IF($F$21=1, (IF($F$23=0, 0, (IF($F$25>$F$23, (VLOOKUP($F$23,Tablas!$A$147:$G$149,4,TRUE)), (IF($F$23>4,(IF($F$25=0, (VLOOKUP(3,Tablas!$A$147:$G$149,4,TRUE)), (IF($F$25=1, (VLOOKUP(3,Tablas!$A$147:$G$149,4,TRUE)), (IF($F$25=2, (VLOOKUP(3,Tablas!$A$147:$G$149,4,TRUE)), (VLOOKUP(3,Tablas!$A$147:$G$149,4,TRUE)))))))), (IF($F$23=4,(IF(4-$F$25=0,(VLOOKUP(2,Tablas!$A$147:$G$149,4,TRUE)), (IF(4-$F$25=1,(VLOOKUP(2,Tablas!$A$147:$G$149,4,TRUE)), (IF(4-$F$25=2, (VLOOKUP(2,Tablas!$A$147:$G$149,4,TRUE)), (VLOOKUP(3,Tablas!$A$147:$G$149,4,TRUE)))))))), (IF($F$23=3,(IF(3-$F$25=0,(VLOOKUP(1,Tablas!$A$147:$G$149,4,TRUE)), (IF(3-$F$25=1,(VLOOKUP(1,Tablas!$A$147:$G$149,4,TRUE)), (IF(3-$F$25=2, (VLOOKUP(2,Tablas!$A$147:$G$149,4,TRUE)), (VLOOKUP(3,Tablas!$A$147:$G$149,4,TRUE)))))))), (IF($F$23=2,(IF(2-$F$25=0, 0, (IF(2-$F$25=1,(VLOOKUP(1,Tablas!$A$147:$G$149,4,TRUE)), (IF(2-$F$25=2, (VLOOKUP(2,Tablas!$A$147:$G$149,4,TRUE)), 0)))))), (IF($F$23=1,(IF(1-$F$25=0, 0, (IF(1-$F$25=1,(VLOOKUP(1,Tablas!$A$147:$G$149,4,TRUE)),0)))),0)))))))))))))), (IF($F$23=0, 0, (IF($F$25>$F$23, (VLOOKUP($F$23,Tablas!$A$147:$G$149,4,TRUE)), (IF($F$23=4,(IF(4-$F$25=0, 0, (IF(4-$F$25=1, (VLOOKUP(1,Tablas!$A$147:$G$149,4,TRUE)), (IF(4-$F$25=2, (VLOOKUP(2,Tablas!$A$147:$G$149,4,TRUE)), (IF(4-$F$25=3, (VLOOKUP(3,Tablas!$A$147:$G$149,4,TRUE)), (IF(4-$F$25=4, (VLOOKUP(3,Tablas!$A$147:$G$149,4,TRUE)), 0)))))))))), (IF($F$23=5,(IF(5-$F$25=0, (VLOOKUP(1,Tablas!$A$147:$G$149,4,TRUE)), (IF(5-$F$25=1, (VLOOKUP(1,Tablas!$A$147:$G$149,4,TRUE)), (IF(5-$F$25=2, (VLOOKUP(2,Tablas!$A$147:$G$149,4,TRUE)), (IF(5-$F$25=3, (VLOOKUP(3,Tablas!$A$147:$G$149,4,TRUE)), (IF(5-$F$25=4, (VLOOKUP(3,Tablas!$A$147:$G$149,4,TRUE)), (VLOOKUP(3,Tablas!$A$147:$G$149,4,TRUE)))))))))))), (IF($F$23=6,(IF(6-$F$25=0, (VLOOKUP(2,Tablas!$A$147:$G$149,4,TRUE)), (IF(6-$F$25=1, (VLOOKUP(2,Tablas!$A$147:$G$149,4,TRUE)), (IF(6-$F$25=2, (VLOOKUP(2,Tablas!$A$147:$G$149,4,TRUE)), (IF(6-$F$25=3, (VLOOKUP(3,Tablas!$A$147:$G$149,4,TRUE)), (IF(6-$F$25=4, (VLOOKUP(3,Tablas!$A$147:$G$149,4,TRUE)), (VLOOKUP(3,Tablas!$A$147:$G$149,4,TRUE)))))))))))), (IF($F$23>6,(IF(7-$F$25=0, (VLOOKUP(3,Tablas!$A$147:$G$149,4,TRUE)), (IF(7-$F$25=1, (VLOOKUP(3,Tablas!$A$147:$G$149,4,TRUE)), (IF(7-$F$25=2, (VLOOKUP(3,Tablas!$A$147:$G$149,4,TRUE)), (IF(7-$F$25=3, (VLOOKUP(3,Tablas!$A$147:$G$149,4,TRUE)), (IF(7-$F$25=4, (VLOOKUP(3,Tablas!$A$147:$G$149,4,TRUE)), (VLOOKUP(3,Tablas!$A$147:$G$149,4,TRUE)))))))))))), (IF($F$23=3,(IF(3-$F$25=0,0, (IF(3-$F$25=1,(VLOOKUP(1,Tablas!$A$147:$G$149,4,TRUE)), (IF(3-$F$25=2, (VLOOKUP(2,Tablas!$A$147:$G$149,4,TRUE)), (VLOOKUP(3,Tablas!$A$147:$G$149,4,TRUE)))))))), (IF($F$23=2,(IF(2-$F$25=0, 0, (IF(2-$F$25=1,(VLOOKUP(1,Tablas!$A$147:$G$149,4,TRUE)), (IF(2-$F$25=2, (VLOOKUP(2,Tablas!$A$147:$G$149,4,TRUE)), 0)))))), (IF($F$23=1,(IF(1-$F$25=0, 0, (IF(1-$F$25=1,(VLOOKUP(1,Tablas!$A$147:$G$149,4,TRUE)),0)))),0))))))))))))))))))) -> 0 | I74: =IF($F$21=1, (IF($F$23=0, 0, (IF($F$25>$F$23, (VLOOKUP($F$23,Tablas!$A$147:$G$149,5,TRUE)), (IF($F$23>4,(IF($F$25=0, (VLOOKUP(3,Tablas!$A$147:$G$149,5,TRUE)), (IF($F$25=1, (VLOOKUP(3,Tablas!$A$147:$G$149,5,TRUE)), (IF($F$25=2, (VLOOKUP(3,Tablas!$A$147:$G$149,5,TRUE)), (VLOOKUP(3,Tablas!$A$147:$G$149,5,TRUE)))))))), (IF($F$23=4,(IF(4-$F$25=0,(VLOOKUP(2,Tablas!$A$147:$G$149,5,TRUE)), (IF(4-$F$25=1,(VLOOKUP(2,Tablas!$A$147:$G$149,5,TRUE)), (IF(4-$F$25=2, (VLOOKUP(2,Tablas!$A$147:$G$149,5,TRUE)), (VLOOKUP(3,Tablas!$A$147:$G$149,5,TRUE)))))))), (IF($F$23=3,(IF(3-$F$25=0,(VLOOKUP(1,Tablas!$A$147:$G$149,5,TRUE)), (IF(3-$F$25=1,(VLOOKUP(1,Tablas!$A$147:$G$149,5,TRUE)), (IF(3-$F$25=2, (VLOOKUP(2,Tablas!$A$147:$G$149,5,TRUE)), (VLOOKUP(3,Tablas!$A$147:$G$149,5,TRUE)))))))), (IF($F$23=2,(IF(2-$F$25=0, 0, (IF(2-$F$25=1,(VLOOKUP(1,Tablas!$A$147:$G$149,5,TRUE)), (IF(2-$F$25=2, (VLOOKUP(2,Tablas!$A$147:$G$149,5,TRUE)), 0)))))), (IF($F$23=1,(IF(1-$F$25=0, 0, (IF(1-$F$25=1,(VLOOKUP(1,Tablas!$A$147:$G$149,5,TRUE)),0)))),0)))))))))))))), (IF($F$23=0, 0, (IF($F$25>$F$23, (VLOOKUP($F$23,Tablas!$A$147:$G$149,5,TRUE)), (IF($F$23=4,(IF(4-$F$25=0, 0, (IF(4-$F$25=1, (VLOOKUP(1,Tablas!$A$147:$G$149,5,TRUE)), (IF(4-$F$25=2, (VLOOKUP(2,Tablas!$A$147:$G$149,5,TRUE)), (IF(4-$F$25=3, (VLOOKUP(3,Tablas!$A$147:$G$149,5,TRUE)), (IF(4-$F$25=4, (VLOOKUP(3,Tablas!$A$147:$G$149,5,TRUE)), 0)))))))))), (IF($F$23=5,(IF(5-$F$25=0, (VLOOKUP(1,Tablas!$A$147:$G$149,5,TRUE)), (IF(5-$F$25=1, (VLOOKUP(1,Tablas!$A$147:$G$149,5,TRUE)), (IF(5-$F$25=2, (VLOOKUP(2,Tablas!$A$147:$G$149,5,TRUE)), (IF(5-$F$25=3, (VLOOKUP(3,Tablas!$A$147:$G$149,5,TRUE)), (IF(5-$F$25=4, (VLOOKUP(3,Tablas!$A$147:$G$149,5,TRUE)), (VLOOKUP(3,Tablas!$A$147:$G$149,5,TRUE)))))))))))), (IF($F$23=6,(IF(6-$F$25=0, (VLOOKUP(2,Tablas!$A$147:$G$149,5,TRUE)), (IF(6-$F$25=1, (VLOOKUP(2,Tablas!$A$147:$G$149,5,TRUE)), (IF(6-$F$25=2, (VLOOKUP(2,Tablas!$A$147:$G$149,5,TRUE)), (IF(6-$F$25=3, (VLOOKUP(3,Tablas!$A$147:$G$149,5,TRUE)), (IF(6-$F$25=4, (VLOOKUP(3,Tablas!$A$147:$G$149,5,TRUE)), (VLOOKUP(3,Tablas!$A$147:$G$149,5,TRUE)))))))))))), (IF($F$23>6,(IF(7-$F$25=0, (VLOOKUP(3,Tablas!$A$147:$G$149,5,TRUE)), (IF(7-$F$25=1, (VLOOKUP(3,Tablas!$A$147:$G$149,5,TRUE)), (IF(7-$F$25=2, (VLOOKUP(3,Tablas!$A$147:$G$149,5,TRUE)), (IF(7-$F$25=3, (VLOOKUP(3,Tablas!$A$147:$G$149,5,TRUE)), (IF(7-$F$25=4, (VLOOKUP(3,Tablas!$A$147:$G$149,5,TRUE)), (VLOOKUP(3,Tablas!$A$147:$G$149,5,TRUE)))))))))))), (IF($F$23=3,(IF(3-$F$25=0,0, (IF(3-$F$25=1,(VLOOKUP(1,Tablas!$A$147:$G$149,5,TRUE)), (IF(3-$F$25=2, (VLOOKUP(2,Tablas!$A$147:$G$149,5,TRUE)), (VLOOKUP(3,Tablas!$A$147:$G$149,5,TRUE)))))))), (IF($F$23=2,(IF(2-$F$25=0, 0, (IF(2-$F$25=1,(VLOOKUP(1,Tablas!$A$147:$G$149,5,TRUE)), (IF(2-$F$25=2, (VLOOKUP(2,Tablas!$A$147:$G$149,5,TRUE)), 0)))))), (IF($F$23=1,(IF(1-$F$25=0, 0, (IF(1-$F$25=1,(VLOOKUP(1,Tablas!$A$147:$G$149,5,TRUE)),0)))),0))))))))))))))))))) -> 0 | J74: =IF($F$21=1, (IF($F$23=0, 0, (IF($F$25>$F$23, (VLOOKUP($F$23,Tablas!$A$147:$G$149,6,TRUE)), (IF($F$23>4,(IF($F$25=0, (VLOOKUP(3,Tablas!$A$147:$G$149,6,TRUE)), (IF($F$25=1, (VLOOKUP(3,Tablas!$A$147:$G$149,6,TRUE)), (IF($F$25=2, (VLOOKUP(3,Tablas!$A$147:$G$149,6,TRUE)), (VLOOKUP(3,Tablas!$A$147:$G$149,6,TRUE)))))))), (IF($F$23=4,(IF(4-$F$25=0,(VLOOKUP(2,Tablas!$A$147:$G$149,6,TRUE)), (IF(4-$F$25=1,(VLOOKUP(2,Tablas!$A$147:$G$149,6,TRUE)), (IF(4-$F$25=2, (VLOOKUP(2,Tablas!$A$147:$G$149,6,TRUE)), (VLOOKUP(3,Tablas!$A$147:$G$149,6,TRUE)))))))), (IF($F$23=3,(IF(3-$F$25=0,(VLOOKUP(1,Tablas!$A$147:$G$149,6,TRUE)), (IF(3-$F$25=1,(VLOOKUP(1,Tablas!$A$147:$G$149,6,TRUE)), (IF(3-$F$25=2, (VLOOKUP(2,Tablas!$A$147:$G$149,6,TRUE)), (VLOOKUP(3,Tablas!$A$147:$G$149,6,TRUE)))))))), (IF($F$23=2,(IF(2-$F$25=0, 0, (IF(2-$F$25=1,(VLOOKUP(1,Tablas!$A$147:$G$149,6,TRUE)), (IF(2-$F$25=2, (VLOOKUP(2,Tablas!$A$147:$G$149,6,TRUE)), 0)))))), (IF($F$23=1,(IF(1-$F$25=0, 0, (IF(1-$F$25=1,(VLOOKUP(1,Tablas!$A$147:$G$149,6,TRUE)),0)))),0)))))))))))))), (IF($F$23=0, 0, (IF($F$25>$F$23, (VLOOKUP($F$23,Tablas!$A$147:$G$149,6,TRUE)), (IF($F$23=4,(IF(4-$F$25=0, 0, (IF(4-$F$25=1, (VLOOKUP(1,Tablas!$A$147:$G$149,6,TRUE)), (IF(4-$F$25=2, (VLOOKUP(2,Tablas!$A$147:$G$149,6,TRUE)), (IF(4-$F$25=3, (VLOOKUP(3,Tablas!$A$147:$G$149,6,TRUE)), (IF(4-$F$25=4, (VLOOKUP(3,Tablas!$A$147:$G$149,6,TRUE)), 0)))))))))), (IF($F$23=5,(IF(5-$F$25=0, (VLOOKUP(1,Tablas!$A$147:$G$149,6,TRUE)), (IF(5-$F$25=1, (VLOOKUP(1,Tablas!$A$147:$G$149,6,TRUE)), (IF(5-$F$25=2, (VLOOKUP(2,Tablas!$A$147:$G$149,6,TRUE)), (IF(5-$F$25=3, (VLOOKUP(3,Tablas!$A$147:$G$149,6,TRUE)), (IF(5-$F$25=4, (VLOOKUP(3,Tablas!$A$147:$G$149,6,TRUE)), (VLOOKUP(3,Tablas!$A$147:$G$149,6,TRUE)))))))))))), (IF($F$23=6,(IF(6-$F$25=0, (VLOOKUP(2,Tablas!$A$147:$G$149,6,TRUE)), (IF(6-$F$25=1, (VLOOKUP(2,Tablas!$A$147:$G$149,6,TRUE)), (IF(6-$F$25=2, (VLOOKUP(2,Tablas!$A$147:$G$149,6,TRUE)), (IF(6-$F$25=3, (VLOOKUP(3,Tablas!$A$147:$G$149,6,TRUE)), (IF(6-$F$25=4, (VLOOKUP(3,Tablas!$A$147:$G$149,6,TRUE)), (VLOOKUP(3,Tablas!$A$147:$G$149,6,TRUE)))))))))))), (IF($F$23>6,(IF(7-$F$25=0, (VLOOKUP(3,Tablas!$A$147:$G$149,6,TRUE)), (IF(7-$F$25=1, (VLOOKUP(3,Tablas!$A$147:$G$149,6,TRUE)), (IF(7-$F$25=2, (VLOOKUP(3,Tablas!$A$147:$G$149,6,TRUE)), (IF(7-$F$25=3, (VLOOKUP(3,Tablas!$A$147:$G$149,6,TRUE)), (IF(7-$F$25=4, (VLOOKUP(3,Tablas!$A$147:$G$149,6,TRUE)), (VLOOKUP(3,Tablas!$A$147:$G$149,6,TRUE)))))))))))), (IF($F$23=3,(IF(3-$F$25=0,0, (IF(3-$F$25=1,(VLOOKUP(1,Tablas!$A$147:$G$149,6,TRUE)), (IF(3-$F$25=2, (VLOOKUP(2,Tablas!$A$147:$G$149,6,TRUE)), (VLOOKUP(3,Tablas!$A$147:$G$149,6,TRUE)))))))), (IF($F$23=2,(IF(2-$F$25=0, 0, (IF(2-$F$25=1,(VLOOKUP(1,Tablas!$A$147:$G$149,6,TRUE)), (IF(2-$F$25=2, (VLOOKUP(2,Tablas!$A$147:$G$149,6,TRUE)), 0)))))), (IF($F$23=1,(IF(1-$F$25=0, 0, (IF(1-$F$25=1,(VLOOKUP(1,Tablas!$A$147:$G$149,6,TRUE)),0)))),0))))))))))))))))))) -> 0 | K74: =IF($F$21=1, (IF($F$23=0, 0, (IF($F$25>$F$23, (VLOOKUP($F$23,Tablas!$A$147:$G$149,7,TRUE)), (IF($F$23>4,(IF($F$25=0, (VLOOKUP(3,Tablas!$A$147:$G$149,7,TRUE)), (IF($F$25=1, (VLOOKUP(3,Tablas!$A$147:$G$149,7,TRUE)), (IF($F$25=2, (VLOOKUP(3,Tablas!$A$147:$G$149,7,TRUE)), (VLOOKUP(3,Tablas!$A$147:$G$149,7,TRUE)))))))), (IF($F$23=4,(IF(4-$F$25=0,(VLOOKUP(2,Tablas!$A$147:$G$149,7,TRUE)), (IF(4-$F$25=1,(VLOOKUP(2,Tablas!$A$147:$G$149,7,TRUE)), (IF(4-$F$25=2, (VLOOKUP(2,Tablas!$A$147:$G$149,7,TRUE)), (VLOOKUP(3,Tablas!$A$147:$G$149,7,TRUE)))))))), (IF($F$23=3,(IF(3-$F$25=0,(VLOOKUP(1,Tablas!$A$147:$G$149,7,TRUE)), (IF(3-$F$25=1,(VLOOKUP(1,Tablas!$A$147:$G$149,7,TRUE)), (IF(3-$F$25=2, (VLOOKUP(2,Tablas!$A$147:$G$149,7,TRUE)), (VLOOKUP(3,Tablas!$A$147:$G$149,7,TRUE)))))))), (IF($F$23=2,(IF(2-$F$25=0, 0, (IF(2-$F$25=1,(VLOOKUP(1,Tablas!$A$147:$G$149,7,TRUE)), (IF(2-$F$25=2, (VLOOKUP(2,Tablas!$A$147:$G$149,7,TRUE)), 0)))))), (IF($F$23=1,(IF(1-$F$25=0, 0, (IF(1-$F$25=1,(VLOOKUP(1,Tablas!$A$147:$G$149,7,TRUE)),0)))),0)))))))))))))), (IF($F$23=0, 0, (IF($F$25>$F$23, (VLOOKUP($F$23,Tablas!$A$147:$G$149,7,TRUE)), (IF($F$23=4,(IF(4-$F$25=0, 0, (IF(4-$F$25=1, (VLOOKUP(1,Tablas!$A$147:$G$149,7,TRUE)), (IF(4-$F$25=2, (VLOOKUP(2,Tablas!$A$147:$G$149,7,TRUE)), (IF(4-$F$25=3, (VLOOKUP(3,Tablas!$A$147:$G$149,7,TRUE)), (IF(4-$F$25=4, (VLOOKUP(3,Tablas!$A$147:$G$149,7,TRUE)), 0)))))))))), (IF($F$23=5,(IF(5-$F$25=0, (VLOOKUP(1,Tablas!$A$147:$G$149,7,TRUE)), (IF(5-$F$25=1, (VLOOKUP(1,Tablas!$A$147:$G$149,7,TRUE)), (IF(5-$F$25=2, (VLOOKUP(2,Tablas!$A$147:$G$149,7,TRUE)), (IF(5-$F$25=3, (VLOOKUP(3,Tablas!$A$147:$G$149,7,TRUE)), (IF(5-$F$25=4, (VLOOKUP(3,Tablas!$A$147:$G$149,7,TRUE)), (VLOOKUP(3,Tablas!$A$147:$G$149,7,TRUE)))))))))))), (IF($F$23=6,(IF(6-$F$25=0, (VLOOKUP(2,Tablas!$A$147:$G$149,7,TRUE)), (IF(6-$F$25=1, (VLOOKUP(2,Tablas!$A$147:$G$149,7,TRUE)), (IF(6-$F$25=2, (VLOOKUP(2,Tablas!$A$147:$G$149,7,TRUE)), (IF(6-$F$25=3, (VLOOKUP(3,Tablas!$A$147:$G$149,7,TRUE)), (IF(6-$F$25=4, (VLOOKUP(3,Tablas!$A$147:$G$149,7,TRUE)), (VLOOKUP(3,Tablas!$A$147:$G$149,7,TRUE)))))))))))), (IF($F$23>6,(IF(7-$F$25=0, (VLOOKUP(3,Tablas!$A$147:$G$149,7,TRUE)), (IF(7-$F$25=1, (VLOOKUP(3,Tablas!$A$147:$G$149,7,TRUE)), (IF(7-$F$25=2, (VLOOKUP(3,Tablas!$A$147:$G$149,7,TRUE)), (IF(7-$F$25=3, (VLOOKUP(3,Tablas!$A$147:$G$149,7,TRUE)), (IF(7-$F$25=4, (VLOOKUP(3,Tablas!$A$147:$G$149,7,TRUE)), (VLOOKUP(3,Tablas!$A$147:$G$149,7,TRUE)))))))))))), (IF($F$23=3,(IF(3-$F$25=0,0, (IF(3-$F$25=1,(VLOOKUP(1,Tablas!$A$147:$G$149,7,TRUE)), (IF(3-$F$25=2, (VLOOKUP(2,Tablas!$A$147:$G$149,7,TRUE)), (VLOOKUP(3,Tablas!$A$147:$G$149,7,TRUE)))))))), (IF($F$23=2,(IF(2-$F$25=0, 0, (IF(2-$F$25=1,(VLOOKUP(1,Tablas!$A$147:$G$149,7,TRUE)), (IF(2-$F$25=2, (VLOOKUP(2,Tablas!$A$147:$G$149,7,TRUE)), 0)))))), (IF($F$23=1,(IF(1-$F$25=0, 0, (IF(1-$F$25=1,(VLOOKUP(1,Tablas!$A$147:$G$149,7,TRUE)),0)))),0))))))))))))))))))) -> 0
E75: Total de Prima neta | G75: =SUM(G72:G74) -> 811.16 | H75: =SUM(H72:H74) -> 575.8666667 | I75: 480.48 | J75: 416.64 | K75: 323.0266667
E76: Ajuste por la variante con coaseguro fuera del país de residencia | G76: =IF('INGRESO DE DATOS'!$H$21,G75*-15%,0) -> -121.674 | H76: =IF('INGRESO DE DATOS'!$H$21,H75*-15%,0) -> -86.38 | I76: =IF('INGRESO DE DATOS'!$H$21,I75*-15%,0) -> -72.072 | J76: =IF('INGRESO DE DATOS'!$H$21,J75*-15%,0) -> -62.496 | K76: =IF('INGRESO DE DATOS'!$H$21,K75*-15%,0) -> -48.454
E77: Tarifa administrativa anual | G77: 75 | H77: 75 | I77: 75 | J77: 75 | K77: 75
E78: VAT (5%) : | G78: =(G32+G33+G34+G36)*5%/12 -> 30.780625 | H78: =(H32+H33+H34+H36)*5%/12 -> 21.85208333 | I78: 18.2325 | J78: 15.81 | K78: 12.25770833
E79: ITBMS (7%) | G79: =+G77*7% + ((G32+G33+G34+G36)*0.12*0.07)/12 -> 10.421145 | H79: =+H77*7% + ((H32+H33+H34+H36)*0.12*0.07)/12 -> 8.92115 | I79: 8.31306 | J79: 7.90608 | K79: 7.309295
E80: TOTAL de primera cuota | G80: =SUM(G75:G79) -> 805.68777 | H80: =SUM(H75:H79) -> 595.2599 | I80: 509.95356 | J80: 452.86008 | K80: 369.13967
E81: Costo de Tarifa mensual de 2 a 12 | G81: =((G75+G76)+G78)+((G32+G33+G34+G36)*0.12*0.07)/12 -> 725.43777 | H81: =((H75+H76)+H78)+((H32+H33+H34+H36)*0.12*0.07)/12 -> 515.0099 | I81: 429.70356 | J81: 372.61008 | K81: 288.88967
E82: TOTAL ANUAL | G82: =G80+(G81*11) -> 8785.50324 | H82: =H80+(H81*11) -> 6260.3688 | I82: 5236.69272 | J82: =J80+(J81*11) -> 4551.57096 | K82: 3546.92604
E83: Ahorros en tarifas de prima para niños | G83: =IF($F$21=1,IF($F$23=0,0,IF($F$25=0,0,IF($F$25=1,(VLOOKUP(1,Tablas!$A$147:$G$149,3,TRUE)),(VLOOKUP(2,Tablas!$A$147:$G$149,3,TRUE))))), IF($F$23=0,0,IF($F$25=0,0,IF($F$25=1,(VLOOKUP(1,Tablas!$A$147:$G$149,3,TRUE)),IF($F$25=2,(VLOOKUP(2,Tablas!$A$147:$G$149,3,TRUE)), (VLOOKUP(3,Tablas!$A$147:$G$149,3,TRUE))))))) -> 0 | H83: =IF($F$21=1,IF($F$23=0,0,IF($F$25=0,0,IF($F$25=1,(VLOOKUP(1,Tablas!$A$147:$G$149,4,TRUE)),(VLOOKUP(2,Tablas!$A$147:$G$149,4,TRUE))))), IF($F$23=0,0,IF($F$25=0,0,IF($F$25=1,(VLOOKUP(1,Tablas!$A$147:$G$149,4,TRUE)),IF($F$25=2,(VLOOKUP(2,Tablas!$A$147:$G$149,4,TRUE)), (VLOOKUP(3,Tablas!$A$147:$G$149,4,TRUE))))))) -> 0 | I83: =IF($F$21=1,IF($F$23=0,0,IF($F$25=0,0,IF($F$25=1,(VLOOKUP(1,Tablas!$A$147:$G$149,5,TRUE)),(VLOOKUP(2,Tablas!$A$147:$G$149,5,TRUE))))), IF($F$23=0,0,IF($F$25=0,0,IF($F$25=1,(VLOOKUP(1,Tablas!$A$147:$G$149,5,TRUE)),IF($F$25=2,(VLOOKUP(2,Tablas!$A$147:$G$149,5,TRUE)), (VLOOKUP(3,Tablas!$A$147:$G$149,5,TRUE))))))) -> 0 | J83: =IF($F$21=1,IF($F$23=0,0,IF($F$25=0,0,IF($F$25=1,(VLOOKUP(1,Tablas!$A$147:$G$149,6,TRUE)),(VLOOKUP(2,Tablas!$A$147:$G$149,6,TRUE))))), IF($F$23=0,0,IF($F$25=0,0,IF($F$25=1,(VLOOKUP(1,Tablas!$A$147:$G$149,6,TRUE)),IF($F$25=2,(VLOOKUP(2,Tablas!$A$147:$G$149,6,TRUE)), (VLOOKUP(3,Tablas!$A$147:$G$149,6,TRUE))))))) -> 0 | K83: =IF($F$21=1,IF($F$23=0,0,IF($F$25=0,0,IF($F$25=1,(VLOOKUP(1,Tablas!$A$147:$G$149,7,TRUE)),(VLOOKUP(2,Tablas!$A$147:$G$149,7,TRUE))))), IF($F$23=0,0,IF($F$25=0,0,IF($F$25=1,(VLOOKUP(1,Tablas!$A$147:$G$149,7,TRUE)),IF($F$25=2,(VLOOKUP(2,Tablas!$A$147:$G$149,7,TRUE)), (VLOOKUP(3,Tablas!$A$147:$G$149,7,TRUE))))))) -> 0
E85: Tarifas en US$ - Efectivas a partir del 1ro de Enero, 2020

Sheet Bupa Global Premier
A23: Global Premier Health Plan | D23: Nombre del Asegurado Titular | F23: =+'INGRESO DE DATOS'!$D$15 -> NOMBRE DEL CLIENTE
D25: Número de adultos en la póliza | F25: =+'INGRESO DE DATOS'!$D$17 -> 1 | H25: Edad del Asegurado Titular | I25: =+'INGRESO DE DATOS'!$D$19 -> 28
D27: Número de niños en la póliza | F27: =+'INGRESO DE DATOS'!$H$17 -> 0 | H27: Edad del/la conyuge | I27: =+'INGRESO DE DATOS'!$H$19 -> 46
F29: Fecha de la cotización :: | H29: =NOW() -> 2021-11-01T13:36:43.400
H30: FALSE
E31: Deducibles | G31: PLAN 1 | H31: PLAN 2 | I31: PLAN 3 | J31: PLAN 4
E32: En el país de residencia | G32: 2000 | H32: 3500 | I32: 5000 | J32: 10000
E33: Fuera del país de residencia | G33: 2000 | H33: 3500 | I33: 5000 | J33: 10000
E35: Tarifas anuales
E36: Prima para Asegurado Titular | G36: =VLOOKUP($I$25,Tablas!$A$155:$G$221,3,TRUE) -> 4992 | H36: =VLOOKUP($I$25,Tablas!$A$155:$G$221,4,TRUE) -> 4176 | I36: =VLOOKUP($I$25,Tablas!$A$155:$G$221,5,TRUE) -> 3583 | J36: =VLOOKUP($I$25,Tablas!$A$155:$G$221,6,TRUE) -> 2666
E37: Prima para conyuge | G37: =IF($F$25=1,0,(VLOOKUP($I$27,Tablas!$A$155:$G$221,3,TRUE))) -> 0 | H37: =IF($F$25=1,0,(VLOOKUP($I$27,Tablas!$A$155:$G$221,4,TRUE))) -> 0 | I37: =IF($F$25=1,0,(VLOOKUP($I$27,Tablas!$A$155:$G$221,5,TRUE))) -> 0 | J37: =IF($F$25=1,0,(VLOOKUP($I$27,Tablas!$A$155:$G$221,6,TRUE))) -> 0
E38: Prima para hijo (s) | G38: =IF($F$27=0,0,(VLOOKUP($F$27,Tablas!$A$222:$G$224,3,TRUE))) -> 0 | H38: =IF($F$27=0,0,(VLOOKUP($F$27,Tablas!$A$222:$G$224,4,TRUE))) -> 0 | I38: =IF($F$27=0,0,(VLOOKUP($F$27,Tablas!$A$222:$G$224,5,TRUE))) -> 0 | J38: =IF($F$27=0,0,(VLOOKUP($F$27,Tablas!$A$222:$G$224,6,TRUE))) -> 0
E39: Total de Prima neta | G39: =SUM(G36:G38) -> 4992 | H39: =SUM(H36:H38) -> 4176 | I39: 3583 | J39: 2666
E40: Ajuste por la variante con coaseguro fuera del país de residencia | G40: =IF('INGRESO DE DATOS'!$H$21,G39*-15%,0) -> -748.8 | H40: =IF('INGRESO DE DATOS'!$H$21,H39*-15%,0) -> -626.4 | I40: =IF('INGRESO DE DATOS'!$H$21,I39*-15%,0) -> -537.45 | J40: =IF('INGRESO DE DATOS'!$H$21,J39*-15%,0) -> -399.9
E41: Tarifa administrativa anual | G41: 75 | H41: 75 | I41: 75 | J41: 75
E42: VAT (5%) : | G42: =(G39+G40)*5% -> 212.16 | H42: =(H39+H40)*5% -> 177.48 | I42: 152.2775 | J42: 113.305
E43: ITBMS (7%) | G43: =+G41*7% -> 5.25 | H43: =+H41*7% -> 5.25 | I43: 5.25 | J43: 5.25
E44: TOTAL ANUAL | G44: =SUM(G39:G43) -> 4535.61 | H44: =SUM(H39:H43) -> 3807.33 | I44: 3278.0775 | J44: =SUM(J39:J43) -> 2459.655
E46: Tarifas semi anuales
E47: Prima para Asegurado Titular | G47: =VLOOKUP($I$25,Tablas!$A$530:$G$596,3,TRUE) -> 2645.76 | H47: =VLOOKUP($I$25,Tablas!$A$530:$G$596,4,TRUE) -> 2213.28 | I47: =VLOOKUP($I$25,Tablas!$A$530:$G$596,5,TRUE) -> 1898.99 | J47: =VLOOKUP($I$25,Tablas!$A$530:$G$596,6,TRUE) -> 1412.98
E48: Prima para conyuge | G48: =IF($F$25=1,0,(VLOOKUP($I$27,Tablas!$A$530:$G$596,3,TRUE))) -> 0 | H48: =IF($F$25=1,0,(VLOOKUP($I$27,Tablas!$A$530:$G$596,4,TRUE))) -> 0 | I48: =IF($F$25=1,0,(VLOOKUP($I$27,Tablas!$A$530:$G$596,5,TRUE))) -> 0 | J48: =IF($F$25=1,0,(VLOOKUP($I$27,Tablas!$A$530:$G$596,6,TRUE))) -> 0
E49: Prima para hijo (s) | G49: =IF($F$27=0,0,(VLOOKUP($F$27,Tablas!$A$597:$G$599,3,TRUE))) -> 0 | H49: =IF($F$27=0,0,(VLOOKUP($F$27,Tablas!$A$597:$G$599,4,TRUE))) -> 0 | I49: =IF($F$27=0,0,(VLOOKUP($F$27,Tablas!$A$597:$G$599,5,TRUE))) -> 0 | J49: =IF($F$27=0,0,(VLOOKUP($F$27,Tablas!$A$597:$G$599,6,TRUE))) -> 0
E50: Total de Prima neta | G50: =SUM(G47:G49) -> 2645.76 | H50: =SUM(H47:H49) -> 2213.28 | I50: 1898.99 | J50: 1412.98
E51: Ajuste por la variante con coaseguro fuera del país de residencia | G51: =IF('INGRESO DE DATOS'!$H$21,G50*-15%,0) -> -396.864 | H51: =IF('INGRESO DE DATOS'!$H$21,H50*-15%,0) -> -331.992 | I51: =IF('INGRESO DE DATOS'!$H$21,I50*-15%,0) -> -284.8485 | J51: =IF('INGRESO DE DATOS'!$H$21,J50*-15%,0) -> -211.947
E52: Tarifa administrativa anual | G52: 75 | H52: 75 | I52: 75 | J52: 75
E53: VAT (5%) : | G53: =(G36+G37+G38+G40)*5%/2 -> 106.08 | H53: =(H36+H37+H38+H40)*5%/2 -> 88.74 | I53: 76.13875 | J53: 56.6525
E54: ITBMS (7%) | G54: =+G52*7%+ ((G36+G37+G38+G40)*0.06*0.07)/2 -> 14.16072 | H54: =+H52*7%+ ((H36+H37+H38+H40)*0.06*0.07)/2 -> 12.70416 | I54: 11.645655 | J54: 10.00881
E55: TOTAL de primera cuota | G55: =SUM(G50:G54) -> 2444.13672 | H55: =SUM(H50:H54) -> 2057.73216 | I55: 1776.925905 | J55: 1342.69431
E56: Costo de segunda cuota | G56: =((G50+G51)+ G53)+ ((G36+G37+G38+G40)*0.06*0.07)/2 -> 2363.88672 | H56: =((H50+H51)+ H53)+ ((H36+H37+H38+H40)*0.06*0.07)/2 -> 1977.48216 | I56: 1696.675905 | J56: 1262.44431
E57: TOTAL ANUAL | G57: =G55+G56 -> 4808.02344 | H57: =H55+H56 -> 4035.21432 | I57: 3473.60181 | J57: =J55+J56 -> 2605.13862
E59: Tarifas trimestrales
E60: Prima para Asegurado Titular | G60: =VLOOKUP($I$25,Tablas!$A$755:$G$821,3,TRUE) -> 1372.8 | H60: =VLOOKUP($I$25,Tablas!$A$755:$G$821,4,TRUE) -> 1148.4 | I60: =VLOOKUP($I$25,Tablas!$A$755:$G$821,5,TRUE) -> 985.325 | J60: =VLOOKUP($I$25,Tablas!$A$755:$G$821,6,TRUE) -> 733.15
E61: Prima para conyuge | G61: =IF($F$25=1,0,(VLOOKUP($I$27,Tablas!$A$755:$G$821,3,TRUE))) -> 0 | H61: =IF($F$25=1,0,(VLOOKUP($I$27,Tablas!$A$755:$G$821,4,TRUE))) -> 0 | I61: =IF($F$25=1,0,(VLOOKUP($I$27,Tablas!$A$755:$G$821,5,TRUE))) -> 0 | J61: =IF($F$25=1,0,(VLOOKUP($I$27,Tablas!$A$755:$G$821,6,TRUE))) -> 0
E62: Prima para hijo (s) | G62: =IF($F$27=0,0,(VLOOKUP($F$27,Tablas!$A$822:$G$824,3,TRUE))) -> 0 | H62: =IF($F$27=0,0,(VLOOKUP($F$27,Tablas!$A$822:$G$824,4,TRUE))) -> 0 | I62: =IF($F$27=0,0,(VLOOKUP($F$27,Tablas!$A$822:$G$824,5,TRUE))) -> 0 | J62: =IF($F$27=0,0,(VLOOKUP($F$27,Tablas!$A$822:$G$824,6,TRUE))) -> 0
E63: Total de Prima neta | G63: =SUM(G60:G62) -> 1372.8 | H63: =SUM(H60:H62) -> 1148.4 | I63: 985.325 | J63: 733.15
E64: Ajuste por la variante con coaseguro fuera del país de residencia | G64: =IF('INGRESO DE DATOS'!$H$21,G63*-15%,0) -> -205.92 | H64: =IF('INGRESO DE DATOS'!$H$21,H63*-15%,0) -> -172.26 | I64: =IF('INGRESO DE DATOS'!$H$21,I63*-15%,0) -> -147.79875 | J64: =IF('INGRESO DE DATOS'!$H$21,J63*-15%,0) -> -109.9725
E65: Tarifa administrativa anual | G65: 75 | H65: 75 | I65: 75 | J65: 75
E66: VAT (5%) : | G66: =(G36+G37+G38+G40)*5%/4 -> 53.04 | H66: =(H36+H37+H38+H40)*5%/4 -> 44.37 | I66: 38.069375 | J66: 28.32625
E67: ITBMS (7%) | G67: =+G65*7% + ((G36+G37+G38+G40)*0.1*0.07)/4 -> 12.6756 | H67: =+H65*7% + ((H36+H37+H38+H40)*0.1*0.07)/4 -> 11.4618 | I67: 10.5797125 | J67: 9.215675
E68: TOTAL de primera cuota | G68: =SUM(G63:G67) -> 1307.5956 | H68: =SUM(H63:H67) -> 1106.9718 | I68: 961.1753375 | J68: 735.719425
E69: Costo de tarifa trimestral 2 a 4 | G69: =((G63+G64)+ G66)+((G36+G37+G38+G40)*0.1*0.07)/4 -> 1227.3456 | H69: =((H63+H64)+ H66)+((H36+H37+H38+H40)*0.1*0.07)/4 -> 1026.7218 | I69: 880.9253375 | J69: 655.469425
E70: TOTAL ANUAL | G70: =G68+(G69*3) -> 4989.6324 | H70: =H68+(H69*3) -> 4187.1372 | I70: 3603.95135 | J70: =J68+(J69*3) -> 2702.1277
E72: Tarifas mensuales
E73: Prima para Asegurado Titular | G73: =VLOOKUP($I$25,Tablas!$A$229:$G$295,3,TRUE) -> 465.92 | H73: =VLOOKUP($I$25,Tablas!$A$229:$G$295,4,TRUE) -> 389.76 | I73: =VLOOKUP($I$25,Tablas!$A$229:$G$295,5,TRUE) -> 334.4133333 | J73: =VLOOKUP($I$25,Tablas!$A$229:$G$295,6,TRUE) -> 248.8266667
E74: Prima para conyuge | G74: =IF($F$25=1,0,(VLOOKUP($I$27,Tablas!$A$229:$G$295,3,TRUE))) -> 0 | H74: =IF($F$25=1,0,(VLOOKUP($I$27,Tablas!$A$229:$G$295,4,TRUE))) -> 0 | I74: =IF($F$25=1,0,(VLOOKUP($I$27,Tablas!$A$229:$G$295,5,TRUE))) -> 0 | J74: =IF($F$25=1,0,(VLOOKUP($I$27,Tablas!$A$229:$G$295,6,TRUE))) -> 0
E75: Prima para hijo (s) | G75: =IF($F$27=0,0,(VLOOKUP($F$27,Tablas!$A$296:$G$298,3,TRUE))) -> 0 | H75: =IF($F$27=0,0,(VLOOKUP($F$27,Tablas!$A$296:$G$298,4,TRUE))) -> 0 | I75: =IF($F$27=0,0,(VLOOKUP($F$27,Tablas!$A$296:$G$298,5,TRUE))) -> 0 | J75: =IF($F$27=0,0,(VLOOKUP($F$27,Tablas!$A$296:$G$298,6,TRUE))) -> 0
E76: Total de Prima neta | G76: =SUM(G73:G75) -> 465.92 | H76: =SUM(H73:H75) -> 389.76 | I76: 334.4133333 | J76: 248.8266667
E77: Ajuste por la variante con coaseguro fuera del país de residencia | G77: =IF('INGRESO DE DATOS'!$H$21,G76*-15%,0) -> -69.888 | H77: =IF('INGRESO DE DATOS'!$H$21,H76*-15%,0) -> -58.464 | I77: =IF('INGRESO DE DATOS'!$H$21,I76*-15%,0) -> -50.162 | J77: =IF('INGRESO DE DATOS'!$H$21,J76*-15%,0) -> -37.324
E78: Tarifa administrativa anual | G78: 75 | H78: 75 | I78: 75 | J78: 75
E79: VAT (5%) : | G79: =(G36+G37+G38+G40)*5%/12 -> 17.68 | H79: =(H36+H37+H38+H40)*5%/12 -> 14.79 | I79: 12.68979167 | J79: 9.442083333
E80: ITBMS (7%) | G80: =G78*7% + ((G36+G37+G38+G40)*0.12*0.07)/12 -> 8.22024 | H80: =H78*7% + ((H36+H37+H38+H40)*0.12*0.07)/12 -> 7.73472 | I80: 7.381885 | J80: 6.83627
E81: TOTAL de primera cuota | G81: =SUM(G76:G80) -> 496.93224 | H81: =SUM(H76:H80) -> 428.82072 | I81: 379.32301 | J81: 302.78102
E82: Costo de Tarifa mensual de 2 a 12 | G82: =((G76 + G77)+G79)+((G36+G37+G38+G40)*0.12*0.07)/12 -> 416.68224 | H82: =((H76 + H77)+H79)+((H36+H37+H38+H40)*0.12*0.07)/12 -> 348.57072 | I82: 299.07301 | J82: 222.53102
E83: TOTAL ANUAL | G83: =G81+(G82*11) -> 5080.43688 | H83: =H81+(H82*11) -> 4263.09864 | I83: 3669.12612 | J83: =J81+(J82*11) -> 2750.62224
E85: Tarifas en US$ - Efectivas a partir del 1ro de Enero, 2020

Sheet Bupa Global Select
A23: Bupa Global Select Health Plan | D23: Nombre del Asegurado Titular | F23: =+'INGRESO DE DATOS'!$D$15 -> NOMBRE DEL CLIENTE
D25: Número de adultos en la póliza | F25: =+'INGRESO DE DATOS'!$D$17 -> 1 | H25: Edad del Asegurado Titular | I25: =+'INGRESO DE DATOS'!$D$19 -> 28
D27: Número de niños en la póliza | F27: =+'INGRESO DE DATOS'!$H$17 -> 0 | H27: Edad del/la conyuge | I27: =+'INGRESO DE DATOS'!$H$19 -> 46
F29: Fecha de la cotización: | H29: =NOW() -> 2021-11-01T13:36:43.400
H30: FALSE
E31: Deducibles | G31: PLAN 1 | H31: PLAN 2 | I31: PLAN 3 | J31: PLAN 4
E32: En el país de residencia | G32: 2000 | H32: 3500 | I32: 5000 | J32: 10000
E33: Fuera del país de residencia | G33: 2000 | H33: 3500 | I33: 5000 | J33: 10000
E35: Tarifas anuales
E36: Prima para Asegurado Titular | G36: =VLOOKUP($I$25,Tablas!$A$305:$G$371,3,TRUE) -> 3430 | H36: =VLOOKUP($I$25,Tablas!$A$305:$G$371,4,TRUE) -> 2874 | I36: =VLOOKUP($I$25,Tablas!$A$305:$G$371,5,TRUE) -> 2575 | J36: =VLOOKUP($I$25,Tablas!$A$305:$G$371,6,TRUE) -> 1917
E37: Prima para conyuge | G37: =IF($F$25=1,0,(VLOOKUP($I$27,Tablas!$A$305:$G$371,3,TRUE))) -> 0 | H37: =IF($F$25=1,0,(VLOOKUP($I$27,Tablas!$A$305:$G$371,4,TRUE))) -> 0 | I37: =IF($F$25=1,0,(VLOOKUP($I$27,Tablas!$A$305:$G$371,5,TRUE))) -> 0 | J37: =IF($F$25=1,0,(VLOOKUP($I$27,Tablas!$A$305:$G$371,6,TRUE))) -> 0
E38: Prima para hijo (s) | G38: =IF($F$27=0,0,(VLOOKUP($F$27,Tablas!$A$372:$G$374,3,TRUE))) -> 0 | H38: =IF($F$27=0,0,(VLOOKUP($F$27,Tablas!$A$372:$G$374,4,TRUE))) -> 0 | I38: =IF($F$27=0,0,(VLOOKUP($F$27,Tablas!$A$372:$G$374,5,TRUE))) -> 0 | J38: =IF($F$27=0,0,(VLOOKUP($F$27,Tablas!$A$372:$G$374,6,TRUE))) -> 0
E39: Total de Prima neta | G39: =SUM(G36:G38) -> 3430 | H39: =SUM(H36:H38) -> 2874 | I39: 2575 | J39: 1917
E40: Ajuste por la variante con coaseguro fuera del país de residencia | G40: =IF('INGRESO DE DATOS'!$H$21,G39*-15%,0) -> -514.5 | H40: =IF('INGRESO DE DATOS'!$H$21,H39*-15%,0) -> -431.1 | I40: =IF('INGRESO DE DATOS'!$H$21,I39*-15%,0) -> -386.25 | J40: =IF('INGRESO DE DATOS'!$H$21,J39*-15%,0) -> -287.55
E41: Tarifa administrativa anual | G41: 75 | H41: 75 | I41: 75 | J41: 75
E42: VAT (5%) : | G42: =(G39+G40)*5% -> 145.775 | H42: =(H39+H40)*5% -> 122.145 | I42: 109.4375 | J42: 81.4725
E43: ITBMS (7%) | G43: =+G41*7% -> 5.25 | H43: =+H41*7% -> 5.25 | I43: 5.25 | J43: 5.25
E44: TOTAL ANUAL | G44: =SUM(G39:G43) -> 3141.525 | H44: =SUM(H39:H43) -> 2645.295 | I44: 2378.4375 | J44: =SUM(J39:J43) -> 1791.1725
E46: Tarifas semi anuales
E47: Prima para Asegurado Titular | G47: =VLOOKUP($I$25,Tablas!$A$605:$G$671,3,TRUE) -> 1817.9 | H47: =VLOOKUP($I$25,Tablas!$A$605:$G$671,4,TRUE) -> 1523.22 | I47: =VLOOKUP($I$25,Tablas!$A$605:$G$671,5,TRUE) -> 1364.75 | J47: =VLOOKUP($I$25,Tablas!$A$605:$G$671,6,TRUE) -> 1016.01
E48: Prima para conyuge | G48: =IF($F$25=1,0,(VLOOKUP($I$27,Tablas!$A$605:$G$671,3,TRUE))) -> 0 | H48: =IF($F$25=1,0,(VLOOKUP($I$27,Tablas!$A$605:$G$671,4,TRUE))) -> 0 | I48: =IF($F$25=1,0,(VLOOKUP($I$27,Tablas!$A$605:$G$671,5,TRUE))) -> 0 | J48: =IF($F$25=1,0,(VLOOKUP($I$27,Tablas!$A$605:$G$671,6,TRUE))) -> 0
E49: Prima para hijo (s) | G49: =IF($F$27=0,0,(VLOOKUP($F$27,Tablas!$A$672:$G$674,3,TRUE))) -> 0 | H49: =IF($F$27=0,0,(VLOOKUP($F$27,Tablas!$A$672:$G$674,4,TRUE))) -> 0 | I49: =IF($F$27=0,0,(VLOOKUP($F$27,Tablas!$A$672:$G$674,5,TRUE))) -> 0 | J49: =IF($F$27=0,0,(VLOOKUP($F$27,Tablas!$A$672:$G$674,6,TRUE))) -> 0
E50: Total de Prima neta | G50: =SUM(G47:G49) -> 1817.9 | H50: =SUM(H47:H49) -> 1523.22 | I50: 1364.75 | J50: 1016.01
E51: Ajuste por la variante con coaseguro fuera del país de residencia | G51: =IF('INGRESO DE DATOS'!$H$21,G50*-15%,0) -> -272.685 | H51: =IF('INGRESO DE DATOS'!$H$21,H50*-15%,0) -> -228.483 | I51: =IF('INGRESO DE DATOS'!$H$21,I50*-15%,0) -> -204.7125 | J51: =IF('INGRESO DE DATOS'!$H$21,J50*-15%,0) -> -152.4015
E52: Tarifa administrativa anual | G52: 75 | H52: 75 | I52: 75 | J52: 75
E53: VAT (5%) : | G53: =(G36+G37+G38+G40)*5%/2 -> 72.8875 | H53: =(H36+H37+H38+H40)*5%/2 -> 61.0725 | I53: 54.71875 | J53: 40.73625
E54: ITBMS (7%) | G54: =G52*7% + ((G36+G37+G38+G40)*0.06*0.07)/2 -> 11.37255 | H54: =H52*7% + ((H36+H37+H38+H40)*0.06*0.07)/2 -> 10.38009 | I54: 9.846375 | J54: 8.671845
E55: TOTAL de primera cuota | G55: =SUM(G50:G54) -> 1704.47505 | H55: =SUM(H50:H54) -> 1441.18959 | I55: 1299.602625 | J55: 988.016595
E56: Costo de segunda cuota | G56: =(G50+G51)+G53+((G36+G37+G38+G40)*0.06*0.07)/2 -> 1624.22505 | H56: =(H50+H51)+H53+((H36+H37+H38+H40)*0.06*0.07)/2 -> 1360.93959 | I56: 1219.352625 | J56: 907.766595
E57: TOTAL ANUAL | G57: =G55+G56 -> 3328.7001 | H57: =H55+H56 -> 2802.12918 | I57: 2518.95525 | J57: =J55+J56 -> 1895.78319
E59: Tarifas trimestrales
E60: Prima para Asegurado Titular | G60: =VLOOKUP($I$25,Tablas!$A$830:$G$896,3,TRUE) -> 943.25 | H60: =VLOOKUP($I$25,Tablas!$A$830:$G$896,4,TRUE) -> 790.35 | I60: =VLOOKUP($I$25,Tablas!$A$830:$G$896,5,TRUE) -> 708.125 | J60: =VLOOKUP($I$25,Tablas!$A$830:$G$896,6,TRUE) -> 527.175
E61: Prima para conyuge | G61: =IF($F$25=1,0,(VLOOKUP($I$27,Tablas!$A$830:$G$896,3,TRUE))) -> 0 | H61: =IF($F$25=1,0,(VLOOKUP($I$27,Tablas!$A$830:$G$896,4,TRUE))) -> 0 | I61: =IF($F$25=1,0,(VLOOKUP($I$27,Tablas!$A$830:$G$896,5,TRUE))) -> 0 | J61: =IF($F$25=1,0,(VLOOKUP($I$27,Tablas!$A$830:$G$896,6,TRUE))) -> 0
E62: Prima para hijo (s) | G62: =IF($F$27=0,0,(VLOOKUP($F$27,Tablas!$A$897:$G$899,3,TRUE))) -> 0 | H62: =IF($F$27=0,0,(VLOOKUP($F$27,Tablas!$A$897:$G$899,4,TRUE))) -> 0 | I62: =IF($F$27=0,0,(VLOOKUP($F$27,Tablas!$A$897:$G$899,5,TRUE))) -> 0 | J62: =IF($F$27=0,0,(VLOOKUP($F$27,Tablas!$A$897:$G$899,6,TRUE))) -> 0
E63: Total de Prima neta | G63: =SUM(G60:G62) -> 943.25 | H63: =SUM(H60:H62) -> 790.35 | I63: 708.125 | J63: 527.175
E64: Ajuste por la variante con coaseguro fuera del país de residencia | G64: =IF('INGRESO DE DATOS'!$H$21,G63*-15%,0) -> -141.4875 | H64: =IF('INGRESO DE DATOS'!$H$21,H63*-15%,0) -> -118.5525 | I64: =IF('INGRESO DE DATOS'!$H$21,I63*-15%,0) -> -106.21875 | J64: =IF('INGRESO DE DATOS'!$H$21,J63*-15%,0) -> -79.07625
E65: Tarifa administrativa anual | G65: 75 | H65: 75 | I65: 75 | J65: 75
E66: VAT (5%) : | G66: =(G36+G37+G38+G40)*5%/4 -> 36.44375 | H66: =(H36+H37+H38+H40)*5%/4 -> 30.53625 | I66: 27.359375 | J66: 20.368125
E67: ITBMS (7%) | G67: =+G65*7%+ ((G36+G37+G38+G40)*0.1*0.07)/4 -> 10.352125 | H67: =+H65*7%+ ((H36+H37+H38+H40)*0.1*0.07)/4 -> 9.525075 | I67: 9.0803125 | J67: 8.1015375
E68: TOTAL de primera cuota | G68: =SUM(G63:G67) -> 923.558375 | H68: =SUM(H63:H67) -> 786.858825 | I68: 713.3459375 | J68: 551.5684125
E69: Costo de tarifa trimestral 2 a 4 | G69: =(G63+G64)+G66+((G36+G37+G38+G40)*0.1*0.07)/4 -> 843.308375 | H69: =(H63+H64)+H66+((H36+H37+H38+H40)*0.1*0.07)/4 -> 706.608825 | I69: 633.0959375 | J69: 471.3184125
E70: TOTAL ANUAL | G70: =G68+(G69*3) -> 3453.4835 | H70: =H68+(H69*3) -> 2906.6853 | I70: 2612.63375 | J70: =J68+(J69*3) -> 1965.52365
E72: Tarifas mensuales
E73: Prima para Asegurado Titular | G73: =VLOOKUP($I$25,Tablas!$A$379:$G$445,3,TRUE) -> 320.1333333 | H73: =VLOOKUP($I$25,Tablas!$A$379:$G$445,4,TRUE) -> 268.24 | I73: =VLOOKUP($I$25,Tablas!$A$379:$G$445,5,TRUE) -> 240.3333333 | J73: =VLOOKUP($I$25,Tablas!$A$379:$G$445,6,TRUE) -> 178.92
E74: Prima para conyuge | G74: =IF($F$25=1,0,(VLOOKUP($I$27,Tablas!$A$379:$G$445,3,TRUE))) -> 0 | H74: =IF($F$25=1,0,(VLOOKUP($I$27,Tablas!$A$379:$G$445,4,TRUE))) -> 0 | I74: =IF($F$25=1,0,(VLOOKUP($I$27,Tablas!$A$379:$G$445,5,TRUE))) -> 0 | J74: =IF($F$25=1,0,(VLOOKUP($I$27,Tablas!$A$379:$G$445,6,TRUE))) -> 0
E75: Prima para hijo (s) | G75: =IF($F$27=0,0,(VLOOKUP($F$27,Tablas!$A$446:$G$448,3,TRUE))) -> 0 | H75: =IF($F$27=0,0,(VLOOKUP($F$27,Tablas!$A$446:$G$448,4,TRUE))) -> 0 | I75: =IF($F$27=0,0,(VLOOKUP($F$27,Tablas!$A$446:$G$448,5,TRUE))) -> 0 | J75: =IF($F$27=0,0,(VLOOKUP($F$27,Tablas!$A$446:$G$448,6,TRUE))) -> 0
E76: Total de Prima neta | G76: =SUM(G73:G75) -> 320.1333333 | H76: =SUM(H73:H75) -> 268.24 | I76: 240.3333333 | J76: 178.92
E77: Ajuste por la variante con coaseguro fuera del país de residencia | G77: =IF('INGRESO DE DATOS'!$H$21,G76*-15%,0) -> -48.02 | H77: =IF('INGRESO DE DATOS'!$H$21,H76*-15%,0) -> -40.236 | I77: =IF('INGRESO DE DATOS'!$H$21,I76*-15%,0) -> -36.05 | J77: =IF('INGRESO DE DATOS'!$H$21,J76*-15%,0) -> -26.838
E78: Tarifa administrativa anual | G78: 75 | H78: 75 | I78: 75 | J78: 75
E79: VAT (5%) : | G79: =(G36+G37+G38+G40)*5%/12 -> 12.14791667 | H79: =(H36+H37+H38+H40)*5%/12 -> 10.17875 | I79: 9.119791667 | J79: 6.789375
E80: ITBMS (7%) | G80: =+G78*7% + ((G36+G37+G38+G40)*0.12*0.07)/12 -> 7.29085 | H80: =+H78*7% + ((H36+H37+H38+H40)*0.12*0.07)/12 -> 6.96003 | I80: 6.782125 | J80: 6.390615
E81: TOTAL de primera cuota | G81: =SUM(G76:G80) -> 366.5521 | H81: =SUM(H76:H80) -> 320.14278 | I81: 295.18525 | J81: 240.26199
E82: Costo de Tarifa mensual de 2 a 12 | G82: =((G76 + G77)+G79)+((G36+G37+G38+G40)*0.12*0.07)/12 -> 286.3021 | H82: =((H76 + H77)+H79)+((H36+H37+H38+H40)*0.12*0.07)/12 -> 239.89278 | I82: 214.93525 | J82: 160.01199
E83: TOTAL ANUAL | G83: =G81+(G82*11) -> 3515.8752 | H83: =H81+(H82*11) -> 2958.96336 | I83: 2659.473 | J83: =J81+(J82*11) -> 2000.39388
E85: Tarifas en US$ - Efectivas a partir del 1ro de Enero, 2020

Sheet Bupa Global Major Medical
A23: Bupa Global Major Medical Health Plan | D23: Nombre del Asegurado Titular | F23: =+'INGRESO DE DATOS'!$D$15 -> NOMBRE DEL CLIENTE
D25: Número de adultos en la póliza | F25: =+'INGRESO DE DATOS'!$D$17 -> 1 | H25: Edad del Asegurado Titular | I25: =+'INGRESO DE DATOS'!$D$19 -> 28
D27: Número de niños en la póliza | F27: =+'INGRESO DE DATOS'!$H$17 -> 0 | H27: Edad del/la conyuge | I27: =+'INGRESO DE DATOS'!$H$19 -> 46
F29: Fecha de la cotización: | H29: =NOW() -> 2021-11-01T13:36:43.400
H30: FALSE
E31: Deducibles | G31: PLAN 1 | H31: PLAN 2
E32: En el país de residencia | G32: 10000 | H32: 20000
E33: Fuera del país de residencia | G33: 10000 | H33: 20000
E35: Tarifas anuales
E36: Prima para Asegurado Titular | G36: =VLOOKUP($I$25,Tablas!$A$1129:$G$1195,3,TRUE) -> 1933 | H36: =VLOOKUP($I$25,Tablas!$A$1129:$G$1195,4,TRUE) -> 1481
E37: Prima para conyuge | G37: =IF($F$25=1,0,(VLOOKUP($I$27,Tablas!$A$1129:$G$1195,3,TRUE))) -> 0 | H37: =IF($F$25=1,0,(VLOOKUP($I$27,Tablas!$A$1129:$G$1195,4,TRUE))) -> 0
E38: Prima para hijo (s) | G38: =IF($F$27=0,0,(VLOOKUP($F$27,Tablas!$A$1196:$G$1198,3,TRUE))) -> 0 | H38: =IF($F$27=0,0,(VLOOKUP($F$27,Tablas!$A$1196:$G$1198,4,TRUE))) -> 0
E39: Total de Prima neta | G39: =SUM(G36:G38) -> 1933 | H39: =SUM(H36:H38) -> 1481
E40: Tarifa administrativa anual | G40: 75 | H40: 75
E41: VAT (5%) : | G41: =+G39*5% -> 96.65 | H41: =+H39*5% -> 74.05
E42: ITBMS (7%) | G42: =+G40*7% -> 5.25 | H42: =+H40*7% -> 5.25
E43: TOTAL ANUAL | G43: =SUM(G39:G42) -> 2109.9 | H43: =SUM(H39:H42) -> 1635.3
E45: Tarifas semi anuales
E46: Prima para Asegurado Titular | G46: =VLOOKUP($I$25,Tablas!$A$1353:$G$1419,3,TRUE) -> 1024.49 | H46: =VLOOKUP($I$25,Tablas!$A$1353:$G$1419,4,TRUE) -> 784.93
E47: Prima para conyuge | G47: =IF($F$25=1,0,(VLOOKUP($I$27,Tablas!$A$1353:$G$1419,3,TRUE))) -> 0 | H47: =IF($F$25=1,0,(VLOOKUP($I$27,Tablas!$A$1353:$G$1419,4,TRUE))) -> 0
E48: Prima para hijo (s) | G48: =IF($F$27=0,0,(VLOOKUP($F$27,Tablas!$A$1420:$G$1422,3,TRUE))) -> 0 | H48: =IF($F$27=0,0,(VLOOKUP($F$27,Tablas!$A$1420:$G$1422,4,TRUE))) -> 0
E49: Total de Prima neta | G49: =SUM(G46:G48) -> 1024.49 | H49: =SUM(H46:H48) -> 784.93
E50: Tarifa administrativa anual | G50: 75 | H50: 75
E51: VAT (5%) : | G51: =(G36+G37+G38)*5%/2 -> 48.325 | H51: =(H36+H37+H38)*5%/2 -> 37.025
E52: ITBMS (7%) | G52: =+G50*7%+ ((G36+G37+G38)*0.06*0.07)/2 -> 9.3093 | H52: =+H50*7%+ ((H36+H37+H38)*0.06*0.07)/2 -> 8.3601
E53: TOTAL de primera cuota | G53: =SUM(G49:G52) -> 1157.1243 | H53: =SUM(H49:H52) -> 905.3151
E54: Costo de segunda cuota | G54: =(G49 + G51)+ ((G36+G37+G38)*0.06*0.07)/2 -> 1076.8743 | H54: =(H49 + H51)+ ((H36+H37+H38)*0.06*0.07)/2 -> 825.0651
E55: TOTAL ANUAL | G55: =G53+G54 -> 2233.9986 | H55: =H53+H54 -> 1730.3802
E57: Tarifas trimestrales
E58: Prima para Asegurado Titular | G58: =VLOOKUP($I$25,Tablas!$A$1278:$G$1344,3,TRUE) -> 531.575 | H58: =VLOOKUP($I$25,Tablas!$A$1278:$G$1344,4,TRUE) -> 407.275
E59: Prima para conyuge | G59: =IF($F$25=1,0,(VLOOKUP($I$27,Tablas!$A$1278:$G$1344,3,TRUE))) -> 0 | H59: =IF($F$25=1,0,(VLOOKUP($I$27,Tablas!$A$1278:$G$1344,4,TRUE))) -> 0
E60: Prima para hijo (s) | G60: =IF($F$27=0,0,(VLOOKUP($F$27,Tablas!$A$1345:$G$1347,3,TRUE))) -> 0 | H60: =IF($F$27=0,0,(VLOOKUP($F$27,Tablas!$A$1345:$G$1347,4,TRUE))) -> 0
E61: Total de Prima neta | G61: =SUM(G58:G60) -> 531.575 | H61: =SUM(H58:H60) -> 407.275
E62: Tarifa administrativa anual | G62: 75 | H62: 75
E63: VAT (5%) : | G63: =(G36+G37+G38)*5%/4 -> 24.1625 | H63: =(H36+H37+H38)*5%/4 -> 18.5125
E64: ITBMS (7%) | G64: =+G62*7% + ((G36+G37+G38)*0.1*0.07)/4 -> 8.63275 | H64: =+H62*7% + ((H36+H37+H38)*0.1*0.07)/4 -> 7.84175
E65: TOTAL de primera cuota | G65: =SUM(G61:G64) -> 639.37025 | H65: =SUM(H61:H64) -> 508.62925
E66: Costo de tarifa trimestral 2 a 4 | G66: =(G61 + G63)+((G36+G37+G38)*0.1*0.07)/4 -> 559.12025 | H66: =(H61 + H63)+((H36+H37+H38)*0.1*0.07)/4 -> 428.37925
E67: TOTAL ANUAL | G67: =G65+(G66*3) -> 2316.731 | H67: =H65+(H66*3) -> 1793.767
E69: Tarifas mensuales
E70: Prima para Asegurado Titular | G70: =VLOOKUP($I$25,Tablas!$A$1203:$G$1269,3,TRUE) -> 180.4133333 | H70: =VLOOKUP($I$25,Tablas!$A$1203:$G$1269,4,TRUE) -> 138.2266667
E71: Prima para conyuge | G71: =IF($F$25=1,0,(VLOOKUP($I$27,Tablas!$A$1203:$G$1269,3,TRUE))) -> 0 | H71: =IF($F$25=1,0,(VLOOKUP($I$27,Tablas!$A$1203:$G$1269,4,TRUE))) -> 0
E72: Prima para hijo (s) | G72: =IF($F$27=0,0,(VLOOKUP($F$27,Tablas!$A$1270:$G$1272,3,TRUE))) -> 0 | H72: =IF($F$27=0,0,(VLOOKUP($F$27,Tablas!$A$1270:$G$1272,4,TRUE))) -> 0
E73: Total de Prima neta | G73: =SUM(G70:G72) -> 180.4133333 | H73: =SUM(H70:H72) -> 138.2266667
E74: Tarifa administrativa anual | G74: 75 | H74: 75
E75: VAT (5%) : | G75: =(G36+G37+G38)*5%/12 -> 8.054166667 | H75: =(H36+H37+H38)*5%/12 -> 6.170833333
E76: ITBMS (7%) | G76: =+G74*7% + ((G36+G37+G38)*0.12*0.07)/12 -> 6.6031 | H76: =+H74*7% + ((H36+H37+H38)*0.12*0.07)/12 -> 6.2867
E77: TOTAL de primera cuota | G77: =SUM(G73:G76) -> 270.0706 | H77: =SUM(H73:H76) -> 225.6842
E78: Costo de Tarifa mensual de 2 a 12 | G78: =(G73 + G75)+((G36+G37+G38)*0.12*0.07)/12 -> 189.8206 | H78: =(H73 + H75)+((H36+H37+H38)*0.12*0.07)/12 -> 145.4342
E79: TOTAL ANUAL | G79: =G77+(G78*11) -> 2358.0972 | H79: =H77+(H78*11) -> 1825.4604
E81: Tarifas en US$ - Efectivas a partir del 1ro de Enero, 2020

Sheet Resumen tarifas
A17: Cotizador de Seguro Médico - Bupa Global Health Plans
A19: Nombre del Asegurado Titular | C19: =+'INGRESO DE DATOS'!$D$15 -> NOMBRE DEL CLIENTE
A22: Número de adultos en la póliza | C22: =+'INGRESO DE DATOS'!$D$17 -> 1 | E22: Edad del Asegurado Titular | G22: =+'INGRESO DE DATOS'!$D$19 -> 28
A25: Número de niños en la póliza | C25: =+'INGRESO DE DATOS'!$H$17 -> 0 | E25: Edad del/la cónyuge | G25: =+'INGRESO DE DATOS'!$H$19 -> 46
D28: FECHA DE LA COTIZACIÓN : | E28: =NOW() -> 2021-11-01T13:36:43.400
A30: Bupa Global Ultimtate Health Plan
A31: DEDUCIBLES | C31: PLAN 1 | D31: PLAN 2 | E31: PLAN 3
A32: En el país de residencia | C32: 0 | D32: 1000 | E32: 2000
A33: Fuera del país de residencia | C33: 0 | D33: 1000 | E33: 2000
C34: Tarifas anuales
C35: ='Bupa Global Ultimate'!G40 -> 17423.1 | D35: ='Bupa Global Ultimate'!H40 -> 11271.15 | E35: ='Bupa Global Ultimate'!I40 -> 9372.75
C36: Tarifas semi anuales
C37: ='Bupa Global Ultimate'!G52 -> 9201.6207 | D37: ='Bupa Global Ultimate'!H52 -> 5937.5718 | E37: ='Bupa Global Ultimate'!I52 -> 4930.335
C38: Tarifas trimestrales
C39: ='Bupa Global Ultimate'!G65 -> 4777.54225 | D39: ='Bupa Global Ultimate'!H65 -> 3082.8265 | E39: ='Bupa Global Ultimate'!I65 -> 2559.8625
C40: Tarifas mensuales
C41: ='Bupa Global Ultimate'!G78 -> 1621.9694 | D41: ='Bupa Global Ultimate'!H78 -> 1046.6156 | E41: ='Bupa Global Ultimate'!I78 -> 869.07
A42: Ahorros en tarifas de prima para niños* | C42: ='Bupa Global Ultimate'!G41 -> 0 | D42: ='Bupa Global Ultimate'!H41 -> 0 | E42: ='Bupa Global Ultimate'!I41 -> 0
A44: Bupa Global Elite Health Plan
A45: DEDUCIBLES | D45: PLAN 1 | E45: PLAN 2 | F45: PLAN 3 | G45: PLAN 4 | H45: PLAN 5
A46: En el país de residencia | D46: 1000 | E46: 2000 | F46: 3500 | G46: 5000 | H46: 10000
A47: Fuera del país de residencia | D47: 1000 | E47: 2000 | F47: 3500 | G47: 5000 | H47: 10000
D48: Tarifas anuales
D49: =+'Bupa Global Elite'!G40 -> 7836.9675 | E49: =+'Bupa Global Elite'!H40 -> 5586.975 | F49: =+'Bupa Global Elite'!I40 -> 4674.84 | G49: =+'Bupa Global Elite'!J40 -> 4064.37 | H49: =+'Bupa Global Elite'!K40 -> 3169.1925
D50: Tarifas semi anuales
D51: =+'Bupa Global Elite'!G53 -> 4115.492685 | E51: =+'Bupa Global Elite'!H53 -> 2921.71095 | F51: =+'Bupa Global Elite'!I53 -> 2437.75818 | G51: =+'Bupa Global Elite'!J53 -> 2113.86024 | H51: =+'Bupa Global Elite'!K53 -> 1638.904635
D52: Tarifas trimestrales
D53: =+'Bupa Global Elite'!G67 -> 2136.790988 | E53: =+'Bupa Global Elite'!H67 -> 1516.971625 | F53: =+'Bupa Global Elite'!I67 -> 1265.70015 | G53: =+'Bupa Global Elite'!J67 -> 1097.5302 | H53: =+'Bupa Global Elite'!K67 -> 850.9301125
D54: Tarifas mensuales
D55: =+'Bupa Global Elite'!G81 -> 725.43777 | E55: =+'Bupa Global Elite'!H81 -> 515.0099 | F55: =+'Bupa Global Elite'!I81 -> 429.70356 | G55: =+'Bupa Global Elite'!J81 -> 372.61008 | H55: =+'Bupa Global Elite'!K81 -> 288.88967
A56: Ahorros en tarifas de prima para niños* | D56: =+'Bupa Global Elite'!G41 -> 0 | E56: =+'Bupa Global Elite'!H41 -> 0 | F56: =+'Bupa Global Elite'!I41 -> 0 | G56: =+'Bupa Global Elite'!J41 -> 0 | H56: =+'Bupa Global Elite'!K41 -> 0
A58: Bupa Global Premier Health Plan
A59: DEDUCIBLES | E59: PLAN 1 | F59: PLAN 2 | G59: PLAN 3 | H59: PLAN 4
A60: En el país de residencia | E60: 2000 | F60: 3500 | G60: 5000 | H60: 10000
A61: Fuera del país de residencia | E61: 2000 | F61: 3500 | G61: 5000 | H61: 10000
E62: Tarifas anuales
E63: =+'Bupa Global Premier'!G44 -> 4535.61 | F63: =+'Bupa Global Premier'!H44 -> 3807.33 | G63: =+'Bupa Global Premier'!I44 -> 3278.0775 | H63: =+'Bupa Global Premier'!J44 -> 2459.655
E64: Tarifas semi anuales
E65: =+'Bupa Global Premier'!G56 -> 2363.88672 | F65: =+'Bupa Global Premier'!H56 -> 1977.48216 | G65: =+'Bupa Global Premier'!I56 -> 1696.675905 | H65: =+'Bupa Global Premier'!J56 -> 1262.44431
E66: Tarifas trimestrales
E67: =+'Bupa Global Premier'!G69 -> 1227.3456 | F67: =+'Bupa Global Premier'!H69 -> 1026.7218 | G67: =+'Bupa Global Premier'!I69 -> 880.9253375 | H67: =+'Bupa Global Premier'!J69 -> 655.469425
E68: Tarifas mensuales
E69: =+'Bupa Global Premier'!G82 -> 416.68224 | F69: =+'Bupa Global Premier'!H82 -> 348.57072 | G69: =+'Bupa Global Premier'!I82 -> 299.07301 | H69: =+'Bupa Global Premier'!J82 -> 222.53102
A71: Bupa Global Select Health Plan
A72: DEDUCIBLES | E72: PLAN 1 | F72: PLAN 2 | G72: PLAN 3 | H72: PLAN 4
A73: En el país de residencia | E73: 2000 | F73: 3500 | G73: 5000 | H73: 10000
A74: Fuera del país de residencia | E74: 2000 | F74: 3500 | G74: 5000 | H74: 10000
E75: Tarifas anuales
E76: =+'Bupa Global Select'!G44 -> 3141.525 | F76: =+'Bupa Global Select'!H44 -> 2645.295 | G76: =+'Bupa Global Select'!I44 -> 2378.4375 | H76: =+'Bupa Global Select'!J44 -> 1791.1725
E77: Tarifas semi anuales
E78: =+'Bupa Global Select'!G56 -> 1624.22505 | F78: =+'Bupa Global Select'!H56 -> 1360.93959 | G78: =+'Bupa Global Select'!I56 -> 1219.352625 | H78: =+'Bupa Global Select'!J56 -> 907.766595
E79: Tarifas trimestrales
E80: =+'Bupa Global Select'!G69 -> 843.308375 | F80: =+'Bupa Global Select'!H69 -> 706.608825 | G80: =+'Bupa Global Select'!I69 -> 633.0959375 | H80: =+'Bupa Global Select'!J69 -> 471.3184125
E81: Tarifas mensuales
E82: =+'Bupa Global Select'!G82 -> 286.3021 | F82: =+'Bupa Global Select'!H82 -> 239.89278 | G82: =+'Bupa Global Select'!I82 -> 214.93525 | H82: =+'Bupa Global Select'!J82 -> 160.01199
A84: Bupa Global Major Medical Health Plan
A85: DEDUCIBLES | C85: PLAN 1 | D85: PLAN 2
A86: En el país de residencia | C86: 10000 | D86: 20000
A87: Fuera del país de residencia | C87: 10000 | D87: 20000
C88: Tarifas anuales
C89: ='Bupa Global Major Medical'!G43 -> 2109.9 | D89: ='Bupa Global Major Medical'!H43 -> 1635.3
C90: Tarifas semi anuales
C91: ='Bupa Global Major Medical'!G54 -> 1076.8743 | D91: ='Bupa Global Major Medical'!H54 -> 825.0651
C92: Tarifas trimestrales
C93: ='Bupa Global Major Medical'!G66 -> 559.12025 | D93: ='Bupa Global Major Medical'!H66 -> 428.37925
C94: Tarifas mensuales
C95: ='Bupa Global Major Medical'!G78 -> 189.8206 | D95: ='Bupa Global Major Medical'!H78 -> 145.4342
A97: Una tarifa administrativa de US$75 se cargará automáticamente al primer pago
A98: *Basado en un modo de pago anual
A100: Tarifas en US$ - Efectivas a partir del 1ro de abril, 2019

Sheet Tablas
A2: BUPA GLOBAL ELITE | I2: FACTOR MENSUAL: | K2: 0.09333333333
A3: TARIFAS ANUALES | I3: FACTOR TRIMESTRAL: | K3: 0.275
A4: EDAD | I4: FACTOR SEMIANUAL: | K4: 0.53
C5: 1000 | D5: 2000 | E5: 3500 | F5: 5000 | G5: 10000
A6: 18 | C6: 7418 | D6: 5313 | E6: 4499 | F6: 3901 | G6: 3026
A7: 19 | C7: 7516 | D7: 5377 | E7: 4546 | F7: 3943 | G7: 3058
A8: 20 | C8: 7616 | D8: 5445 | E8: 4597 | F8: 3986 | G8: 3091
A9: 21 | C9: 7719 | D9: 5514 | E9: 4649 | F9: 4031 | G9: 3126
A10: 22 | C10: 7826 | D10: 5586 | E10: 4702 | F10: 4077 | G10: 3161
A11: 23 | C11: 7939 | D11: 5658 | E11: 4759 | F11: 4127 | G11: 3201
A12: 24 | C12: 8051 | D12: 5735 | E12: 4816 | F12: 4176 | G12: 3239
A13: 25 | C13: 8168 | D13: 5815 | E13: 4875 | F13: 4228 | G13: 3279
A14: 26 | C14: 8336 | D14: 5929 | E14: 4962 | F14: 4304 | G14: 3337
A15: 27 | C15: 8511 | D15: 6048 | E15: 5054 | F15: 4381 | G15: 3399
A16: 28 | C16: 8691 | D16: 6170 | E16: 5148 | F16: 4464 | G16: 3461
A17: 29 | C17: 8880 | D17: 6298 | E17: 5247 | F17: 4550 | G17: 3529
A18: 30 | C18: 9074 | D18: 6433 | E18: 5351 | F18: 4640 | G18: 3599
A19: 31 | C19: 9275 | D19: 6570 | E19: 5459 | F19: 4733 | G19: 3672
A20: 32 | C20: 9481 | D20: 6713 | E20: 5568 | F20: 4828 | G20: 3743
A21: 33 | C21: 9694 | D21: 6860 | E21: 5684 | F21: 4928 | G21: 3823
A22: 34 | C22: 9914 | D22: 7012 | E22: 5802 | F22: 5031 | G22: 3901
A23: 35 | C23: 10138 | D23: 7168 | E23: 5926 | F23: 5139 | G23: 3986
A24: 36 | C24: 10370 | D24: 7329 | E24: 6052 | F24: 5247 | G24: 4070
A25: 37 | C25: 10609 | D25: 7497 | E25: 6182 | F25: 5362 | G25: 4158
A26: 38 | C26: 10853 | D26: 7666 | E26: 6317 | F26: 5479 | G26: 4249
A27: 39 | C27: 11105 | D27: 7843 | E27: 6456 | F27: 5598 | G27: 4341
A28: 40 | C28: 11362 | D28: 8023 | E28: 6598 | F28: 5721 | G28: 4438
A29: 41 | C29: 11626 | D29: 8208 | E29: 6745 | F29: 5849 | G29: 4537
A30: 42 | C30: 11895 | D30: 8397 | E30: 6896 | F30: 5979 | G30: 4638
A31: 43 | C31: 12170 | D31: 8593 | E31: 7051 | F31: 6114 | G31: 4742
A32: 44 | C32: 12453 | D32: 8790 | E32: 7208 | F32: 6251 | G32: 4849
A33: 45 | C33: 12742 | D33: 8995 | E33: 7372 | F33: 6391 | G33: 4957
A34: 46 | C34: 13037 | D34: 9203 | E34: 7539 | F34: 6538 | G34: 5069
A35: 47 | C35: 13338 | D35: 9418 | E35: 7708 | F35: 6683 | G35: 5184
A36: 48 | C36: 13646 | D36: 9634 | E36: 7882 | F36: 6834 | G36: 5300
A37: 49 | C37: 13961 | D37: 9858 | E37: 8061 | F37: 6990 | G37: 5420
A38: 50 | C38: 14280 | D38: 10084 | E38: 8244 | F38: 7149 | G38: 5544
A39: 51 | C39: 14607 | D39: 10316 | E39: 8432 | F39: 7311 | G39: 5669
A40: 52 | C40: 14939 | D40: 10553 | E40: 8619 | F40: 7473 | G40: 5797
A41: 53 | C41: 15279 | D41: 10797 | E41: 8815 | F41: 7643 | G41: 5928
A42: 54 | C42: 15625 | D42: 11043 | E42: 9012 | F42: 7814 | G42: 6061
A43: 55 | C43: 15977 | D43: 11293 | E43: 9215 | F43: 7990 | G43: 6197
A44: 56 | C44: 16333 | D44: 11548 | E44: 9421 | F44: 8169 | G44: 6336
A45: 57 | C45: 16699 | D45: 11808 | E45: 9631 | F45: 8350 | G45: 6476
A46: 58 | C46: 17070 | D46: 12073 | E46: 9845 | F46: 8536 | G46: 6620
A47: 59 | C47: 17446 | D47: 12343 | E47: 10062 | F47: 8725 | G47: 6766
A48: 60 | C48: 17829 | D48: 12618 | E48: 10285 | F48: 8917 | G48: 6916
A49: 61 | C49: 19842 | D49: 14061 | E49: 11454 | F49: 9932 | G49: 7704
A50: 62 | C50: 22011 | D50: 15624 | E50: 12724 | F50: 11033 | G50: 8556
A51: 63 | C51: 24339 | D51: 17302 | E51: 14091 | F51: 12218 | G51: 9476
A52: 64 | C52: 26824 | D52: 19100 | E52: 15557 | F52: 13490 | G52: 10463
A53: 65 | C53: 29466 | D53: 21015 | E53: 17123 | F53: 14847 | G53: 11515
A54: 66 | C54: 32267 | D54: 23047 | E54: 18789 | F54: 16293 | G54: 12636
A55: 67 | C55: 35226 | D55: 25197 | E55: 20553 | F55: 17822 | G55: 13822
A56: 68 | C56: 38343 | D56: 27466 | E56: 22415 | F56: 19436 | G56: 15074
A57: 69 | C57: 41616 | D57: 29852 | E57: 24379 | F57: 21139 | G57: 16394
A58: 70 | C58: 45049 | D58: 32357 | E58: 26441 | F58: 22927 | G58: 17782
A59: 71 | C59: 48640 | D59: 34979 | E59: 28602 | F59: 24801 | G59: 19235
A60: 72 | C60: 52387 | D60: 37721 | E60: 30862 | F60: 26760 | G60: 20754
A61: 73 | C61: 56292 | D61: 40578 | E61: 33220 | F61: 28805 | G61: 22340
A62: 74 | C62: 60356 | D62: 43554 | E62: 35679 | F62: 30938 | G62: 23994
A63: 75 | C63: 64577 | D63: 46649 | E63: 38237 | F63: 33155 | G63: 25713
A64: 76 | C64: 64577 | D64: 46649 | E64: 38237 | F64: 33155 | G64: 25713
A65: 77 | C65: 64577 | D65: 46649 | E65: 38237 | F65: 33155 | G65: 25713
A66: 78 | C66: 64577 | D66: 46649 | E66: 38237 | F66: 33155 | G66: 25713
A67: 79 | C67: 64577 | D67: 46649 | E67: 38237 | F67: 33155 | G67: 25713
A68: 80 | C68: 64577 | D68: 46649 | E68: 38237 | F68: 33155 | G68: 25713
A69: 81 | C69: 64577 | D69: 46649 | E69: 38237 | F69: 33155 | G69: 25713
A70: 82 | C70: 64577 | D70: 46649 | E70: 38237 | F70: 33155 | G70: 25713
A71: 83 | C71: 64577 | D71: 46649 | E71: 38237 | F71: 33155 | G71: 25713
A72: 84 | B72: o más | C72: 64577 | D72: 46649 | E72: 38237 | F72: 33155 | G72: 25713
A73: 1 | B73: Hijo | C73: 3339 | D73: 2391 | E73: 2025 | F73: 1756 | G73: 1363
A74: 2 | B74: Hijos | C74: 5675 | D74: 4065 | E74: 3442 | F74: 2984 | G74: 2316
A75: 3 | B75: Hijos o más | C75: 8011 | D75: 5738 | E75: 4860 | F75: 4213 | G75: 3268
A77: BUPA GLOBAL ELITE - MENSUALES
A78: EDAD
C79: 1000 | D79: 2000 | E79: 3500
A80: 18 | C80: =C6*$K$2 -> 692.3466667 | D80: =D6*$K$2 -> 495.88 | E80: 419.9066667 | F80: 364.0933333 | G80: 282.4266667
A81: 19 | C81: =C7*$K$2 -> 701.4933333 | D81: 501.8533333 | E81: 424.2933333 | F81: 368.0133333 | G81: 285.4133333
A82: 20 | C82: =C8*$K$2 -> 710.8266667 | D82: 508.2 | E82: 429.0533333 | F82: 372.0266667 | G82: 288.4933333
A83: 21 | C83: =C9*$K$2 -> 720.44 | D83: 514.64 | E83: 433.9066667 | F83: 376.2266667 | G83: 291.76
A84: 22 | C84: =C10*$K$2 -> 730.4266667 | D84: 521.36 | E84: 438.8533333 | F84: 380.52 | G84: 295.0266667
A85: 23 | C85: =C11*$K$2 -> 740.9733333 | D85: 528.08 | E85: 444.1733333 | F85: 385.1866667 | G85: 298.76
A86: 24 | C86: =C12*$K$2 -> 751.4266667 | D86: 535.2666667 | E86: 449.4933333 | F86: 389.76 | G86: 302.3066667
A87: 25 | C87: =C13*$K$2 -> 762.3466667 | D87: 542.7333333 | E87: 455 | F87: 394.6133333 | G87: 306.04
A88: 26 | C88: =C14*$K$2 -> 778.0266667 | D88: 553.3733333 | E88: 463.12 | F88: 401.7066667 | G88: 311.4533333
A89: 27 | C89: =C15*$K$2 -> 794.36 | D89: 564.48 | E89: 471.7066667 | F89: 408.8933333 | G89: 317.24
A90: 28 | C90: =C16*$K$2 -> 811.16 | D90: 575.8666667 | E90: 480.48 | F90: 416.64 | G90: 323.0266667
A91: 29 | C91: =C17*$K$2 -> 828.8 | D91: 587.8133333 | E91: 489.72 | F91: 424.6666667 | G91: 329.3733333
A92: 30 | C92: =C18*$K$2 -> 846.9066667 | D92: 600.4133333 | E92: 499.4266667 | F92: 433.0666667 | G92: 335.9066667
A93: 31 | C93: =C19*$K$2 -> 865.6666667 | D93: 613.2 | E93: 509.5066667 | F93: 441.7466667 | G93: 342.72
A94: 32 | C94: =C20*$K$2 -> 884.8933333 | D94: 626.5466667 | E94: 519.68 | F94: 450.6133333 | G94: 349.3466667
A95: 33 | C95: =C21*$K$2 -> 904.7733333 | D95: 640.2666667 | E95: 530.5066667 | F95: 459.9466667 | G95: 356.8133333
A96: 34 | C96: =C22*$K$2 -> 925.3066667 | D96: 654.4533333 | E96: 541.52 | F96: 469.56 | G96: 364.0933333
A97: 35 | C97: =C23*$K$2 -> 946.2133333 | D97: 669.0133333 | E97: 553.0933333 | F97: 479.64 | G97: 372.0266667
A98: 36 | C98: =C24*$K$2 -> 967.8666667 | D98: 684.04 | E98: 564.8533333 | F98: 489.72 | G98: 379.8666667
A99: 37 | C99: =C25*$K$2 -> 990.1733333 | D99: 699.72 | E99: 576.9866667 | F99: 500.4533333 | G99: 388.08
A100: 38 | C100: =C26*$K$2 -> 1012.946667 | D100: 715.4933333 | E100: 589.5866667 | F100: 511.3733333 | G100: 396.5733333
A101: 39 | C101: =C27*$K$2 -> 1036.466667 | D101: 732.0133333 | E101: 602.56 | F101: 522.48 | G101: 405.16
A102: 40 | C102: =C28*$K$2 -> 1060.453333 | D102: 748.8133333 | E102: 615.8133333 | F102: 533.96 | G102: 414.2133333
A103: 41 | C103: =C29*$K$2 -> 1085.093333 | D103: 766.08 | E103: 629.5333333 | F103: 545.9066667 | G103: 423.4533333
A104: 42 | C104: =C30*$K$2 -> 1110.2 | D104: 783.72 | E104: 643.6266667 | F104: 558.04 | G104: 432.88
A105: 43 | C105: =C31*$K$2 -> 1135.866667 | D105: 802.0133333 | E105: 658.0933333 | F105: 570.64 | G105: 442.5866667
A106: 44 | C106: =C32*$K$2 -> 1162.28 | D106: 820.4 | E106: 672.7466667 | F106: 583.4266667 | G106: 452.5733333
A107: 45 | C107: =C33*$K$2 -> 1189.253333 | D107: 839.5333333 | E107: 688.0533333 | F107: 596.4933333 | G107: 462.6533333
A108: 46 | C108: =C34*$K$2 -> 1216.786667 | D108: 858.9466667 | E108: 703.64 | F108: 610.2133333 | G108: 473.1066667
A109: 47 | C109: =C35*$K$2 -> 1244.88 | D109: 879.0133333 | E109: 719.4133333 | F109: 623.7466667 | G109: 483.84
A110: 48 | C110: =C36*$K$2 -> 1273.626667 | D110: 899.1733333 | E110: 735.6533333 | F110: 637.84 | G110: 494.6666667
A111: 49 | C111: =C37*$K$2 -> 1303.026667 | D111: 920.08 | E111: 752.36 | F111: 652.4 | G111: 505.8666667
A112: 50 | C112: =C38*$K$2 -> 1332.8 | D112: 941.1733333 | E112: 769.44 | F112: 667.24 | G112: 517.44
A113: 51 | C113: =C39*$K$2 -> 1363.32 | D113: 962.8266667 | E113: 786.9866667 | F113: 682.36 | G113: 529.1066667
A114: 52 | C114: =C40*$K$2 -> 1394.306667 | D114: 984.9466667 | E114: 804.44 | F114: 697.48 | G114: 541.0533333
A115: 53 | C115: =C41*$K$2 -> 1426.04 | D115: 1007.72 | E115: 822.7333333 | F115: 713.3466667 | G115: 553.28
A116: 54 | C116: =C42*$K$2 -> 1458.333333 | D116: 1030.68 | E116: 841.12 | F116: 729.3066667 | G116: 565.6933333
A117: 55 | C117: =C43*$K$2 -> 1491.186667 | D117: 1054.013333 | E117: 860.0666667 | F117: 745.7333333 | G117: 578.3866667
A118: 56 | C118: =C44*$K$2 -> 1524.413333 | D118: 1077.813333 | E118: 879.2933333 | F118: 762.44 | G118: 591.36
A119: 57 | C119: =C45*$K$2 -> 1558.573333 | D119: 1102.08 | E119: 898.8933333 | F119: 779.3333333 | G119: 604.4266667
A120: 58 | C120: =C46*$K$2 -> 1593.2 | D120: 1126.813333 | E120: 918.8666667 | F120: 796.6933333 | G120: 617.8666667
A121: 59 | C121: =C47*$K$2 -> 1628.293333 | D121: 1152.013333 | E121: 939.12 | F121: 814.3333333 | G121: 631.4933333
A122: 60 | C122: =C48*$K$2 -> 1664.04 | D122: 1177.68 | E122: 959.9333333 | F122: 832.2533333 | G122: 645.4933333
A123: 61 | C123: =C49*$K$2 -> 1851.92 | D123: 1312.36 | E123: 1069.04 | F123: 926.9866667 | G123: 719.04
A124: 62 | C124: =C50*$K$2 -> 2054.36 | D124: 1458.24 | E124: 1187.573333 | F124: 1029.746667 | G124: 798.56
A125: 63 | C125: =C51*$K$2 -> 2271.64 | D125: 1614.853333 | E125: 1315.16 | F125: 1140.346667 | G125: 884.4266667
A126: 64 | C126: =C52*$K$2 -> 2503.573333 | D126: 1782.666667 | E126: 1451.986667 | F126: 1259.066667 | G126: 976.5466667
A127: 65 | C127: =C53*$K$2 -> 2750.16 | D127: 1961.4 | E127: 1598.146667 | F127: 1385.72 | G127: 1074.733333
A128: 66 | C128: =C54*$K$2 -> 3011.586667 | D128: 2151.053333 | E128: 1753.64 | F128: 1520.68 | G128: 1179.36
A129: 67 | C129: =C55*$K$2 -> 3287.76 | D129: 2351.72 | E129: 1918.28 | F129: 1663.386667 | G129: 1290.053333
A130: 68 | C130: =C56*$K$2 -> 3578.68 | D130: 2563.493333 | E130: 2092.066667 | F130: 1814.026667 | G130: 1406.906667
A131: 69 | C131: =C57*$K$2 -> 3884.16 | D131: 2786.186667 | E131: 2275.373333 | F131: 1972.973333 | G131: 1530.106667
A132: 70 | C132: =C58*$K$2 -> 4204.573333 | D132: 3019.986667 | E132: 2467.826667 | F132: 2139.853333 | G132: 1659.653333
A133: 71 | C133: =C59*$K$2 -> 4539.733333 | D133: 3264.706667 | E133: 2669.52 | F133: 2314.76 | G133: 1795.266667
A134: 72 | C134: =C60*$K$2 -> 4889.453333 | D134: 3520.626667 | E134: 2880.453333 | F134: 2497.6 | G134: 1937.04
A135: 73 | C135: =C61*$K$2 -> 5253.92 | D135: 3787.28 | E135: 3100.533333 | F135: 2688.466667 | G135: 2085.066667
A136: 74 | C136: =C62*$K$2 -> 5633.226667 | D136: 4065.04 | E136: 3330.04 | F136: 2887.546667 | G136: 2239.44
A137: 75 | C137: =C63*$K$2 -> 6027.186667 | D137: 4353.906667 | E137: 3568.786667 | F137: 3094.466667 | G137: 2399.88
A138: 76 | C138: =C64*$K$2 -> 6027.186667 | D138: 4353.906667 | E138: 3568.786667 | F138: 3094.466667 | G138: 2399.88
A139: 77 | C139: =C65*$K$2 -> 6027.186667 | D139: 4353.906667 | E139: 3568.786667 | F139: 3094.466667 | G139: 2399.88
A140: 78 | C140: =C66*$K$2 -> 6027.186667 | D140: 4353.906667 | E140: 3568.786667 | F140: 3094.466667 | G140: 2399.88
A141: 79 | C141: =C67*$K$2 -> 6027.186667 | D141: 4353.906667 | E141: 3568.786667 | F141: 3094.466667 | G141: 2399.88
A142: 80 | C142: =C68*$K$2 -> 6027.186667 | D142: 4353.906667 | E142: 3568.786667 | F142: 3094.466667 | G142: 2399.88
A143: 81 | C143: =C69*$K$2 -> 6027.186667 | D143: 4353.906667 | E143: 3568.786667 | F143: 3094.466667 | G143: 2399.88
A144: 82 | C144: =C70*$K$2 -> 6027.186667 | D144: 4353.906667 | E144: 3568.786667 | F144: 3094.466667 | G144: 2399.88
A145: 83 | C145: =C71*$K$2 -> 6027.186667 | D145: 4353.906667 | E145: 3568.786667 | F145: 3094.466667 | G145: 2399.88
A146: 84 | B146: o más | C146: =C72*$K$2 -> 6027.186667 | D146: 4353.906667 | E146: 3568.786667 | F146: 3094.466667 | G146: 2399.88
A147: 1 | B147: Hijo | C147: =C73*$K$2 -> 311.64 | D147: 223.16 | E147: 189 | F147: 163.8933333 | G147: 127.2133333
A148: 2 | B148: Hijos | C148: =C74*$K$2 -> 529.6666667 | D148: 379.4 | E148: 321.2533333 | F148: 278.5066667 | G148: 216.16
A149: 3 | B149: Hijos o más | C149: =C75*$K$2 -> 747.6933333 | D149: 535.5466667 | E149: 453.6 | F149: 393.2133333 | G149: 305.0133333
A151: BUPA GLOBAL PREMIER
A152: TARIFAS ANUALES
A153: EDAD
C154: 2000 | D154: 3500 | E154: 5000 | F154: 10000
A155: 18 | C155: 4297 | D155: 3648 | E155: 3164 | F155: 2353
A156: 19 | C156: 4351 | D156: 3687 | E156: 3194 | F156: 2377
A157: 20 | C157: 4405 | D157: 3727 | E157: 3226 | F157: 2400
A158: 21 | C158: 4460 | D158: 3769 | E158: 3259 | F158: 2425
A159: 22 | C159: 4517 | D159: 3812 | E159: 3293 | F159: 2449
A160: 23 | C160: 4577 | D160: 3858 | E160: 3330 | F160: 2477
A161: 24 | C161: 4640 | D161: 3907 | E161: 3367 | F161: 2505
A162: 25 | C162: 4703 | D162: 3953 | E162: 3405 | F162: 2533
A163: 26 | C163: 4796 | D163: 4024 | E163: 3461 | F163: 2575
A164: 27 | C164: 4892 | D164: 4098 | E164: 3522 | F164: 2620
A165: 28 | C165: 4992 | D165: 4176 | E165: 3583 | F165: 2666
A166: 29 | C166: 5096 | D166: 4254 | E166: 3648 | F166: 2714
A167: 30 | C167: 5204 | D167: 4338 | E167: 3717 | F167: 2765
A168: 31 | C168: 5315 | D168: 4426 | E168: 3785 | F168: 2816
A169: 32 | C169: 5431 | D169: 4514 | E169: 3859 | F169: 2871
A170: 33 | C170: 5549 | D170: 4608 | E170: 3935 | F170: 2927
A171: 34 | C171: 5673 | D171: 4705 | E171: 4015 | F171: 2987
A172: 35 | C172: 5800 | D172: 4804 | E172: 4096 | F172: 3047
A173: 36 | C173: 5930 | D173: 4907 | E173: 4179 | F173: 3108
A174: 37 | C174: 6064 | D174: 5013 | E174: 4274 | F174: 3180
A175: 38 | C175: 6201 | D175: 5122 | E175: 4383 | F175: 3260
A176: 39 | C176: 6345 | D176: 5236 | E176: 4495 | F176: 3344
A177: 40 | C177: 6489 | D177: 5351 | E177: 4609 | F177: 3430
A178: 41 | C178: 6639 | D178: 5469 | E178: 4728 | F178: 3518
A179: 42 | C179: 6794 | D179: 5592 | E179: 4849 | F179: 3608
A180: 43 | C180: 6949 | D180: 5717 | E180: 4972 | F180: 3699
A181: 44 | C181: 7111 | D181: 5845 | E181: 5099 | F181: 3793
A182: 45 | C182: 7277 | D182: 5977 | E182: 5229 | F182: 3891
A183: 46 | C183: 7445 | D183: 6112 | E183: 5364 | F183: 3989
A184: 47 | C184: 7619 | D184: 6250 | E184: 5500 | F184: 4091
A185: 48 | C185: 7794 | D185: 6391 | E185: 5640 | F185: 4195
A186: 49 | C186: 7974 | D186: 6535 | E186: 5782 | F186: 4300
A187: 50 | C187: 8158 | D187: 6684 | E187: 5926 | F187: 4409
A188: 51 | C188: 8346 | D188: 6835 | E188: 6074 | F188: 4519
A189: 52 | C189: 8538 | D189: 6989 | E189: 6227 | F189: 4632
A190: 53 | C190: 8733 | D190: 7148 | E190: 6382 | F190: 4747
A191: 54 | C191: 8931 | D191: 7308 | E191: 6539 | F191: 4864
A192: 55 | C192: 9135 | D192: 7471 | E192: 6700 | F192: 4984
A193: 56 | C193: 9342 | D193: 7639 | E193: 6864 | F193: 5107
A194: 57 | C194: 9551 | D194: 7808 | E194: 7029 | F194: 5228
A195: 58 | C195: 9766 | D195: 7982 | E195: 7198 | F195: 5355
A196: 59 | C196: 9986 | D196: 8159 | E196: 7373 | F196: 5484
A197: 60 | C197: 10208 | D197: 8338 | E197: 7548 | F197: 5614
A198: 61 | C198: 11375 | D198: 9288 | E198: 8472 | F198: 6303
A199: 62 | C199: 12639 | D199: 10315 | E199: 9475 | F199: 7047
A200: 63 | C200: 13997 | D200: 11424 | E200: 10552 | F200: 7849
A201: 64 | C201: 15451 | D201: 12614 | E201: 11706 | F201: 8707
A202: 65 | C202: 17000 | D202: 13883 | E202: 12936 | F202: 9622
A203: 66 | C203: 18644 | D203: 15235 | E203: 14243 | F203: 10594
... 1275 more rows
